BODY NAME,,SERVICE AREA,EXPENSES TYPE,EXPENSE CODE,DATE,TRANSACTION NO.,AMOUNT, SUPPLIER NAME,SUPPLIER ID
EFDC,BAL01,EFDC BALANCE SHEET,HOUSING RENT REFUNDS,Z613,06-Oct-20,37978,1280.24,MISS E RUMBLE,3215P
EFDC,GD100,VOLUNTARY SECTOR SUPPORT,GRANTS TO VOLUNTARY ORGS,3710,06-Oct-20,37977,5000,ST CLARE WEST ESSEX HOSPICE CARE TRUST,6020P
EFDC,LT140,LOCAL TAXATION,GRANTS GENERAL,3720,06-Oct-20,37911,7500,MRS J INGBER,10049P
EFDC,LT140,LOCAL TAXATION,GRANTS GENERAL,3720,06-Oct-20,37961,7500,DALIA AKAVICKIENE,10063P
EFDC,LT140,LOCAL TAXATION,GRANTS GENERAL,3720,06-Oct-20,37962,2500,MR G M BUTLER,10064P
EFDC,LT140,LOCAL TAXATION,GRANTS GENERAL,3720,06-Oct-20,37963,7500,KENDRICK & SONS LTD,10065P
EFDC,LT140,LOCAL TAXATION,GRANTS GENERAL,3720,06-Oct-20,37964,2500,MR TIMOTHY LLOYD,10066P
EFDC,LT140,LOCAL TAXATION,GRANTS GENERAL,3720,06-Oct-20,37965,7500,PROFESSIONAL CARPETS,10067P
EFDC,LT140,LOCAL TAXATION,GRANTS GENERAL,3720,06-Oct-20,37966,7500,RMA SERVICES LTD,10068P
EFDC,LT140,LOCAL TAXATION,GRANTS GENERAL,3720,06-Oct-20,37967,7500,STGFA LTD,10069P
EFDC,LT140,LOCAL TAXATION,GRANTS GENERAL,3720,06-Oct-20,37972,7500,LESLIE P GEORGE,10070P
EFDC,BAL01,EFDC BALANCE SHEET,HOUSING RENT REFUNDS,Z613,06-Oct-20,37976,692.05,THE PROBATE BUREAU LTD CLIENT ACCOUNT,10073P
EFDC,YB200,SUPERVISION/MANAGEMENT SPECIAL,COMPENSATION PAYMENTS,3880,06-Oct-20,37986,1000,MS TRACEY BROWN,10078P
EFDC,YB200,SUPERVISION/MANAGEMENT SPECIAL,CONTRIBUTIONS,3740,06-Oct-20,37986,500,MS TRACEY BROWN,10078P
EFDC,YB200,SUPERVISION/MANAGEMENT SPECIAL,REMOVAL EXPENSES,3830,06-Oct-20,37986,500,MS TRACEY BROWN,10078P
EFDC,YB200,SUPERVISION/MANAGEMENT SPECIAL,COMPENSATION PAYMENTS,3880,06-Oct-20,37989,1000,PETER SAVILL,10079P
EFDC,YB200,SUPERVISION/MANAGEMENT SPECIAL,REMOVAL EXPENSES,3830,06-Oct-20,37989,500,PETER SAVILL,10079P
EFDC,YB200,SUPERVISION/MANAGEMENT SPECIAL,CONTRIBUTIONS,3740,06-Oct-20,37989,500,PETER SAVILL,10079P
EFDC,BAL01,EFDC BALANCE SHEET,DEPOSITS - PAID,Z223,06-Oct-20,37987,600,MR N DAWSON,9812P
EFDC,YB110,SUPERVISION/MANAGEMENT SPECIAL,ELECTRICITY,1120,07-Oct-20,179883,14.15,BRITISH GAS,BRI040
EFDC,YB110,SUPERVISION/MANAGEMENT SPECIAL,ELECTRICITY,1120,07-Oct-20,179883,7.89,BRITISH GAS,BRI040
EFDC,YB110,SUPERVISION/MANAGEMENT SPECIAL,ELECTRICITY,1120,07-Oct-20,179883,13.39,BRITISH GAS,BRI040
EFDC,YB110,SUPERVISION/MANAGEMENT SPECIAL,ELECTRICITY,1120,07-Oct-20,179883,10.75,BRITISH GAS,BRI040
EFDC,YB110,SUPERVISION/MANAGEMENT SPECIAL,ELECTRICITY,1120,07-Oct-20,179883,11.65,BRITISH GAS,BRI040
EFDC,YB110,SUPERVISION/MANAGEMENT SPECIAL,ELECTRICITY,1120,07-Oct-20,179883,10.39,BRITISH GAS,BRI040
EFDC,YB110,SUPERVISION/MANAGEMENT SPECIAL,ELECTRICITY,1120,07-Oct-20,179883,9.75,BRITISH GAS,BRI040
EFDC,YB110,SUPERVISION/MANAGEMENT SPECIAL,ELECTRICITY,1120,07-Oct-20,179883,13.4,BRITISH GAS,BRI040
EFDC,YB110,SUPERVISION/MANAGEMENT SPECIAL,ELECTRICITY,1120,07-Oct-20,179883,15.29,BRITISH GAS,BRI040
EFDC,YB110,SUPERVISION/MANAGEMENT SPECIAL,ELECTRICITY,1120,07-Oct-20,179883,11,BRITISH GAS,BRI040
EFDC,YB110,SUPERVISION/MANAGEMENT SPECIAL,ELECTRICITY,1120,07-Oct-20,179883,15.02,BRITISH GAS,BRI040
EFDC,YB110,SUPERVISION/MANAGEMENT SPECIAL,ELECTRICITY,1120,07-Oct-20,179883,17.16,BRITISH GAS,BRI040
EFDC,YB110,SUPERVISION/MANAGEMENT SPECIAL,ELECTRICITY,1120,07-Oct-20,179883,9.88,BRITISH GAS,BRI040
EFDC,YB110,SUPERVISION/MANAGEMENT SPECIAL,ELECTRICITY,1120,07-Oct-20,179883,13.68,BRITISH GAS,BRI040
EFDC,YB110,SUPERVISION/MANAGEMENT SPECIAL,ELECTRICITY,1120,07-Oct-20,179883,40.57,BRITISH GAS,BRI040
EFDC,YB110,SUPERVISION/MANAGEMENT SPECIAL,ELECTRICITY,1120,07-Oct-20,179883,7.97,BRITISH GAS,BRI040
EFDC,YB110,SUPERVISION/MANAGEMENT SPECIAL,ELECTRICITY,1120,07-Oct-20,179883,24.23,BRITISH GAS,BRI040
EFDC,YB110,SUPERVISION/MANAGEMENT SPECIAL,ELECTRICITY,1120,07-Oct-20,179883,12.15,BRITISH GAS,BRI040
EFDC,YB110,SUPERVISION/MANAGEMENT SPECIAL,ELECTRICITY,1120,07-Oct-20,179883,19.33,BRITISH GAS,BRI040
EFDC,YB110,SUPERVISION/MANAGEMENT SPECIAL,ELECTRICITY,1120,07-Oct-20,179883,13.64,BRITISH GAS,BRI040
EFDC,YB110,SUPERVISION/MANAGEMENT SPECIAL,ELECTRICITY,1120,07-Oct-20,179883,15.96,BRITISH GAS,BRI040
EFDC,YB110,SUPERVISION/MANAGEMENT SPECIAL,ELECTRICITY,1120,07-Oct-20,179883,127.44,BRITISH GAS,BRI040
EFDC,YB110,SUPERVISION/MANAGEMENT SPECIAL,ELECTRICITY,1120,07-Oct-20,179883,17.82,BRITISH GAS,BRI040
EFDC,32060,OTHER SUPPORT SERVICES,AGENCY STAFF,0120,07-Oct-20,180097,693,VENN GROUP LTD,VEN004
EFDC,32060,OTHER SUPPORT SERVICES,AGENCY STAFF,0120,07-Oct-20,180096,643.5,VENN GROUP LTD,VEN004
EFDC,YB110,SUPERVISION/MANAGEMENT SPECIAL,ELECTRICITY,1120,07-Oct-20,179883,10.76,BRITISH GAS,BRI040
EFDC,32115,OTHER SUPPORT SERVICES,CONSULTANTS FEES,3490,07-Oct-20,179381,1398,TRAINING & COACHING SOLUTIONS LTD,TRA029
EFDC,YB110,SUPERVISION/MANAGEMENT SPECIAL,ELECTRICITY,1120,07-Oct-20,179883,17.31,BRITISH GAS,BRI040
EFDC,YB110,SUPERVISION/MANAGEMENT SPECIAL,ELECTRICITY,1120,07-Oct-20,179883,48.77,BRITISH GAS,BRI040
EFDC,YB110,SUPERVISION/MANAGEMENT SPECIAL,ELECTRICITY,1120,07-Oct-20,179883,10.64,BRITISH GAS,BRI040
EFDC,YB110,SUPERVISION/MANAGEMENT SPECIAL,ELECTRICITY,1120,07-Oct-20,179883,14.49,BRITISH GAS,BRI040
EFDC,YB110,SUPERVISION/MANAGEMENT SPECIAL,ELECTRICITY,1120,07-Oct-20,179883,7.42,BRITISH GAS,BRI040
EFDC,YB110,SUPERVISION/MANAGEMENT SPECIAL,ELECTRICITY,1120,07-Oct-20,179883,42.61,BRITISH GAS,BRI040
EFDC,YB110,SUPERVISION/MANAGEMENT SPECIAL,ELECTRICITY,1120,07-Oct-20,179883,34.86,BRITISH GAS,BRI040
EFDC,YB110,SUPERVISION/MANAGEMENT SPECIAL,ELECTRICITY,1120,07-Oct-20,179883,42.14,BRITISH GAS,BRI040
EFDC,YB110,SUPERVISION/MANAGEMENT SPECIAL,ELECTRICITY,1120,07-Oct-20,179883,5.56,BRITISH GAS,BRI040
EFDC,CAPHR,HRA CAPITAL,WORKS,A040,07-Oct-20,179971,28198.15,GRACELANDS COMPLETE MAINTENANCE SERVICES LTD,GRA007
EFDC,YB110,SUPERVISION/MANAGEMENT SPECIAL,ELECTRICITY,1120,07-Oct-20,179883,62.5,BRITISH GAS,BRI040
EFDC,RM100,RESPONSIVE & VOID REPAIRS,BUILDING MAINTENANCE,1010,07-Oct-20,179884,876.73,GRACELANDS COMPLETE MAINTENANCE SERVICES LTD,GRA007
EFDC,YB110,SUPERVISION/MANAGEMENT SPECIAL,ELECTRICITY,1120,07-Oct-20,179883,27.59,BRITISH GAS,BRI040
EFDC,YB110,SUPERVISION/MANAGEMENT SPECIAL,ELECTRICITY,1120,07-Oct-20,179883,29.85,BRITISH GAS,BRI040
EFDC,YB110,SUPERVISION/MANAGEMENT SPECIAL,ELECTRICITY,1120,07-Oct-20,179883,41.44,BRITISH GAS,BRI040
EFDC,YB110,SUPERVISION/MANAGEMENT SPECIAL,ELECTRICITY,1120,07-Oct-20,179883,13.15,BRITISH GAS,BRI040
EFDC,YB110,SUPERVISION/MANAGEMENT SPECIAL,ELECTRICITY,1120,07-Oct-20,179883,9.75,BRITISH GAS,BRI040
EFDC,YB110,SUPERVISION/MANAGEMENT SPECIAL,ELECTRICITY,1120,07-Oct-20,179883,20.94,BRITISH GAS,BRI040
EFDC,YB110,SUPERVISION/MANAGEMENT SPECIAL,ELECTRICITY,1120,07-Oct-20,179883,30.14,BRITISH GAS,BRI040
EFDC,YB110,SUPERVISION/MANAGEMENT SPECIAL,ELECTRICITY,1120,07-Oct-20,179883,13.91,BRITISH GAS,BRI040
EFDC,YB110,SUPERVISION/MANAGEMENT SPECIAL,ELECTRICITY,1120,07-Oct-20,179883,13.85,BRITISH GAS,BRI040
EFDC,YB110,SUPERVISION/MANAGEMENT SPECIAL,ELECTRICITY,1120,07-Oct-20,179883,15.15,BRITISH GAS,BRI040
EFDC,YB110,SUPERVISION/MANAGEMENT SPECIAL,ELECTRICITY,1120,07-Oct-20,179883,14.17,BRITISH GAS,BRI040
EFDC,YB110,SUPERVISION/MANAGEMENT SPECIAL,ELECTRICITY,1120,07-Oct-20,179883,25.92,BRITISH GAS,BRI040
EFDC,YB110,SUPERVISION/MANAGEMENT SPECIAL,ELECTRICITY,1120,07-Oct-20,179883,14.32,BRITISH GAS,BRI040
EFDC,YB110,SUPERVISION/MANAGEMENT SPECIAL,ELECTRICITY,1120,07-Oct-20,179883,7.89,BRITISH GAS,BRI040
EFDC,YB110,SUPERVISION/MANAGEMENT SPECIAL,ELECTRICITY,1120,07-Oct-20,179883,16.69,BRITISH GAS,BRI040
EFDC,YB110,SUPERVISION/MANAGEMENT SPECIAL,ELECTRICITY,1120,07-Oct-20,179883,14.41,BRITISH GAS,BRI040
EFDC,YB110,SUPERVISION/MANAGEMENT SPECIAL,ELECTRICITY,1120,07-Oct-20,179883,15.43,BRITISH GAS,BRI040
EFDC,YB110,SUPERVISION/MANAGEMENT SPECIAL,ELECTRICITY,1120,07-Oct-20,179883,19.32,BRITISH GAS,BRI040
EFDC,YB110,SUPERVISION/MANAGEMENT SPECIAL,ELECTRICITY,1120,07-Oct-20,179883,14.28,BRITISH GAS,BRI040
EFDC,33080,FINANCE - OTHER ACTIVITIES,ANNUAL SUPPORT /  LICENSES,3872,07-Oct-20,179019,2981,ZOHO CORPORATION B.V.,ZOH001
EFDC,YB110,SUPERVISION/MANAGEMENT SPECIAL,ELECTRICITY,1120,07-Oct-20,179883,31.28,BRITISH GAS,BRI040
EFDC,YB110,SUPERVISION/MANAGEMENT SPECIAL,ELECTRICITY,1120,07-Oct-20,179883,11.37,BRITISH GAS,BRI040
EFDC,YB110,SUPERVISION/MANAGEMENT SPECIAL,ELECTRICITY,1120,07-Oct-20,179883,24.79,BRITISH GAS,BRI040
EFDC,YB110,SUPERVISION/MANAGEMENT SPECIAL,ELECTRICITY,1120,07-Oct-20,179883,16.66,BRITISH GAS,BRI040
EFDC,YB110,SUPERVISION/MANAGEMENT SPECIAL,ELECTRICITY,1120,07-Oct-20,179883,14.53,BRITISH GAS,BRI040
EFDC,YB110,SUPERVISION/MANAGEMENT SPECIAL,ELECTRICITY,1120,07-Oct-20,179883,19.49,BRITISH GAS,BRI040
EFDC,YB110,SUPERVISION/MANAGEMENT SPECIAL,ELECTRICITY,1120,07-Oct-20,179883,158.28,BRITISH GAS,BRI040
EFDC,YB110,SUPERVISION/MANAGEMENT SPECIAL,ELECTRICITY,1120,07-Oct-20,179883,15.9,BRITISH GAS,BRI040
EFDC,YB110,SUPERVISION/MANAGEMENT SPECIAL,ELECTRICITY,1120,07-Oct-20,179883,33.74,BRITISH GAS,BRI040
EFDC,YB110,SUPERVISION/MANAGEMENT SPECIAL,ELECTRICITY,1120,07-Oct-20,179883,9.63,BRITISH GAS,BRI040
EFDC,YB110,SUPERVISION/MANAGEMENT SPECIAL,ELECTRICITY,1120,07-Oct-20,179883,7.89,BRITISH GAS,BRI040
EFDC,YB110,SUPERVISION/MANAGEMENT SPECIAL,ELECTRICITY,1120,07-Oct-20,179883,9.49,BRITISH GAS,BRI040
EFDC,YB110,SUPERVISION/MANAGEMENT SPECIAL,ELECTRICITY,1120,07-Oct-20,179883,11.52,BRITISH GAS,BRI040
EFDC,YB110,SUPERVISION/MANAGEMENT SPECIAL,ELECTRICITY,1120,07-Oct-20,179883,65.62,BRITISH GAS,BRI040
EFDC,YB110,SUPERVISION/MANAGEMENT SPECIAL,ELECTRICITY,1120,07-Oct-20,179883,11.5,BRITISH GAS,BRI040
EFDC,YB110,SUPERVISION/MANAGEMENT SPECIAL,ELECTRICITY,1120,07-Oct-20,179883,65.83,BRITISH GAS,BRI040
EFDC,YB110,SUPERVISION/MANAGEMENT SPECIAL,ELECTRICITY,1120,07-Oct-20,179883,115.19,BRITISH GAS,BRI040
EFDC,YB110,SUPERVISION/MANAGEMENT SPECIAL,ELECTRICITY,1120,07-Oct-20,179883,17.16,BRITISH GAS,BRI040
EFDC,YB110,SUPERVISION/MANAGEMENT SPECIAL,ELECTRICITY,1120,07-Oct-20,179883,74.51,BRITISH GAS,BRI040
EFDC,YB110,SUPERVISION/MANAGEMENT SPECIAL,ELECTRICITY,1120,07-Oct-20,179883,20.53,BRITISH GAS,BRI040
EFDC,YB110,SUPERVISION/MANAGEMENT SPECIAL,ELECTRICITY,1120,07-Oct-20,179883,20.54,BRITISH GAS,BRI040
EFDC,YB110,SUPERVISION/MANAGEMENT SPECIAL,ELECTRICITY,1120,07-Oct-20,179883,59.61,BRITISH GAS,BRI040
EFDC,YB110,SUPERVISION/MANAGEMENT SPECIAL,ELECTRICITY,1120,07-Oct-20,179883,36.29,BRITISH GAS,BRI040
EFDC,YB110,SUPERVISION/MANAGEMENT SPECIAL,ELECTRICITY,1120,07-Oct-20,179883,14.78,BRITISH GAS,BRI040
EFDC,YB110,SUPERVISION/MANAGEMENT SPECIAL,ELECTRICITY,1120,07-Oct-20,179883,17.78,BRITISH GAS,BRI040
EFDC,YB110,SUPERVISION/MANAGEMENT SPECIAL,ELECTRICITY,1120,07-Oct-20,179883,13.47,BRITISH GAS,BRI040
EFDC,YB110,SUPERVISION/MANAGEMENT SPECIAL,ELECTRICITY,1120,07-Oct-20,179883,12.33,BRITISH GAS,BRI040
EFDC,YB110,SUPERVISION/MANAGEMENT SPECIAL,ELECTRICITY,1120,07-Oct-20,179883,10.48,BRITISH GAS,BRI040
EFDC,YB110,SUPERVISION/MANAGEMENT SPECIAL,ELECTRICITY,1120,07-Oct-20,179883,13.79,BRITISH GAS,BRI040
EFDC,YB140,SUPERVISION/MANAGEMENT SPECIAL,ELECTRICITY,1120,07-Oct-20,179883,20.32,BRITISH GAS,BRI040
EFDC,YB110,SUPERVISION/MANAGEMENT SPECIAL,ELECTRICITY,1120,07-Oct-20,179883,12.15,BRITISH GAS,BRI040
EFDC,YB110,SUPERVISION/MANAGEMENT SPECIAL,ELECTRICITY,1120,07-Oct-20,179883,7.76,BRITISH GAS,BRI040
EFDC,YB110,SUPERVISION/MANAGEMENT SPECIAL,ELECTRICITY,1120,07-Oct-20,179883,30.44,BRITISH GAS,BRI040
EFDC,YB110,SUPERVISION/MANAGEMENT SPECIAL,ELECTRICITY,1120,07-Oct-20,179883,30.43,BRITISH GAS,BRI040
EFDC,YB110,SUPERVISION/MANAGEMENT SPECIAL,ELECTRICITY,1120,07-Oct-20,179883,45.37,BRITISH GAS,BRI040
EFDC,YB110,SUPERVISION/MANAGEMENT SPECIAL,ELECTRICITY,1120,07-Oct-20,179883,23.66,BRITISH GAS,BRI040
EFDC,YB110,SUPERVISION/MANAGEMENT SPECIAL,ELECTRICITY,1120,07-Oct-20,179883,7.89,BRITISH GAS,BRI040
EFDC,YB110,SUPERVISION/MANAGEMENT SPECIAL,ELECTRICITY,1120,07-Oct-20,179883,21.53,BRITISH GAS,BRI040
EFDC,YB110,SUPERVISION/MANAGEMENT SPECIAL,ELECTRICITY,1120,07-Oct-20,179883,8.14,BRITISH GAS,BRI040
EFDC,YB110,SUPERVISION/MANAGEMENT SPECIAL,ELECTRICITY,1120,07-Oct-20,179883,45.3,BRITISH GAS,BRI040
EFDC,YB110,SUPERVISION/MANAGEMENT SPECIAL,ELECTRICITY,1120,07-Oct-20,179883,16.93,BRITISH GAS,BRI040
EFDC,YB110,SUPERVISION/MANAGEMENT SPECIAL,ELECTRICITY,1120,07-Oct-20,179883,13.31,BRITISH GAS,BRI040
EFDC,YB110,SUPERVISION/MANAGEMENT SPECIAL,ELECTRICITY,1120,07-Oct-20,179883,7.06,BRITISH GAS,BRI040
EFDC,YB110,SUPERVISION/MANAGEMENT SPECIAL,ELECTRICITY,1120,07-Oct-20,179883,13.23,BRITISH GAS,BRI040
EFDC,YB110,SUPERVISION/MANAGEMENT SPECIAL,ELECTRICITY,1120,07-Oct-20,179883,15.4,BRITISH GAS,BRI040
EFDC,YB110,SUPERVISION/MANAGEMENT SPECIAL,ELECTRICITY,1120,07-Oct-20,179883,7.34,BRITISH GAS,BRI040
EFDC,CAPHR,HRA CAPITAL,WORKS,A040,07-Oct-20,179970,32533.08,GRACELANDS COMPLETE MAINTENANCE SERVICES LTD,GRA007
EFDC,YB110,SUPERVISION/MANAGEMENT SPECIAL,ELECTRICITY,1120,07-Oct-20,179883,7.35,BRITISH GAS,BRI040
EFDC,YB110,SUPERVISION/MANAGEMENT SPECIAL,ELECTRICITY,1120,07-Oct-20,179883,32.91,BRITISH GAS,BRI040
EFDC,YB110,SUPERVISION/MANAGEMENT SPECIAL,ELECTRICITY,1120,07-Oct-20,179883,6.55,BRITISH GAS,BRI040
EFDC,YB110,SUPERVISION/MANAGEMENT SPECIAL,ELECTRICITY,1120,07-Oct-20,179883,11.65,BRITISH GAS,BRI040
EFDC,YB110,SUPERVISION/MANAGEMENT SPECIAL,ELECTRICITY,1120,07-Oct-20,179883,11.75,BRITISH GAS,BRI040
EFDC,YB110,SUPERVISION/MANAGEMENT SPECIAL,ELECTRICITY,1120,07-Oct-20,179883,10.77,BRITISH GAS,BRI040
EFDC,YB110,SUPERVISION/MANAGEMENT SPECIAL,ELECTRICITY,1120,07-Oct-20,179883,15.53,BRITISH GAS,BRI040
EFDC,YB110,SUPERVISION/MANAGEMENT SPECIAL,ELECTRICITY,1120,07-Oct-20,179883,18.16,BRITISH GAS,BRI040
EFDC,YB110,SUPERVISION/MANAGEMENT SPECIAL,ELECTRICITY,1120,07-Oct-20,179883,18.16,BRITISH GAS,BRI040
EFDC,YB110,SUPERVISION/MANAGEMENT SPECIAL,ELECTRICITY,1120,07-Oct-20,179883,84.02,BRITISH GAS,BRI040
EFDC,YB110,SUPERVISION/MANAGEMENT SPECIAL,ELECTRICITY,1120,07-Oct-20,179883,15.9,BRITISH GAS,BRI040
EFDC,YB110,SUPERVISION/MANAGEMENT SPECIAL,ELECTRICITY,1120,07-Oct-20,179883,17.28,BRITISH GAS,BRI040
EFDC,YB110,SUPERVISION/MANAGEMENT SPECIAL,ELECTRICITY,1120,07-Oct-20,179883,80.02,BRITISH GAS,BRI040
EFDC,YB110,SUPERVISION/MANAGEMENT SPECIAL,ELECTRICITY,1120,07-Oct-20,179883,8.42,BRITISH GAS,BRI040
EFDC,YB110,SUPERVISION/MANAGEMENT SPECIAL,ELECTRICITY,1120,07-Oct-20,179883,15.58,BRITISH GAS,BRI040
EFDC,YB110,SUPERVISION/MANAGEMENT SPECIAL,ELECTRICITY,1120,07-Oct-20,179883,-31.79,BRITISH GAS,BRI040
EFDC,YB110,SUPERVISION/MANAGEMENT SPECIAL,ELECTRICITY,1120,07-Oct-20,179883,18.13,BRITISH GAS,BRI040
EFDC,YB110,SUPERVISION/MANAGEMENT SPECIAL,ELECTRICITY,1120,07-Oct-20,179883,10.87,BRITISH GAS,BRI040
EFDC,YB110,SUPERVISION/MANAGEMENT SPECIAL,ELECTRICITY,1120,07-Oct-20,179883,28.21,BRITISH GAS,BRI040
EFDC,YB110,SUPERVISION/MANAGEMENT SPECIAL,ELECTRICITY,1120,07-Oct-20,179883,-10.37,BRITISH GAS,BRI040
EFDC,YB110,SUPERVISION/MANAGEMENT SPECIAL,ELECTRICITY,1120,07-Oct-20,179883,-8.74,BRITISH GAS,BRI040
EFDC,YB110,SUPERVISION/MANAGEMENT SPECIAL,ELECTRICITY,1120,07-Oct-20,179883,-9.58,BRITISH GAS,BRI040
EFDC,YB110,SUPERVISION/MANAGEMENT SPECIAL,ELECTRICITY,1120,07-Oct-20,179883,-9.82,BRITISH GAS,BRI040
EFDC,YB110,SUPERVISION/MANAGEMENT SPECIAL,ELECTRICITY,1120,07-Oct-20,179883,-9.68,BRITISH GAS,BRI040
EFDC,YB110,SUPERVISION/MANAGEMENT SPECIAL,ELECTRICITY,1120,07-Oct-20,179883,22.67,BRITISH GAS,BRI040
EFDC,YB110,SUPERVISION/MANAGEMENT SPECIAL,ELECTRICITY,1120,07-Oct-20,179883,19.34,BRITISH GAS,BRI040
EFDC,YB110,SUPERVISION/MANAGEMENT SPECIAL,ELECTRICITY,1120,07-Oct-20,179883,11.52,BRITISH GAS,BRI040
EFDC,YB110,SUPERVISION/MANAGEMENT SPECIAL,ELECTRICITY,1120,07-Oct-20,179883,10.13,BRITISH GAS,BRI040
EFDC,YB110,SUPERVISION/MANAGEMENT SPECIAL,ELECTRICITY,1120,07-Oct-20,179883,12.02,BRITISH GAS,BRI040
EFDC,YB110,SUPERVISION/MANAGEMENT SPECIAL,ELECTRICITY,1120,07-Oct-20,179883,93.94,BRITISH GAS,BRI040
EFDC,YB110,SUPERVISION/MANAGEMENT SPECIAL,ELECTRICITY,1120,07-Oct-20,179883,12.32,BRITISH GAS,BRI040
EFDC,YB110,SUPERVISION/MANAGEMENT SPECIAL,ELECTRICITY,1120,07-Oct-20,179883,12.6,BRITISH GAS,BRI040
EFDC,YB110,SUPERVISION/MANAGEMENT SPECIAL,ELECTRICITY,1120,07-Oct-20,179883,46.78,BRITISH GAS,BRI040
EFDC,YB110,SUPERVISION/MANAGEMENT SPECIAL,ELECTRICITY,1120,07-Oct-20,179883,11.93,BRITISH GAS,BRI040
EFDC,YB110,SUPERVISION/MANAGEMENT SPECIAL,ELECTRICITY,1120,07-Oct-20,179883,51.37,BRITISH GAS,BRI040
EFDC,RM400,PLANNED & CYCLICAL MAINTENANCE,BUILDING MAINTENANCE,1010,07-Oct-20,179972,5835.42,GRACELANDS COMPLETE MAINTENANCE SERVICES LTD,GRA007
EFDC,YB110,SUPERVISION/MANAGEMENT SPECIAL,ELECTRICITY,1120,07-Oct-20,179883,11.64,BRITISH GAS,BRI040
EFDC,YB110,SUPERVISION/MANAGEMENT SPECIAL,ELECTRICITY,1120,07-Oct-20,179883,20.81,BRITISH GAS,BRI040
EFDC,YB110,SUPERVISION/MANAGEMENT SPECIAL,ELECTRICITY,1120,07-Oct-20,179883,11.53,BRITISH GAS,BRI040
EFDC,YB110,SUPERVISION/MANAGEMENT SPECIAL,ELECTRICITY,1120,07-Oct-20,179883,21.1,BRITISH GAS,BRI040
EFDC,YB110,SUPERVISION/MANAGEMENT SPECIAL,ELECTRICITY,1120,07-Oct-20,179883,13.37,BRITISH GAS,BRI040
EFDC,YB110,SUPERVISION/MANAGEMENT SPECIAL,ELECTRICITY,1120,07-Oct-20,179883,-93.12,BRITISH GAS,BRI040
EFDC,YB110,SUPERVISION/MANAGEMENT SPECIAL,ELECTRICITY,1120,07-Oct-20,179883,14.82,BRITISH GAS,BRI040
EFDC,YB110,SUPERVISION/MANAGEMENT SPECIAL,ELECTRICITY,1120,07-Oct-20,179883,13.09,BRITISH GAS,BRI040
EFDC,YB140,SUPERVISION/MANAGEMENT SPECIAL,ELECTRICITY,1120,07-Oct-20,179883,21.19,BRITISH GAS,BRI040
EFDC,YB140,SUPERVISION/MANAGEMENT SPECIAL,ELECTRICITY,1120,07-Oct-20,179883,23.04,BRITISH GAS,BRI040
EFDC,YB200,SUPERVISION/MANAGEMENT SPECIAL,ELECTRICITY,1120,07-Oct-20,179883,10.88,BRITISH GAS,BRI040
EFDC,YB300,SUPERVISION/MANAGEMENT SPECIAL,ELECTRICITY,1120,07-Oct-20,179883,24.94,BRITISH GAS,BRI040
EFDC,YB140,SUPERVISION/MANAGEMENT SPECIAL,ELECTRICITY,1120,07-Oct-20,179883,21.42,BRITISH GAS,BRI040
EFDC,YB140,SUPERVISION/MANAGEMENT SPECIAL,ELECTRICITY,1120,07-Oct-20,179883,21.55,BRITISH GAS,BRI040
EFDC,YB140,SUPERVISION/MANAGEMENT SPECIAL,ELECTRICITY,1120,07-Oct-20,179883,29.24,BRITISH GAS,BRI040
EFDC,YB140,SUPERVISION/MANAGEMENT SPECIAL,ELECTRICITY,1120,07-Oct-20,179883,25.47,BRITISH GAS,BRI040
EFDC,33075,FINANCE - OTHER ACTIVITIES,AGENCY STAFF,0120,07-Oct-20,180026,869.13,MORGAN HUNT UK LTD,MOR001
EFDC,33075,FINANCE - OTHER ACTIVITIES,AGENCY STAFF,0120,07-Oct-20,180025,869.13,MORGAN HUNT UK LTD,MOR001
EFDC,33075,FINANCE - OTHER ACTIVITIES,AGENCY STAFF,0120,07-Oct-20,180024,869.13,MORGAN HUNT UK LTD,MOR001
EFDC,33075,FINANCE - OTHER ACTIVITIES,AGENCY STAFF,0120,07-Oct-20,180023,869.13,MORGAN HUNT UK LTD,MOR001
EFDC,33075,FINANCE - OTHER ACTIVITIES,AGENCY STAFF,0120,07-Oct-20,180021,869.13,MORGAN HUNT UK LTD,MOR001
EFDC,YB110,SUPERVISION/MANAGEMENT SPECIAL,ELECTRICITY,1120,07-Oct-20,179883,-12.62,BRITISH GAS,BRI040
EFDC,YB140,SUPERVISION/MANAGEMENT SPECIAL,ELECTRICITY,1120,07-Oct-20,179883,18.74,BRITISH GAS,BRI040
EFDC,YB110,SUPERVISION/MANAGEMENT SPECIAL,ELECTRICITY,1120,07-Oct-20,179883,-145.16,BRITISH GAS,BRI040
EFDC,YB140,SUPERVISION/MANAGEMENT SPECIAL,ELECTRICITY,1120,07-Oct-20,179883,14.62,BRITISH GAS,BRI040
EFDC,YB110,SUPERVISION/MANAGEMENT SPECIAL,ELECTRICITY,1120,07-Oct-20,179883,-13.21,BRITISH GAS,BRI040
EFDC,YB110,SUPERVISION/MANAGEMENT SPECIAL,ELECTRICITY,1120,07-Oct-20,179883,29.5,BRITISH GAS,BRI040
EFDC,YB110,SUPERVISION/MANAGEMENT SPECIAL,ELECTRICITY,1120,07-Oct-20,179883,120,BRITISH GAS,BRI040
EFDC,YB110,SUPERVISION/MANAGEMENT SPECIAL,ELECTRICITY,1120,07-Oct-20,179883,27.79,BRITISH GAS,BRI040
EFDC,YB110,SUPERVISION/MANAGEMENT SPECIAL,ELECTRICITY,1120,07-Oct-20,179883,15.89,BRITISH GAS,BRI040
EFDC,33055,FINANCE - OTHER ACTIVITIES,AGENCY STAFF,0120,07-Oct-20,180022,1001.96,MORGAN HUNT UK LTD,MOR001
EFDC,33055,FINANCE - OTHER ACTIVITIES,AGENCY STAFF,0120,07-Oct-20,180019,1001.96,MORGAN HUNT UK LTD,MOR001
EFDC,33055,FINANCE - OTHER ACTIVITIES,AGENCY STAFF,0120,07-Oct-20,180017,1001.96,MORGAN HUNT UK LTD,MOR001
EFDC,33055,FINANCE - OTHER ACTIVITIES,AGENCY STAFF,0120,07-Oct-20,180016,1001.96,MORGAN HUNT UK LTD,MOR001
EFDC,33055,FINANCE - OTHER ACTIVITIES,AGENCY STAFF,0120,07-Oct-20,180015,670.23,MORGAN HUNT UK LTD,MOR001
EFDC,33055,FINANCE - OTHER ACTIVITIES,AGENCY STAFF,0120,07-Oct-20,180014,1001.96,MORGAN HUNT UK LTD,MOR001
EFDC,33055,FINANCE - OTHER ACTIVITIES,AGENCY STAFF,0120,07-Oct-20,180020,1001.96,MORGAN HUNT UK LTD,MOR001
EFDC,33075,FINANCE - OTHER ACTIVITIES,AGENCY STAFF,0120,07-Oct-20,180018,962,MORGAN HUNT UK LTD,MOR001
EFDC,YB110,SUPERVISION/MANAGEMENT SPECIAL,ELECTRICITY,1120,07-Oct-20,179883,13.49,BRITISH GAS,BRI040
EFDC,YB110,SUPERVISION/MANAGEMENT SPECIAL,ELECTRICITY,1120,07-Oct-20,179883,13.31,BRITISH GAS,BRI040
EFDC,YB110,SUPERVISION/MANAGEMENT SPECIAL,ELECTRICITY,1120,07-Oct-20,179883,-34.33,BRITISH GAS,BRI040
EFDC,YB110,SUPERVISION/MANAGEMENT SPECIAL,ELECTRICITY,1120,07-Oct-20,179883,-29.36,BRITISH GAS,BRI040
EFDC,YB110,SUPERVISION/MANAGEMENT SPECIAL,ELECTRICITY,1120,07-Oct-20,179883,13.25,BRITISH GAS,BRI040
EFDC,YB110,SUPERVISION/MANAGEMENT SPECIAL,ELECTRICITY,1120,07-Oct-20,179883,42.81,BRITISH GAS,BRI040
EFDC,YB110,SUPERVISION/MANAGEMENT SPECIAL,ELECTRICITY,1120,07-Oct-20,179883,38.9,BRITISH GAS,BRI040
EFDC,YB110,SUPERVISION/MANAGEMENT SPECIAL,ELECTRICITY,1120,07-Oct-20,179883,34.62,BRITISH GAS,BRI040
EFDC,YB110,SUPERVISION/MANAGEMENT SPECIAL,ELECTRICITY,1120,07-Oct-20,179883,27.3,BRITISH GAS,BRI040
EFDC,YB110,SUPERVISION/MANAGEMENT SPECIAL,ELECTRICITY,1120,07-Oct-20,179883,21.23,BRITISH GAS,BRI040
EFDC,RM300,PLANNED & CYCLICAL MAINTENANCE,BUILDING MAINTENANCE,1010,07-Oct-20,179969,51380.37,GRACELANDS COMPLETE MAINTENANCE SERVICES LTD,GRA007
EFDC,YB110,SUPERVISION/MANAGEMENT SPECIAL,ELECTRICITY,1120,07-Oct-20,179883,10.02,BRITISH GAS,BRI040
EFDC,YB110,SUPERVISION/MANAGEMENT SPECIAL,ELECTRICITY,1120,07-Oct-20,179883,15.98,BRITISH GAS,BRI040
EFDC,YB110,SUPERVISION/MANAGEMENT SPECIAL,ELECTRICITY,1120,07-Oct-20,179883,-33.18,BRITISH GAS,BRI040
EFDC,RM100,RESPONSIVE & VOID REPAIRS,BUILDING MAINTENANCE,1010,07-Oct-20,179886,789.25,GRACELANDS COMPLETE MAINTENANCE SERVICES LTD,GRA007
EFDC,YB110,SUPERVISION/MANAGEMENT SPECIAL,ELECTRICITY,1120,07-Oct-20,179883,-34.11,BRITISH GAS,BRI040
EFDC,RM100,RESPONSIVE & VOID REPAIRS,BUILDING MAINTENANCE,1010,07-Oct-20,179885,870.15,GRACELANDS COMPLETE MAINTENANCE SERVICES LTD,GRA007
EFDC,YB110,SUPERVISION/MANAGEMENT SPECIAL,ELECTRICITY,1120,07-Oct-20,179883,9.17,BRITISH GAS,BRI040
EFDC,YB110,SUPERVISION/MANAGEMENT SPECIAL,ELECTRICITY,1120,07-Oct-20,179883,18.14,BRITISH GAS,BRI040
EFDC,RM100,RESPONSIVE & VOID REPAIRS,BUILDING MAINTENANCE,1010,07-Oct-20,164658,864.77,GRACELANDS COMPLETE MAINTENANCE SERVICES LTD,GRA007
EFDC,YB110,SUPERVISION/MANAGEMENT SPECIAL,ELECTRICITY,1120,07-Oct-20,179883,20.53,BRITISH GAS,BRI040
EFDC,YB110,SUPERVISION/MANAGEMENT SPECIAL,ELECTRICITY,1120,07-Oct-20,179883,20.54,BRITISH GAS,BRI040
EFDC,YB110,SUPERVISION/MANAGEMENT SPECIAL,ELECTRICITY,1120,07-Oct-20,179883,39.45,BRITISH GAS,BRI040
EFDC,YB110,SUPERVISION/MANAGEMENT SPECIAL,ELECTRICITY,1120,07-Oct-20,179883,33.16,BRITISH GAS,BRI040
EFDC,YB110,SUPERVISION/MANAGEMENT SPECIAL,ELECTRICITY,1120,07-Oct-20,179883,19.2,BRITISH GAS,BRI040
EFDC,YB110,SUPERVISION/MANAGEMENT SPECIAL,ELECTRICITY,1120,07-Oct-20,179883,16.33,BRITISH GAS,BRI040
EFDC,YB110,SUPERVISION/MANAGEMENT SPECIAL,ELECTRICITY,1120,07-Oct-20,179883,27.02,BRITISH GAS,BRI040
EFDC,YB110,SUPERVISION/MANAGEMENT SPECIAL,ELECTRICITY,1120,07-Oct-20,179883,33.5,BRITISH GAS,BRI040
EFDC,YB110,SUPERVISION/MANAGEMENT SPECIAL,ELECTRICITY,1120,07-Oct-20,179883,27.45,BRITISH GAS,BRI040
EFDC,YB110,SUPERVISION/MANAGEMENT SPECIAL,ELECTRICITY,1120,07-Oct-20,179883,37.79,BRITISH GAS,BRI040
EFDC,YB110,SUPERVISION/MANAGEMENT SPECIAL,ELECTRICITY,1120,07-Oct-20,179883,-47.72,BRITISH GAS,BRI040
EFDC,YB110,SUPERVISION/MANAGEMENT SPECIAL,ELECTRICITY,1120,07-Oct-20,179883,-32.93,BRITISH GAS,BRI040
EFDC,YB110,SUPERVISION/MANAGEMENT SPECIAL,ELECTRICITY,1120,07-Oct-20,179883,-23.59,BRITISH GAS,BRI040
EFDC,YB110,SUPERVISION/MANAGEMENT SPECIAL,ELECTRICITY,1120,07-Oct-20,179883,-39.47,BRITISH GAS,BRI040
EFDC,YB110,SUPERVISION/MANAGEMENT SPECIAL,ELECTRICITY,1120,07-Oct-20,179883,-23.49,BRITISH GAS,BRI040
EFDC,YB110,SUPERVISION/MANAGEMENT SPECIAL,ELECTRICITY,1120,07-Oct-20,179883,-14.02,BRITISH GAS,BRI040
EFDC,YB110,SUPERVISION/MANAGEMENT SPECIAL,ELECTRICITY,1120,07-Oct-20,179883,-26.1,BRITISH GAS,BRI040
EFDC,YB110,SUPERVISION/MANAGEMENT SPECIAL,ELECTRICITY,1120,07-Oct-20,179883,-24.86,BRITISH GAS,BRI040
EFDC,YB110,SUPERVISION/MANAGEMENT SPECIAL,ELECTRICITY,1120,07-Oct-20,179883,-15.91,BRITISH GAS,BRI040
EFDC,YB110,SUPERVISION/MANAGEMENT SPECIAL,ELECTRICITY,1120,07-Oct-20,179883,-18.57,BRITISH GAS,BRI040
EFDC,YB110,SUPERVISION/MANAGEMENT SPECIAL,ELECTRICITY,1120,07-Oct-20,179883,-21.63,BRITISH GAS,BRI040
EFDC,YB110,SUPERVISION/MANAGEMENT SPECIAL,ELECTRICITY,1120,07-Oct-20,179883,-22.2,BRITISH GAS,BRI040
EFDC,YB110,SUPERVISION/MANAGEMENT SPECIAL,ELECTRICITY,1120,07-Oct-20,179883,-27.53,BRITISH GAS,BRI040
EFDC,YB110,SUPERVISION/MANAGEMENT SPECIAL,ELECTRICITY,1120,07-Oct-20,179883,-33.36,BRITISH GAS,BRI040
EFDC,YB110,SUPERVISION/MANAGEMENT SPECIAL,ELECTRICITY,1120,07-Oct-20,179883,8.01,BRITISH GAS,BRI040
EFDC,YB110,SUPERVISION/MANAGEMENT SPECIAL,ELECTRICITY,1120,07-Oct-20,179883,13.61,BRITISH GAS,BRI040
EFDC,YB110,SUPERVISION/MANAGEMENT SPECIAL,ELECTRICITY,1120,07-Oct-20,179883,-40.07,BRITISH GAS,BRI040
EFDC,RM300,PLANNED & CYCLICAL MAINTENANCE,BUILDING MAINTENANCE,1010,07-Oct-20,179968,46215.76,GRACELANDS COMPLETE MAINTENANCE SERVICES LTD,GRA007
EFDC,YB110,SUPERVISION/MANAGEMENT SPECIAL,ELECTRICITY,1120,07-Oct-20,179883,-13.22,BRITISH GAS,BRI040
EFDC,YB110,SUPERVISION/MANAGEMENT SPECIAL,ELECTRICITY,1120,07-Oct-20,179883,-34.98,BRITISH GAS,BRI040
EFDC,YB110,SUPERVISION/MANAGEMENT SPECIAL,ELECTRICITY,1120,07-Oct-20,179883,-31.05,BRITISH GAS,BRI040
EFDC,YB110,SUPERVISION/MANAGEMENT SPECIAL,ELECTRICITY,1120,07-Oct-20,179883,-15.4,BRITISH GAS,BRI040
EFDC,YB110,SUPERVISION/MANAGEMENT SPECIAL,ELECTRICITY,1120,07-Oct-20,179883,-244.3,BRITISH GAS,BRI040
EFDC,YB110,SUPERVISION/MANAGEMENT SPECIAL,ELECTRICITY,1120,07-Oct-20,179883,-30.75,BRITISH GAS,BRI040
EFDC,YB110,SUPERVISION/MANAGEMENT SPECIAL,ELECTRICITY,1120,07-Oct-20,179883,-25.71,BRITISH GAS,BRI040
EFDC,YB110,SUPERVISION/MANAGEMENT SPECIAL,ELECTRICITY,1120,07-Oct-20,179883,-37.39,BRITISH GAS,BRI040
EFDC,YB110,SUPERVISION/MANAGEMENT SPECIAL,ELECTRICITY,1120,07-Oct-20,179883,-23.24,BRITISH GAS,BRI040
EFDC,YB110,SUPERVISION/MANAGEMENT SPECIAL,ELECTRICITY,1120,07-Oct-20,179883,-31.9,BRITISH GAS,BRI040
EFDC,YB110,SUPERVISION/MANAGEMENT SPECIAL,ELECTRICITY,1120,07-Oct-20,179883,-42.19,BRITISH GAS,BRI040
EFDC,YB110,SUPERVISION/MANAGEMENT SPECIAL,ELECTRICITY,1120,07-Oct-20,179883,-10.08,BRITISH GAS,BRI040
EFDC,YB500,SUPERVISION/MANAGEMENT SPECIAL,ELECTRICITY,1120,07-Oct-20,179883,8.87,BRITISH GAS,BRI040
EFDC,YB500,SUPERVISION/MANAGEMENT SPECIAL,ELECTRICITY,1120,07-Oct-20,179883,523.38,BRITISH GAS,BRI040
EFDC,YB500,SUPERVISION/MANAGEMENT SPECIAL,ELECTRICITY,1120,07-Oct-20,179883,-9.94,BRITISH GAS,BRI040
EFDC,YB500,SUPERVISION/MANAGEMENT SPECIAL,ELECTRICITY,1120,07-Oct-20,179883,-10.79,BRITISH GAS,BRI040
EFDC,YB500,SUPERVISION/MANAGEMENT SPECIAL,ELECTRICITY,1120,07-Oct-20,179883,-8.87,BRITISH GAS,BRI040
EFDC,YB500,SUPERVISION/MANAGEMENT SPECIAL,ELECTRICITY,1120,07-Oct-20,179883,-9.64,BRITISH GAS,BRI040
EFDC,CD112,"COMMUNITY, HEALTH & WELLBEING",TRAINING EXPENSES,0310,07-Oct-20,180001,795,LAMBOURNE END LTD,LAM010
EFDC,YB500,SUPERVISION/MANAGEMENT SPECIAL,ELECTRICITY,1120,07-Oct-20,179883,55.63,BRITISH GAS,BRI040
EFDC,YB500,SUPERVISION/MANAGEMENT SPECIAL,ELECTRICITY,1120,07-Oct-20,179883,7.99,BRITISH GAS,BRI040
EFDC,32060,OTHER SUPPORT SERVICES,AGENCY STAFF,0120,07-Oct-20,180002,1936,LAW ABSOLUTE LIMITED,LAW009
EFDC,32060,OTHER SUPPORT SERVICES,AGENCY STAFF,0120,07-Oct-20,179674,1628,LAW ABSOLUTE LIMITED,LAW009
EFDC,YB500,SUPERVISION/MANAGEMENT SPECIAL,ELECTRICITY,1120,07-Oct-20,179883,7.87,BRITISH GAS,BRI040
EFDC,YB500,SUPERVISION/MANAGEMENT SPECIAL,ELECTRICITY,1120,07-Oct-20,179883,8.12,BRITISH GAS,BRI040
EFDC,YB500,SUPERVISION/MANAGEMENT SPECIAL,ELECTRICITY,1120,07-Oct-20,179883,-43.93,BRITISH GAS,BRI040
EFDC,YB500,SUPERVISION/MANAGEMENT SPECIAL,ELECTRICITY,1120,07-Oct-20,179883,10.79,BRITISH GAS,BRI040
EFDC,YB500,SUPERVISION/MANAGEMENT SPECIAL,ELECTRICITY,1120,07-Oct-20,179883,-34.37,BRITISH GAS,BRI040
EFDC,YB500,SUPERVISION/MANAGEMENT SPECIAL,ELECTRICITY,1120,07-Oct-20,179883,8.32,BRITISH GAS,BRI040
EFDC,YB500,SUPERVISION/MANAGEMENT SPECIAL,ELECTRICITY,1120,07-Oct-20,179883,233.2,BRITISH GAS,BRI040
EFDC,YB500,SUPERVISION/MANAGEMENT SPECIAL,ELECTRICITY,1120,07-Oct-20,179883,7.93,BRITISH GAS,BRI040
EFDC,YB500,SUPERVISION/MANAGEMENT SPECIAL,ELECTRICITY,1120,07-Oct-20,179883,15.39,BRITISH GAS,BRI040
EFDC,YB500,SUPERVISION/MANAGEMENT SPECIAL,ELECTRICITY,1120,07-Oct-20,179883,14.09,BRITISH GAS,BRI040
EFDC,YB500,SUPERVISION/MANAGEMENT SPECIAL,ELECTRICITY,1120,07-Oct-20,179883,6.11,BRITISH GAS,BRI040
EFDC,YB500,SUPERVISION/MANAGEMENT SPECIAL,ELECTRICITY,1120,07-Oct-20,179883,14.06,BRITISH GAS,BRI040
EFDC,YB500,SUPERVISION/MANAGEMENT SPECIAL,ELECTRICITY,1120,07-Oct-20,179883,7.04,BRITISH GAS,BRI040
EFDC,YB500,SUPERVISION/MANAGEMENT SPECIAL,ELECTRICITY,1120,07-Oct-20,179883,8.57,BRITISH GAS,BRI040
EFDC,YB500,SUPERVISION/MANAGEMENT SPECIAL,ELECTRICITY,1120,07-Oct-20,179883,47.55,BRITISH GAS,BRI040
EFDC,YB500,SUPERVISION/MANAGEMENT SPECIAL,ELECTRICITY,1120,07-Oct-20,179883,272.96,BRITISH GAS,BRI040
EFDC,YB500,SUPERVISION/MANAGEMENT SPECIAL,ELECTRICITY,1120,07-Oct-20,179883,645.03,BRITISH GAS,BRI040
EFDC,YB110,SUPERVISION/MANAGEMENT SPECIAL,ELECTRICITY,1120,07-Oct-20,179883,15.4,BRITISH GAS,BRI040
EFDC,YB500,SUPERVISION/MANAGEMENT SPECIAL,ELECTRICITY,1120,07-Oct-20,179883,10.71,BRITISH GAS,BRI040
EFDC,YB110,SUPERVISION/MANAGEMENT SPECIAL,ELECTRICITY,1120,07-Oct-20,179883,10.41,BRITISH GAS,BRI040
EFDC,YB110,SUPERVISION/MANAGEMENT SPECIAL,ELECTRICITY,1120,07-Oct-20,179883,7.89,BRITISH GAS,BRI040
EFDC,YB110,SUPERVISION/MANAGEMENT SPECIAL,ELECTRICITY,1120,07-Oct-20,179883,14.15,BRITISH GAS,BRI040
EFDC,DC120,PLANNING REGULATORY SERVICES,PUBLICITY,3360,07-Oct-20,180031,595,NEWSQUEST MEDIA GROUP,NEW002
EFDC,YB110,SUPERVISION/MANAGEMENT SPECIAL,ELECTRICITY,1120,07-Oct-20,179883,7.64,BRITISH GAS,BRI040
EFDC,YB110,SUPERVISION/MANAGEMENT SPECIAL,ELECTRICITY,1120,07-Oct-20,179883,36.73,BRITISH GAS,BRI040
EFDC,YB110,SUPERVISION/MANAGEMENT SPECIAL,ELECTRICITY,1120,07-Oct-20,179883,13.14,BRITISH GAS,BRI040
EFDC,YB110,SUPERVISION/MANAGEMENT SPECIAL,ELECTRICITY,1120,07-Oct-20,179883,25.47,BRITISH GAS,BRI040
EFDC,YB110,SUPERVISION/MANAGEMENT SPECIAL,ELECTRICITY,1120,07-Oct-20,179883,16.05,BRITISH GAS,BRI040
EFDC,YB110,SUPERVISION/MANAGEMENT SPECIAL,ELECTRICITY,1120,07-Oct-20,179883,13.65,BRITISH GAS,BRI040
EFDC,YB110,SUPERVISION/MANAGEMENT SPECIAL,ELECTRICITY,1120,07-Oct-20,179883,3.29,BRITISH GAS,BRI040
EFDC,YB110,SUPERVISION/MANAGEMENT SPECIAL,ELECTRICITY,1120,07-Oct-20,179883,4.35,BRITISH GAS,BRI040
EFDC,YB110,SUPERVISION/MANAGEMENT SPECIAL,ELECTRICITY,1120,07-Oct-20,179883,3.17,BRITISH GAS,BRI040
EFDC,YB500,SUPERVISION/MANAGEMENT SPECIAL,ELECTRICITY,1120,07-Oct-20,179883,-9.67,BRITISH GAS,BRI040
EFDC,YB110,SUPERVISION/MANAGEMENT SPECIAL,ELECTRICITY,1120,07-Oct-20,179883,14.12,BRITISH GAS,BRI040
EFDC,YB500,SUPERVISION/MANAGEMENT SPECIAL,ELECTRICITY,1120,07-Oct-20,179883,738,BRITISH GAS,BRI040
EFDC,YB110,SUPERVISION/MANAGEMENT SPECIAL,ELECTRICITY,1120,07-Oct-20,179883,14.91,BRITISH GAS,BRI040
EFDC,YB110,SUPERVISION/MANAGEMENT SPECIAL,ELECTRICITY,1120,07-Oct-20,179883,7.38,BRITISH GAS,BRI040
EFDC,YB110,SUPERVISION/MANAGEMENT SPECIAL,ELECTRICITY,1120,07-Oct-20,179883,7.38,BRITISH GAS,BRI040
EFDC,YB110,SUPERVISION/MANAGEMENT SPECIAL,ELECTRICITY,1120,07-Oct-20,179883,7.89,BRITISH GAS,BRI040
EFDC,YB110,SUPERVISION/MANAGEMENT SPECIAL,ELECTRICITY,1120,07-Oct-20,179883,7.38,BRITISH GAS,BRI040
EFDC,YB110,SUPERVISION/MANAGEMENT SPECIAL,ELECTRICITY,1120,07-Oct-20,179883,35.12,BRITISH GAS,BRI040
EFDC,YB110,SUPERVISION/MANAGEMENT SPECIAL,ELECTRICITY,1120,07-Oct-20,179883,7.38,BRITISH GAS,BRI040
EFDC,YB110,SUPERVISION/MANAGEMENT SPECIAL,ELECTRICITY,1120,07-Oct-20,179883,7.85,BRITISH GAS,BRI040
EFDC,YB500,SUPERVISION/MANAGEMENT SPECIAL,ELECTRICITY,1120,07-Oct-20,179883,-32.29,BRITISH GAS,BRI040
EFDC,YB520,SUPERVISION/MANAGEMENT SPECIAL,ELECTRICITY,1120,07-Oct-20,179883,151.74,BRITISH GAS,BRI040
EFDC,YB520,SUPERVISION/MANAGEMENT SPECIAL,ELECTRICITY,1120,07-Oct-20,179883,173.55,BRITISH GAS,BRI040
EFDC,YB500,SUPERVISION/MANAGEMENT SPECIAL,ELECTRICITY,1120,07-Oct-20,179883,153.57,BRITISH GAS,BRI040
EFDC,YB500,SUPERVISION/MANAGEMENT SPECIAL,ELECTRICITY,1120,07-Oct-20,179883,-9.87,BRITISH GAS,BRI040
EFDC,YB110,SUPERVISION/MANAGEMENT SPECIAL,ELECTRICITY,1120,07-Oct-20,179883,4.21,BRITISH GAS,BRI040
EFDC,EH160,OTHER ACTIVITIES,ELECTRICITY,1120,07-Oct-20,179883,9.67,BRITISH GAS,BRI040
EFDC,YB500,SUPERVISION/MANAGEMENT SPECIAL,ELECTRICITY,1120,07-Oct-20,179883,6.87,BRITISH GAS,BRI040
EFDC,UO130,LAND & PROPERTY,ELECTRICITY,1120,07-Oct-20,179883,2.4,BRITISH GAS,BRI040
EFDC,UO130,LAND & PROPERTY,ELECTRICITY,1120,07-Oct-20,179883,10.94,BRITISH GAS,BRI040
EFDC,UO130,LAND & PROPERTY,ELECTRICITY,1120,07-Oct-20,179883,25.55,BRITISH GAS,BRI040
EFDC,FD100,LAND DRAINAGE/SEWERAGE,ELECTRICITY,1120,07-Oct-20,179883,10.82,BRITISH GAS,BRI040
EFDC,EH112,LAND DRAINAGE/SEWERAGE,ELECTRICITY,1120,07-Oct-20,179883,116.56,BRITISH GAS,BRI040
EFDC,CH110,"MUSEUM, HERITAGE & CULTURE",ELECTRICITY,1120,07-Oct-20,179883,352.31,BRITISH GAS,BRI040
EFDC,EH160,OTHER ACTIVITIES,ELECTRICITY,1120,07-Oct-20,179883,8.86,BRITISH GAS,BRI040
EFDC,23140,ACCOMMODATION,ELECTRICITY,1120,07-Oct-20,179883,206.57,BRITISH GAS,BRI040
EFDC,EH160,OTHER ACTIVITIES,ELECTRICITY,1120,07-Oct-20,179883,-32.45,BRITISH GAS,BRI040
EFDC,EH160,OTHER ACTIVITIES,ELECTRICITY,1120,07-Oct-20,179883,-35.89,BRITISH GAS,BRI040
EFDC,EH160,OTHER ACTIVITIES,ELECTRICITY,1120,07-Oct-20,179883,-77.35,BRITISH GAS,BRI040
EFDC,UO130,LAND & PROPERTY,ELECTRICITY,1120,07-Oct-20,179883,21.53,BRITISH GAS,BRI040
EFDC,EH160,OTHER ACTIVITIES,ELECTRICITY,1120,07-Oct-20,179883,6.62,BRITISH GAS,BRI040
EFDC,RS301,NORTH WEALD CENTRE,ELECTRICITY,1120,07-Oct-20,179883,13.89,BRITISH GAS,BRI040
EFDC,EH160,OTHER ACTIVITIES,ELECTRICITY,1120,07-Oct-20,179883,8.95,BRITISH GAS,BRI040
EFDC,EH160,OTHER ACTIVITIES,ELECTRICITY,1120,07-Oct-20,179883,7.98,BRITISH GAS,BRI040
EFDC,EH160,OTHER ACTIVITIES,ELECTRICITY,1120,07-Oct-20,179883,7.38,BRITISH GAS,BRI040
EFDC,EH160,OTHER ACTIVITIES,ELECTRICITY,1120,07-Oct-20,179883,7.38,BRITISH GAS,BRI040
EFDC,27110,ACCOMMODATION,ELECTRICITY,1120,07-Oct-20,179883,65.61,BRITISH GAS,BRI040
EFDC,27110,ACCOMMODATION,ELECTRICITY,1120,07-Oct-20,179883,33.18,BRITISH GAS,BRI040
EFDC,43310,CONTRACT & TECH SUPPORT SERVIC,AGENCY STAFF,0120,07-Oct-20,179902,613.5,ADECCO UK LTD,ADE002
EFDC,27110,ACCOMMODATION,ELECTRICITY,1120,07-Oct-20,179883,59.47,BRITISH GAS,BRI040
EFDC,37600,PLANNING SUPPORT SERVICES,AGENCY STAFF,0120,07-Oct-20,179903,842.06,ADECCO UK LTD,ADE002
EFDC,27050,ACCOMMODATION,ELECTRICITY,1120,07-Oct-20,179883,69.63,BRITISH GAS,BRI040
EFDC,27150,"COMMUNITY, HEALTH & WELLBEING",ELECTRICITY,1120,07-Oct-20,179883,438.72,BRITISH GAS,BRI040
EFDC,33065,FINANCE - OTHER ACTIVITIES,PROFESSIONAL FEES,3420,07-Oct-20,179936,49797,DELOITTE LLP,DEL005
EFDC,YB620,SUPERVISION/MANAGEMENT SPECIAL,ELECTRICITY,1120,07-Oct-20,179883,1134.26,BRITISH GAS,BRI040
EFDC,EH160,OTHER ACTIVITIES,ELECTRICITY,1120,07-Oct-20,179883,7.07,BRITISH GAS,BRI040
EFDC,33060,FINANCE - OTHER ACTIVITIES,AGENCY STAFF,0120,07-Oct-20,178905,1888,HAYS SPECIALIST RECRUITMENT LTD,HAY011
EFDC,YB500,SUPERVISION/MANAGEMENT SPECIAL,ELECTRICITY,1120,07-Oct-20,179883,14.52,BRITISH GAS,BRI040
EFDC,YB500,SUPERVISION/MANAGEMENT SPECIAL,ELECTRICITY,1120,07-Oct-20,179883,7.59,BRITISH GAS,BRI040
EFDC,YB500,SUPERVISION/MANAGEMENT SPECIAL,ELECTRICITY,1120,07-Oct-20,179883,16.28,BRITISH GAS,BRI040
EFDC,YB500,SUPERVISION/MANAGEMENT SPECIAL,ELECTRICITY,1120,07-Oct-20,179883,164.67,BRITISH GAS,BRI040
EFDC,YB500,SUPERVISION/MANAGEMENT SPECIAL,ELECTRICITY,1120,07-Oct-20,179883,16.4,BRITISH GAS,BRI040
EFDC,YB500,SUPERVISION/MANAGEMENT SPECIAL,ELECTRICITY,1120,07-Oct-20,179883,32.27,BRITISH GAS,BRI040
EFDC,YB500,SUPERVISION/MANAGEMENT SPECIAL,ELECTRICITY,1120,07-Oct-20,179883,35.05,BRITISH GAS,BRI040
EFDC,YB500,SUPERVISION/MANAGEMENT SPECIAL,ELECTRICITY,1120,07-Oct-20,179883,6.62,BRITISH GAS,BRI040
EFDC,YB500,SUPERVISION/MANAGEMENT SPECIAL,ELECTRICITY,1120,07-Oct-20,179883,8.5,BRITISH GAS,BRI040
EFDC,YB500,SUPERVISION/MANAGEMENT SPECIAL,ELECTRICITY,1120,07-Oct-20,179883,10.88,BRITISH GAS,BRI040
EFDC,YB500,SUPERVISION/MANAGEMENT SPECIAL,ELECTRICITY,1120,07-Oct-20,179883,6.95,BRITISH GAS,BRI040
EFDC,YB500,SUPERVISION/MANAGEMENT SPECIAL,ELECTRICITY,1120,07-Oct-20,179883,30.36,BRITISH GAS,BRI040
EFDC,23130,ACCOMMODATION,ELECTRICITY,1120,07-Oct-20,179883,113.42,BRITISH GAS,BRI040
EFDC,35400,CONTRACT & TECH SUPPORT SERVIC,AGENCY STAFF,0120,07-Oct-20,178498,633.48,HAYS SPECIALIST RECRUITMENT LTD,HAY011
EFDC,YB110,SUPERVISION/MANAGEMENT SPECIAL,ELECTRICITY,1120,07-Oct-20,179883,14.03,BRITISH GAS,BRI040
EFDC,36800,HRA SUPPORT SERVICES,AGENCY STAFF,0120,07-Oct-20,179323,747.27,HAYS SPECIALIST RECRUITMENT LTD,HAY011
EFDC,33060,FINANCE - OTHER ACTIVITIES,AGENCY STAFF,0120,07-Oct-20,178907,1250.64,HAYS SPECIALIST RECRUITMENT LTD,HAY011
EFDC,32120,OTHER SUPPORT SERVICES,EMPLOYEES - OTHER PAYMENTS,0191,07-Oct-20,179975,577.8,HARLOW OCCUPATIONAL HEALTH SERVICE LTD,HAR006
EFDC,32120,OTHER SUPPORT SERVICES,EMPLOYEES - OTHER PAYMENTS,0191,07-Oct-20,179975,443.7,HARLOW OCCUPATIONAL HEALTH SERVICE LTD,HAR006
EFDC,32120,OTHER SUPPORT SERVICES,EMPLOYEES - OTHER PAYMENTS,0191,07-Oct-20,179975,311.4,HARLOW OCCUPATIONAL HEALTH SERVICE LTD,HAR006
EFDC,32120,OTHER SUPPORT SERVICES,EMPLOYEES - OTHER PAYMENTS,0191,07-Oct-20,179975,26.25,HARLOW OCCUPATIONAL HEALTH SERVICE LTD,HAR006
EFDC,32120,OTHER SUPPORT SERVICES,EMPLOYEES - OTHER PAYMENTS,0191,07-Oct-20,179975,1098,HARLOW OCCUPATIONAL HEALTH SERVICE LTD,HAR006
EFDC,32120,OTHER SUPPORT SERVICES,EMPLOYEES - OTHER PAYMENTS,0191,07-Oct-20,179975,1720,HARLOW OCCUPATIONAL HEALTH SERVICE LTD,HAR006
EFDC,32120,OTHER SUPPORT SERVICES,EMPLOYEES - OTHER PAYMENTS,0191,07-Oct-20,179975,84,HARLOW OCCUPATIONAL HEALTH SERVICE LTD,HAR006
EFDC,23140,ACCOMMODATION,ELECTRICITY,1120,07-Oct-20,179883,439.91,BRITISH GAS,BRI040
EFDC,UO130,LAND & PROPERTY,ELECTRICITY,1120,07-Oct-20,179883,14.47,BRITISH GAS,BRI040
EFDC,TI190,LAND & PROPERTY,ELECTRICITY,1120,07-Oct-20,179883,6.87,BRITISH GAS,BRI040
EFDC,RS302,NORTH WEALD CENTRE,ELECTRICITY,1120,07-Oct-20,179883,7.59,BRITISH GAS,BRI040
EFDC,35400,CONTRACT & TECH SUPPORT SERVIC,AGENCY STAFF,0120,07-Oct-20,178497,525.12,HAYS SPECIALIST RECRUITMENT LTD,HAY011
EFDC,YB110,SUPERVISION/MANAGEMENT SPECIAL,ELECTRICITY,1120,07-Oct-20,179883,7.13,BRITISH GAS,BRI040
EFDC,YB110,SUPERVISION/MANAGEMENT SPECIAL,ELECTRICITY,1120,07-Oct-20,179883,44.09,BRITISH GAS,BRI040
EFDC,YB110,SUPERVISION/MANAGEMENT SPECIAL,ELECTRICITY,1120,07-Oct-20,179883,36.15,BRITISH GAS,BRI040
EFDC,YB110,SUPERVISION/MANAGEMENT SPECIAL,ELECTRICITY,1120,07-Oct-20,179883,41.04,BRITISH GAS,BRI040
EFDC,YB110,SUPERVISION/MANAGEMENT SPECIAL,ELECTRICITY,1120,07-Oct-20,179883,15.15,BRITISH GAS,BRI040
EFDC,YB110,SUPERVISION/MANAGEMENT SPECIAL,ELECTRICITY,1120,07-Oct-20,179883,26.31,BRITISH GAS,BRI040
EFDC,YB110,SUPERVISION/MANAGEMENT SPECIAL,ELECTRICITY,1120,07-Oct-20,179883,15.14,BRITISH GAS,BRI040
EFDC,YB110,SUPERVISION/MANAGEMENT SPECIAL,ELECTRICITY,1120,07-Oct-20,179883,10.9,BRITISH GAS,BRI040
EFDC,YB110,SUPERVISION/MANAGEMENT SPECIAL,ELECTRICITY,1120,07-Oct-20,179883,15.4,BRITISH GAS,BRI040
EFDC,YB110,SUPERVISION/MANAGEMENT SPECIAL,ELECTRICITY,1120,07-Oct-20,179883,15.53,BRITISH GAS,BRI040
EFDC,YB110,SUPERVISION/MANAGEMENT SPECIAL,ELECTRICITY,1120,07-Oct-20,179883,17.27,BRITISH GAS,BRI040
EFDC,YB110,SUPERVISION/MANAGEMENT SPECIAL,ELECTRICITY,1120,07-Oct-20,179883,30.56,BRITISH GAS,BRI040
EFDC,YB110,SUPERVISION/MANAGEMENT SPECIAL,ELECTRICITY,1120,07-Oct-20,179883,6.62,BRITISH GAS,BRI040
EFDC,YB110,SUPERVISION/MANAGEMENT SPECIAL,ELECTRICITY,1120,07-Oct-20,179883,7.13,BRITISH GAS,BRI040
EFDC,YB110,SUPERVISION/MANAGEMENT SPECIAL,ELECTRICITY,1120,07-Oct-20,179883,36.94,BRITISH GAS,BRI040
EFDC,YB110,SUPERVISION/MANAGEMENT SPECIAL,ELECTRICITY,1120,07-Oct-20,179883,10.48,BRITISH GAS,BRI040
EFDC,YB110,SUPERVISION/MANAGEMENT SPECIAL,ELECTRICITY,1120,07-Oct-20,179883,26.33,BRITISH GAS,BRI040
EFDC,YB110,SUPERVISION/MANAGEMENT SPECIAL,ELECTRICITY,1120,07-Oct-20,179883,30.95,BRITISH GAS,BRI040
EFDC,YB110,SUPERVISION/MANAGEMENT SPECIAL,ELECTRICITY,1120,07-Oct-20,179883,41.78,BRITISH GAS,BRI040
EFDC,YB110,SUPERVISION/MANAGEMENT SPECIAL,ELECTRICITY,1120,07-Oct-20,179883,13.78,BRITISH GAS,BRI040
EFDC,YB110,SUPERVISION/MANAGEMENT SPECIAL,ELECTRICITY,1120,07-Oct-20,179883,13.76,BRITISH GAS,BRI040
EFDC,YB110,SUPERVISION/MANAGEMENT SPECIAL,ELECTRICITY,1120,07-Oct-20,179883,10,BRITISH GAS,BRI040
EFDC,YB110,SUPERVISION/MANAGEMENT SPECIAL,ELECTRICITY,1120,07-Oct-20,179883,13.53,BRITISH GAS,BRI040
EFDC,YB110,SUPERVISION/MANAGEMENT SPECIAL,ELECTRICITY,1120,07-Oct-20,179883,7.13,BRITISH GAS,BRI040
EFDC,YB110,SUPERVISION/MANAGEMENT SPECIAL,ELECTRICITY,1120,07-Oct-20,179883,7.13,BRITISH GAS,BRI040
EFDC,YB120,SUPERVISION/MANAGEMENT SPECIAL,AGENCY STAFF,0120,07-Oct-20,180053,615.6,REED SPECIALIST RECRUITMENT LTD,REE002
EFDC,YB120,SUPERVISION/MANAGEMENT SPECIAL,AGENCY STAFF,0120,07-Oct-20,180054,615.6,REED SPECIALIST RECRUITMENT LTD,REE002
EFDC,YB120,SUPERVISION/MANAGEMENT SPECIAL,AGENCY STAFF,0120,07-Oct-20,180056,615.6,REED SPECIALIST RECRUITMENT LTD,REE002
EFDC,YB110,SUPERVISION/MANAGEMENT SPECIAL,ELECTRICITY,1120,07-Oct-20,179883,14.4,BRITISH GAS,BRI040
EFDC,YB110,SUPERVISION/MANAGEMENT SPECIAL,ELECTRICITY,1120,07-Oct-20,179883,7.64,BRITISH GAS,BRI040
EFDC,YB110,SUPERVISION/MANAGEMENT SPECIAL,ELECTRICITY,1120,07-Oct-20,179883,6.77,BRITISH GAS,BRI040
EFDC,YB110,SUPERVISION/MANAGEMENT SPECIAL,ELECTRICITY,1120,07-Oct-20,179883,19.54,BRITISH GAS,BRI040
EFDC,YB110,SUPERVISION/MANAGEMENT SPECIAL,ELECTRICITY,1120,07-Oct-20,179883,16.15,BRITISH GAS,BRI040
EFDC,YB110,SUPERVISION/MANAGEMENT SPECIAL,ELECTRICITY,1120,07-Oct-20,179883,11.65,BRITISH GAS,BRI040
EFDC,YB110,SUPERVISION/MANAGEMENT SPECIAL,ELECTRICITY,1120,07-Oct-20,179883,7.89,BRITISH GAS,BRI040
EFDC,YB110,SUPERVISION/MANAGEMENT SPECIAL,ELECTRICITY,1120,07-Oct-20,179883,14.77,BRITISH GAS,BRI040
EFDC,YB110,SUPERVISION/MANAGEMENT SPECIAL,ELECTRICITY,1120,07-Oct-20,179883,16.91,BRITISH GAS,BRI040
EFDC,YB110,SUPERVISION/MANAGEMENT SPECIAL,ELECTRICITY,1120,07-Oct-20,179883,12.35,BRITISH GAS,BRI040
EFDC,YB110,SUPERVISION/MANAGEMENT SPECIAL,ELECTRICITY,1120,07-Oct-20,179883,81.64,BRITISH GAS,BRI040
EFDC,YB110,SUPERVISION/MANAGEMENT SPECIAL,ELECTRICITY,1120,07-Oct-20,179883,37.13,BRITISH GAS,BRI040
EFDC,YB110,SUPERVISION/MANAGEMENT SPECIAL,ELECTRICITY,1120,07-Oct-20,179883,11.17,BRITISH GAS,BRI040
EFDC,YB110,SUPERVISION/MANAGEMENT SPECIAL,ELECTRICITY,1120,07-Oct-20,179883,10.85,BRITISH GAS,BRI040
EFDC,YB110,SUPERVISION/MANAGEMENT SPECIAL,ELECTRICITY,1120,07-Oct-20,179883,10.76,BRITISH GAS,BRI040
EFDC,YB110,SUPERVISION/MANAGEMENT SPECIAL,ELECTRICITY,1120,07-Oct-20,179883,11.65,BRITISH GAS,BRI040
EFDC,YB110,SUPERVISION/MANAGEMENT SPECIAL,ELECTRICITY,1120,07-Oct-20,179883,10.14,BRITISH GAS,BRI040
EFDC,YB110,SUPERVISION/MANAGEMENT SPECIAL,ELECTRICITY,1120,07-Oct-20,179883,15.28,BRITISH GAS,BRI040
EFDC,YB110,SUPERVISION/MANAGEMENT SPECIAL,ELECTRICITY,1120,07-Oct-20,179883,10.15,BRITISH GAS,BRI040
EFDC,YB110,SUPERVISION/MANAGEMENT SPECIAL,ELECTRICITY,1120,07-Oct-20,179883,14.78,BRITISH GAS,BRI040
EFDC,YB110,SUPERVISION/MANAGEMENT SPECIAL,ELECTRICITY,1120,07-Oct-20,179883,45.12,BRITISH GAS,BRI040
EFDC,YB110,SUPERVISION/MANAGEMENT SPECIAL,ELECTRICITY,1120,07-Oct-20,179883,21.44,BRITISH GAS,BRI040
EFDC,YB110,SUPERVISION/MANAGEMENT SPECIAL,ELECTRICITY,1120,07-Oct-20,179883,67.46,BRITISH GAS,BRI040
EFDC,YB110,SUPERVISION/MANAGEMENT SPECIAL,ELECTRICITY,1120,07-Oct-20,179883,47.37,BRITISH GAS,BRI040
EFDC,YB110,SUPERVISION/MANAGEMENT SPECIAL,ELECTRICITY,1120,07-Oct-20,179883,26.98,BRITISH GAS,BRI040
EFDC,YB110,SUPERVISION/MANAGEMENT SPECIAL,ELECTRICITY,1120,07-Oct-20,179883,10.07,BRITISH GAS,BRI040
EFDC,YB110,SUPERVISION/MANAGEMENT SPECIAL,ELECTRICITY,1120,07-Oct-20,179883,13.89,BRITISH GAS,BRI040
EFDC,YB110,SUPERVISION/MANAGEMENT SPECIAL,ELECTRICITY,1120,07-Oct-20,179883,18.91,BRITISH GAS,BRI040
EFDC,YB110,SUPERVISION/MANAGEMENT SPECIAL,ELECTRICITY,1120,07-Oct-20,179883,10.61,BRITISH GAS,BRI040
EFDC,CAPGF,GENERAL FUND CAPITAL,CAPITAL SOFTWARE,K340,07-Oct-20,178991,10,SELECT SERVICE TELECOMMUNICATIONS LTD,SEL006
EFDC,CAPGF,GENERAL FUND CAPITAL,CAPITAL SOFTWARE,K340,07-Oct-20,178991,720,SELECT SERVICE TELECOMMUNICATIONS LTD,SEL006
EFDC,YB110,SUPERVISION/MANAGEMENT SPECIAL,ELECTRICITY,1120,07-Oct-20,179883,13.21,BRITISH GAS,BRI040
EFDC,OS110,PARKS & GROUNDS,GROUNDS MAINTENANCE,1040,07-Oct-20,178957,185,G A & D PERRY BUILDING CONTRACTORS,PER005
EFDC,YB120,SUPERVISION/MANAGEMENT SPECIAL,AGENCY STAFF,0120,07-Oct-20,180057,615.6,REED SPECIALIST RECRUITMENT LTD,REE002
EFDC,YB110,SUPERVISION/MANAGEMENT SPECIAL,ELECTRICITY,1120,07-Oct-20,179883,12.76,BRITISH GAS,BRI040
EFDC,YB110,SUPERVISION/MANAGEMENT SPECIAL,ELECTRICITY,1120,07-Oct-20,179883,15.28,BRITISH GAS,BRI040
EFDC,YB110,SUPERVISION/MANAGEMENT SPECIAL,ELECTRICITY,1120,07-Oct-20,179883,26.51,BRITISH GAS,BRI040
EFDC,YB110,SUPERVISION/MANAGEMENT SPECIAL,ELECTRICITY,1120,07-Oct-20,179883,55.47,BRITISH GAS,BRI040
EFDC,33080,FINANCE - OTHER ACTIVITIES,ANNUAL SUPPORT /  LICENSES,3872,07-Oct-20,178959,714.6,PHOENIX SOFTWARE LTD,PHO002
EFDC,33080,FINANCE - OTHER ACTIVITIES,ANNUAL SUPPORT /  LICENSES,3872,07-Oct-20,178959,1809.15,PHOENIX SOFTWARE LTD,PHO002
EFDC,33080,FINANCE - OTHER ACTIVITIES,ANNUAL SUPPORT /  LICENSES,3872,07-Oct-20,178959,244.8,PHOENIX SOFTWARE LTD,PHO002
EFDC,33080,FINANCE - OTHER ACTIVITIES,ANNUAL SUPPORT /  LICENSES,3872,07-Oct-20,178959,111.3,PHOENIX SOFTWARE LTD,PHO002
EFDC,YB110,SUPERVISION/MANAGEMENT SPECIAL,ELECTRICITY,1120,07-Oct-20,179883,19.04,BRITISH GAS,BRI040
EFDC,YB110,SUPERVISION/MANAGEMENT SPECIAL,ELECTRICITY,1120,07-Oct-20,179883,25.8,BRITISH GAS,BRI040
EFDC,OS110,PARKS & GROUNDS,GROUNDS MAINTENANCE,1040,07-Oct-20,178957,2140,G A & D PERRY BUILDING CONTRACTORS,PER005
EFDC,35500,CONTRACT & TECH SUPPORT SERVIC,PROFESSIONAL FEES,3420,07-Oct-20,178978,620,PRINCIPAL TREES LTD,PRI017
EFDC,GD190,VOLUNTARY SECTOR SUPPORT,GROUNDS MAINTENANCE,1040,07-Oct-20,178958,720,G A & D PERRY BUILDING CONTRACTORS,PER005
EFDC,35400,CONTRACT & TECH SUPPORT SERVIC,PROFESSIONAL FEES,3420,07-Oct-20,178973,550,PRINCIPAL TREES LTD,PRI017
EFDC,YB110,SUPERVISION/MANAGEMENT SPECIAL,ELECTRICITY,1120,07-Oct-20,179883,13.26,BRITISH GAS,BRI040
EFDC,YB110,SUPERVISION/MANAGEMENT SPECIAL,ELECTRICITY,1120,07-Oct-20,179883,17.42,BRITISH GAS,BRI040
EFDC,YB110,SUPERVISION/MANAGEMENT SPECIAL,ELECTRICITY,1120,07-Oct-20,179883,13.4,BRITISH GAS,BRI040
EFDC,YB110,SUPERVISION/MANAGEMENT SPECIAL,ELECTRICITY,1120,07-Oct-20,179883,11.65,BRITISH GAS,BRI040
EFDC,YB110,SUPERVISION/MANAGEMENT SPECIAL,ELECTRICITY,1120,07-Oct-20,179883,35.7,BRITISH GAS,BRI040
EFDC,YB110,SUPERVISION/MANAGEMENT SPECIAL,ELECTRICITY,1120,07-Oct-20,179883,42.03,BRITISH GAS,BRI040
EFDC,YB110,SUPERVISION/MANAGEMENT SPECIAL,ELECTRICITY,1120,07-Oct-20,179883,11.88,BRITISH GAS,BRI040
EFDC,YB110,SUPERVISION/MANAGEMENT SPECIAL,ELECTRICITY,1120,07-Oct-20,179883,10,BRITISH GAS,BRI040
EFDC,YB110,SUPERVISION/MANAGEMENT SPECIAL,ELECTRICITY,1120,07-Oct-20,179883,6.62,BRITISH GAS,BRI040
EFDC,YB110,SUPERVISION/MANAGEMENT SPECIAL,ELECTRICITY,1120,07-Oct-20,179883,14.38,BRITISH GAS,BRI040
EFDC,YB110,SUPERVISION/MANAGEMENT SPECIAL,ELECTRICITY,1120,07-Oct-20,179883,15.19,BRITISH GAS,BRI040
EFDC,YB110,SUPERVISION/MANAGEMENT SPECIAL,ELECTRICITY,1120,07-Oct-20,179883,20.46,BRITISH GAS,BRI040
EFDC,YB110,SUPERVISION/MANAGEMENT SPECIAL,ELECTRICITY,1120,07-Oct-20,179883,9.53,BRITISH GAS,BRI040
EFDC,GD190,VOLUNTARY SECTOR SUPPORT,GROUNDS MAINTENANCE,1040,07-Oct-20,178958,590,G A & D PERRY BUILDING CONTRACTORS,PER005
EFDC,YB110,SUPERVISION/MANAGEMENT SPECIAL,ELECTRICITY,1120,07-Oct-20,179883,15.02,BRITISH GAS,BRI040
EFDC,YB110,SUPERVISION/MANAGEMENT SPECIAL,ELECTRICITY,1120,07-Oct-20,179883,13.56,BRITISH GAS,BRI040
EFDC,YB120,SUPERVISION/MANAGEMENT SPECIAL,AGENCY STAFF,0120,07-Oct-20,180058,615.6,REED SPECIALIST RECRUITMENT LTD,REE002
EFDC,YB110,SUPERVISION/MANAGEMENT SPECIAL,ELECTRICITY,1120,07-Oct-20,179883,6.62,BRITISH GAS,BRI040
EFDC,YB110,SUPERVISION/MANAGEMENT SPECIAL,ELECTRICITY,1120,07-Oct-20,179883,16.76,BRITISH GAS,BRI040
EFDC,YB110,SUPERVISION/MANAGEMENT SPECIAL,ELECTRICITY,1120,07-Oct-20,179883,22.54,BRITISH GAS,BRI040
EFDC,YB110,SUPERVISION/MANAGEMENT SPECIAL,ELECTRICITY,1120,07-Oct-20,179883,21.66,BRITISH GAS,BRI040
EFDC,YB110,SUPERVISION/MANAGEMENT SPECIAL,ELECTRICITY,1120,07-Oct-20,179883,16.15,BRITISH GAS,BRI040
EFDC,YB110,SUPERVISION/MANAGEMENT SPECIAL,ELECTRICITY,1120,07-Oct-20,179883,16.53,BRITISH GAS,BRI040
EFDC,YB110,SUPERVISION/MANAGEMENT SPECIAL,ELECTRICITY,1120,07-Oct-20,179883,17.76,BRITISH GAS,BRI040
EFDC,YB110,SUPERVISION/MANAGEMENT SPECIAL,ELECTRICITY,1120,07-Oct-20,179883,40.34,BRITISH GAS,BRI040
EFDC,YB110,SUPERVISION/MANAGEMENT SPECIAL,ELECTRICITY,1120,07-Oct-20,179883,14.88,BRITISH GAS,BRI040
EFDC,YB110,SUPERVISION/MANAGEMENT SPECIAL,ELECTRICITY,1120,07-Oct-20,179883,16.78,BRITISH GAS,BRI040
EFDC,OS100,PARKS & GROUNDS,GROUNDS MAINTENANCE,1040,07-Oct-20,178977,1700,PRINCIPAL TREES LTD,PRI017
EFDC,YB110,SUPERVISION/MANAGEMENT SPECIAL,ELECTRICITY,1120,07-Oct-20,179883,12.14,BRITISH GAS,BRI040
EFDC,YB110,SUPERVISION/MANAGEMENT SPECIAL,ELECTRICITY,1120,07-Oct-20,179883,18.37,BRITISH GAS,BRI040
EFDC,YB110,SUPERVISION/MANAGEMENT SPECIAL,ELECTRICITY,1120,07-Oct-20,179883,14.02,BRITISH GAS,BRI040
EFDC,YB110,SUPERVISION/MANAGEMENT SPECIAL,ELECTRICITY,1120,07-Oct-20,179883,17.16,BRITISH GAS,BRI040
EFDC,YB110,SUPERVISION/MANAGEMENT SPECIAL,ELECTRICITY,1120,07-Oct-20,179883,14.51,BRITISH GAS,BRI040
EFDC,YB110,SUPERVISION/MANAGEMENT SPECIAL,ELECTRICITY,1120,07-Oct-20,179883,19.41,BRITISH GAS,BRI040
EFDC,YB110,SUPERVISION/MANAGEMENT SPECIAL,ELECTRICITY,1120,07-Oct-20,179883,10.64,BRITISH GAS,BRI040
EFDC,YB110,SUPERVISION/MANAGEMENT SPECIAL,ELECTRICITY,1120,07-Oct-20,179883,12.01,BRITISH GAS,BRI040
EFDC,YB110,SUPERVISION/MANAGEMENT SPECIAL,ELECTRICITY,1120,07-Oct-20,179883,12.9,BRITISH GAS,BRI040
EFDC,YB110,SUPERVISION/MANAGEMENT SPECIAL,ELECTRICITY,1120,07-Oct-20,179883,13.38,BRITISH GAS,BRI040
EFDC,YB110,SUPERVISION/MANAGEMENT SPECIAL,ELECTRICITY,1120,07-Oct-20,179883,10.25,BRITISH GAS,BRI040
EFDC,YB110,SUPERVISION/MANAGEMENT SPECIAL,ELECTRICITY,1120,07-Oct-20,179883,13.9,BRITISH GAS,BRI040
EFDC,YB110,SUPERVISION/MANAGEMENT SPECIAL,ELECTRICITY,1120,07-Oct-20,179883,14.13,BRITISH GAS,BRI040
EFDC,34160,HOUSING PROP SUPPORT SERVICES,EQUIPMENT - NEW,3010,07-Oct-20,178980,1500,PUBLIC-I GROUP LTD,PUB004
EFDC,YB110,SUPERVISION/MANAGEMENT SPECIAL,ELECTRICITY,1120,07-Oct-20,179883,16.4,BRITISH GAS,BRI040
EFDC,YB110,SUPERVISION/MANAGEMENT SPECIAL,ELECTRICITY,1120,07-Oct-20,179883,14.28,BRITISH GAS,BRI040
EFDC,YB110,SUPERVISION/MANAGEMENT SPECIAL,ELECTRICITY,1120,07-Oct-20,179883,12.5,BRITISH GAS,BRI040
EFDC,GT100,LOCAL PLAN IMPLEMENTATION,CONSULTANTS FEES,3490,07-Oct-20,180092,5000,TROWERS & HAMLINS LLP,TRO002
EFDC,YB110,SUPERVISION/MANAGEMENT SPECIAL,ELECTRICITY,1120,07-Oct-20,179883,14.35,BRITISH GAS,BRI040
EFDC,YB110,SUPERVISION/MANAGEMENT SPECIAL,ELECTRICITY,1120,07-Oct-20,179883,17.83,BRITISH GAS,BRI040
EFDC,YB110,SUPERVISION/MANAGEMENT SPECIAL,ELECTRICITY,1120,07-Oct-20,179883,14.98,BRITISH GAS,BRI040
EFDC,YB140,SUPERVISION/MANAGEMENT SPECIAL,ELECTRICITY,1120,07-Oct-20,179883,13.37,BRITISH GAS,BRI040
EFDC,32220,OTHER SUPPORT SERVICES,AGENCY STAFF,0120,07-Oct-20,179603,4867.19,CAPSTONE PROPERTY RECRUITMENT LTD,CAP001
EFDC,YB110,SUPERVISION/MANAGEMENT SPECIAL,ELECTRICITY,1120,07-Oct-20,179883,15.08,BRITISH GAS,BRI040
EFDC,YB110,SUPERVISION/MANAGEMENT SPECIAL,ELECTRICITY,1120,07-Oct-20,179883,6.96,BRITISH GAS,BRI040
EFDC,CAPHR,HRA CAPITAL,WORKS,A040,07-Oct-20,180101,562,WOODS BUILDING SERVICES LTD,WOO001
EFDC,YB110,SUPERVISION/MANAGEMENT SPECIAL,ELECTRICITY,1120,07-Oct-20,179883,23.73,BRITISH GAS,BRI040
EFDC,UO120,LAND & PROPERTY,SECURITY,1650,07-Oct-20,180093,2300,T.S.S. (TOTAL SECURITY SERVICES) LTD,TSS001
EFDC,YB110,SUPERVISION/MANAGEMENT SPECIAL,ELECTRICITY,1120,07-Oct-20,179883,14.37,BRITISH GAS,BRI040
EFDC,YB110,SUPERVISION/MANAGEMENT SPECIAL,ELECTRICITY,1120,07-Oct-20,179883,13.24,BRITISH GAS,BRI040
EFDC,YB110,SUPERVISION/MANAGEMENT SPECIAL,ELECTRICITY,1120,07-Oct-20,179883,18.24,BRITISH GAS,BRI040
EFDC,32115,OTHER SUPPORT SERVICES,TRAINING EXPENSES,0310,07-Oct-20,180008,1614,MEDIA TRAINING LTD,MED004
EFDC,YB110,SUPERVISION/MANAGEMENT SPECIAL,ELECTRICITY,1120,07-Oct-20,179883,16.33,BRITISH GAS,BRI040
EFDC,YB110,SUPERVISION/MANAGEMENT SPECIAL,ELECTRICITY,1120,07-Oct-20,179883,16.37,BRITISH GAS,BRI040
EFDC,YB110,SUPERVISION/MANAGEMENT SPECIAL,ELECTRICITY,1120,07-Oct-20,179883,17.93,BRITISH GAS,BRI040
EFDC,YB110,SUPERVISION/MANAGEMENT SPECIAL,ELECTRICITY,1120,07-Oct-20,179883,16.92,BRITISH GAS,BRI040
EFDC,YB110,SUPERVISION/MANAGEMENT SPECIAL,ELECTRICITY,1120,07-Oct-20,179883,9.9,BRITISH GAS,BRI040
EFDC,YB110,SUPERVISION/MANAGEMENT SPECIAL,ELECTRICITY,1120,07-Oct-20,179883,10.84,BRITISH GAS,BRI040
EFDC,YB110,SUPERVISION/MANAGEMENT SPECIAL,ELECTRICITY,1120,07-Oct-20,179883,15.24,BRITISH GAS,BRI040
EFDC,YB110,SUPERVISION/MANAGEMENT SPECIAL,ELECTRICITY,1120,07-Oct-20,179883,16.95,BRITISH GAS,BRI040
EFDC,YB110,SUPERVISION/MANAGEMENT SPECIAL,ELECTRICITY,1120,07-Oct-20,179883,12.44,BRITISH GAS,BRI040
EFDC,YB110,SUPERVISION/MANAGEMENT SPECIAL,ELECTRICITY,1120,07-Oct-20,179883,24.15,BRITISH GAS,BRI040
EFDC,YB110,SUPERVISION/MANAGEMENT SPECIAL,ELECTRICITY,1120,07-Oct-20,179883,11.54,BRITISH GAS,BRI040
EFDC,YB110,SUPERVISION/MANAGEMENT SPECIAL,ELECTRICITY,1120,07-Oct-20,179883,17.62,BRITISH GAS,BRI040
EFDC,YB110,SUPERVISION/MANAGEMENT SPECIAL,ELECTRICITY,1120,07-Oct-20,179883,17.51,BRITISH GAS,BRI040
EFDC,YB110,SUPERVISION/MANAGEMENT SPECIAL,ELECTRICITY,1120,07-Oct-20,179883,17.37,BRITISH GAS,BRI040
EFDC,YB110,SUPERVISION/MANAGEMENT SPECIAL,ELECTRICITY,1120,07-Oct-20,179883,16.26,BRITISH GAS,BRI040
EFDC,YB110,SUPERVISION/MANAGEMENT SPECIAL,ELECTRICITY,1120,07-Oct-20,179883,10.94,BRITISH GAS,BRI040
EFDC,YB110,SUPERVISION/MANAGEMENT SPECIAL,ELECTRICITY,1120,07-Oct-20,179883,14.69,BRITISH GAS,BRI040
EFDC,36900,HRA SUPPORT SERVICES,AGENCY STAFF,0120,07-Oct-20,179996,1053,JAMES ANDREWS RECRUITMENT SOLUTIONS LTD,JAM001
EFDC,YB110,SUPERVISION/MANAGEMENT SPECIAL,ELECTRICITY,1120,07-Oct-20,179883,14.61,BRITISH GAS,BRI040
EFDC,YB110,SUPERVISION/MANAGEMENT SPECIAL,ELECTRICITY,1120,07-Oct-20,179883,16.55,BRITISH GAS,BRI040
EFDC,YB110,SUPERVISION/MANAGEMENT SPECIAL,ELECTRICITY,1120,07-Oct-20,179883,11.89,BRITISH GAS,BRI040
EFDC,YB110,SUPERVISION/MANAGEMENT SPECIAL,ELECTRICITY,1120,07-Oct-20,179883,54.87,BRITISH GAS,BRI040
EFDC,36900,HRA SUPPORT SERVICES,AGENCY STAFF,0120,07-Oct-20,179998,1113.21,JAMES ANDREWS RECRUITMENT SOLUTIONS LTD,JAM001
EFDC,36900,HRA SUPPORT SERVICES,AGENCY STAFF,0120,07-Oct-20,179997,1102,JAMES ANDREWS RECRUITMENT SOLUTIONS LTD,JAM001
EFDC,YB110,SUPERVISION/MANAGEMENT SPECIAL,ELECTRICITY,1120,07-Oct-20,179883,33,BRITISH GAS,BRI040
EFDC,YB110,SUPERVISION/MANAGEMENT SPECIAL,ELECTRICITY,1120,07-Oct-20,179883,20.84,BRITISH GAS,BRI040
EFDC,YB110,SUPERVISION/MANAGEMENT SPECIAL,ELECTRICITY,1120,07-Oct-20,179883,19.69,BRITISH GAS,BRI040
EFDC,YB110,SUPERVISION/MANAGEMENT SPECIAL,ELECTRICITY,1120,07-Oct-20,179883,13.89,BRITISH GAS,BRI040
EFDC,YB110,SUPERVISION/MANAGEMENT SPECIAL,ELECTRICITY,1120,07-Oct-20,179883,22.55,BRITISH GAS,BRI040
EFDC,YB110,SUPERVISION/MANAGEMENT SPECIAL,ELECTRICITY,1120,07-Oct-20,179883,14.67,BRITISH GAS,BRI040
EFDC,YB110,SUPERVISION/MANAGEMENT SPECIAL,ELECTRICITY,1120,07-Oct-20,179883,19.45,BRITISH GAS,BRI040
EFDC,YB110,SUPERVISION/MANAGEMENT SPECIAL,ELECTRICITY,1120,07-Oct-20,179883,15.88,BRITISH GAS,BRI040
EFDC,YB110,SUPERVISION/MANAGEMENT SPECIAL,ELECTRICITY,1120,07-Oct-20,179883,18.6,BRITISH GAS,BRI040
EFDC,YB110,SUPERVISION/MANAGEMENT SPECIAL,ELECTRICITY,1120,07-Oct-20,179883,8.38,BRITISH GAS,BRI040
EFDC,RS150,LEISURE FACILITIES,COMPENSATION PAYMENTS,3880,07-Oct-20,180047,129177.86,PLACES FOR PEOPLE LEISURE MANAGEMENT LTD,PLA005
EFDC,YB110,SUPERVISION/MANAGEMENT SPECIAL,ELECTRICITY,1120,07-Oct-20,179883,118.97,BRITISH GAS,BRI040
EFDC,YB110,SUPERVISION/MANAGEMENT SPECIAL,ELECTRICITY,1120,07-Oct-20,179883,13.49,BRITISH GAS,BRI040
EFDC,YB110,SUPERVISION/MANAGEMENT SPECIAL,ELECTRICITY,1120,07-Oct-20,179883,54.06,BRITISH GAS,BRI040
EFDC,YB110,SUPERVISION/MANAGEMENT SPECIAL,ELECTRICITY,1120,07-Oct-20,179883,14.65,BRITISH GAS,BRI040
EFDC,YB110,SUPERVISION/MANAGEMENT SPECIAL,ELECTRICITY,1120,07-Oct-20,179883,18.24,BRITISH GAS,BRI040
EFDC,YB110,SUPERVISION/MANAGEMENT SPECIAL,ELECTRICITY,1120,07-Oct-20,179883,13.05,BRITISH GAS,BRI040
EFDC,YB110,SUPERVISION/MANAGEMENT SPECIAL,ELECTRICITY,1120,07-Oct-20,179883,14.19,BRITISH GAS,BRI040
EFDC,YB110,SUPERVISION/MANAGEMENT SPECIAL,ELECTRICITY,1120,07-Oct-20,179883,12.22,BRITISH GAS,BRI040
EFDC,YB110,SUPERVISION/MANAGEMENT SPECIAL,ELECTRICITY,1120,07-Oct-20,179883,18.43,BRITISH GAS,BRI040
EFDC,YB110,SUPERVISION/MANAGEMENT SPECIAL,ELECTRICITY,1120,07-Oct-20,179883,11.92,BRITISH GAS,BRI040
EFDC,YB110,SUPERVISION/MANAGEMENT SPECIAL,ELECTRICITY,1120,07-Oct-20,179883,21.55,BRITISH GAS,BRI040
EFDC,YB110,SUPERVISION/MANAGEMENT SPECIAL,ELECTRICITY,1120,07-Oct-20,179883,12.76,BRITISH GAS,BRI040
EFDC,YB110,SUPERVISION/MANAGEMENT SPECIAL,ELECTRICITY,1120,07-Oct-20,179883,14.59,BRITISH GAS,BRI040
EFDC,YB110,SUPERVISION/MANAGEMENT SPECIAL,ELECTRICITY,1120,07-Oct-20,179883,11.1,BRITISH GAS,BRI040
EFDC,YB110,SUPERVISION/MANAGEMENT SPECIAL,ELECTRICITY,1120,07-Oct-20,179883,10.48,BRITISH GAS,BRI040
EFDC,YB110,SUPERVISION/MANAGEMENT SPECIAL,ELECTRICITY,1120,07-Oct-20,179883,12.49,BRITISH GAS,BRI040
EFDC,35400,CONTRACT & TECH SUPPORT SERVIC,AGENCY STAFF,0120,07-Oct-20,179989,642.6,HL SERVICES (LONDON) LTD,HLS001
EFDC,YB110,SUPERVISION/MANAGEMENT SPECIAL,ELECTRICITY,1120,07-Oct-20,179883,17.75,BRITISH GAS,BRI040
EFDC,YB110,SUPERVISION/MANAGEMENT SPECIAL,ELECTRICITY,1120,07-Oct-20,179883,13.59,BRITISH GAS,BRI040
EFDC,YB110,SUPERVISION/MANAGEMENT SPECIAL,ELECTRICITY,1120,07-Oct-20,179883,10.9,BRITISH GAS,BRI040
EFDC,YB110,SUPERVISION/MANAGEMENT SPECIAL,ELECTRICITY,1120,07-Oct-20,179883,7.04,BRITISH GAS,BRI040
EFDC,YB110,SUPERVISION/MANAGEMENT SPECIAL,ELECTRICITY,1120,07-Oct-20,179883,17.65,BRITISH GAS,BRI040
EFDC,YB110,SUPERVISION/MANAGEMENT SPECIAL,ELECTRICITY,1120,07-Oct-20,179883,19.67,BRITISH GAS,BRI040
EFDC,YB110,SUPERVISION/MANAGEMENT SPECIAL,ELECTRICITY,1120,07-Oct-20,179883,16.54,BRITISH GAS,BRI040
EFDC,YB110,SUPERVISION/MANAGEMENT SPECIAL,ELECTRICITY,1120,07-Oct-20,179883,13.61,BRITISH GAS,BRI040
EFDC,YB110,SUPERVISION/MANAGEMENT SPECIAL,ELECTRICITY,1120,07-Oct-20,179883,13.71,BRITISH GAS,BRI040
EFDC,YB110,SUPERVISION/MANAGEMENT SPECIAL,ELECTRICITY,1120,07-Oct-20,179883,17.59,BRITISH GAS,BRI040
EFDC,YB110,SUPERVISION/MANAGEMENT SPECIAL,ELECTRICITY,1120,07-Oct-20,179883,17.58,BRITISH GAS,BRI040
EFDC,YB110,SUPERVISION/MANAGEMENT SPECIAL,ELECTRICITY,1120,07-Oct-20,179883,15.94,BRITISH GAS,BRI040
EFDC,YB110,SUPERVISION/MANAGEMENT SPECIAL,ELECTRICITY,1120,07-Oct-20,179883,14.41,BRITISH GAS,BRI040
EFDC,YB110,SUPERVISION/MANAGEMENT SPECIAL,ELECTRICITY,1120,07-Oct-20,179883,10.94,BRITISH GAS,BRI040
EFDC,YB110,SUPERVISION/MANAGEMENT SPECIAL,ELECTRICITY,1120,07-Oct-20,179883,18.33,BRITISH GAS,BRI040
EFDC,YB110,SUPERVISION/MANAGEMENT SPECIAL,ELECTRICITY,1120,07-Oct-20,179883,15.34,BRITISH GAS,BRI040
EFDC,YB110,SUPERVISION/MANAGEMENT SPECIAL,ELECTRICITY,1120,07-Oct-20,179883,13.5,BRITISH GAS,BRI040
EFDC,YB110,SUPERVISION/MANAGEMENT SPECIAL,ELECTRICITY,1120,07-Oct-20,179883,12.6,BRITISH GAS,BRI040
EFDC,YB110,SUPERVISION/MANAGEMENT SPECIAL,ELECTRICITY,1120,07-Oct-20,179883,18.46,BRITISH GAS,BRI040
EFDC,YB110,SUPERVISION/MANAGEMENT SPECIAL,ELECTRICITY,1120,07-Oct-20,179883,9.86,BRITISH GAS,BRI040
EFDC,26200,OTHER SUPPORT SERVICES,BUILDING MAINTENANCE,1010,07-Oct-20,178996,5075.1,SMART MERCHANTS LTD,SMA002
EFDC,26200,OTHER SUPPORT SERVICES,BUILDING MAINTENANCE,1010,07-Oct-20,178996,150,SMART MERCHANTS LTD,SMA002
EFDC,YB110,SUPERVISION/MANAGEMENT SPECIAL,ELECTRICITY,1120,07-Oct-20,179883,11.31,BRITISH GAS,BRI040
EFDC,YB110,SUPERVISION/MANAGEMENT SPECIAL,ELECTRICITY,1120,07-Oct-20,179883,19.16,BRITISH GAS,BRI040
EFDC,YB110,SUPERVISION/MANAGEMENT SPECIAL,ELECTRICITY,1120,07-Oct-20,179883,12.48,BRITISH GAS,BRI040
EFDC,YB110,SUPERVISION/MANAGEMENT SPECIAL,ELECTRICITY,1120,07-Oct-20,179883,15.23,BRITISH GAS,BRI040
EFDC,YB110,SUPERVISION/MANAGEMENT SPECIAL,ELECTRICITY,1120,07-Oct-20,179883,16.3,BRITISH GAS,BRI040
EFDC,YB110,SUPERVISION/MANAGEMENT SPECIAL,ELECTRICITY,1120,07-Oct-20,179883,19.85,BRITISH GAS,BRI040
EFDC,YB110,SUPERVISION/MANAGEMENT SPECIAL,ELECTRICITY,1120,07-Oct-20,179883,13.64,BRITISH GAS,BRI040
EFDC,YB110,SUPERVISION/MANAGEMENT SPECIAL,ELECTRICITY,1120,07-Oct-20,179883,10.46,BRITISH GAS,BRI040
EFDC,YB110,SUPERVISION/MANAGEMENT SPECIAL,ELECTRICITY,1120,07-Oct-20,179883,23.42,BRITISH GAS,BRI040
EFDC,YB110,SUPERVISION/MANAGEMENT SPECIAL,ELECTRICITY,1120,07-Oct-20,179883,24.34,BRITISH GAS,BRI040
EFDC,YB110,SUPERVISION/MANAGEMENT SPECIAL,ELECTRICITY,1120,07-Oct-20,179883,12.13,BRITISH GAS,BRI040
EFDC,YB110,SUPERVISION/MANAGEMENT SPECIAL,ELECTRICITY,1120,07-Oct-20,179883,28.81,BRITISH GAS,BRI040
EFDC,YB110,SUPERVISION/MANAGEMENT SPECIAL,ELECTRICITY,1120,07-Oct-20,179883,23.95,BRITISH GAS,BRI040
EFDC,YB110,SUPERVISION/MANAGEMENT SPECIAL,ELECTRICITY,1120,07-Oct-20,179883,24.25,BRITISH GAS,BRI040
EFDC,CAPGF,GENERAL FUND CAPITAL,WORKS,J040,07-Oct-20,180034,3980,OVE ARUP & PARTNERS LTD,OVE002
EFDC,YB110,SUPERVISION/MANAGEMENT SPECIAL,ELECTRICITY,1120,07-Oct-20,179883,15.1,BRITISH GAS,BRI040
EFDC,YB110,SUPERVISION/MANAGEMENT SPECIAL,ELECTRICITY,1120,07-Oct-20,179883,18.65,BRITISH GAS,BRI040
EFDC,YB110,SUPERVISION/MANAGEMENT SPECIAL,ELECTRICITY,1120,07-Oct-20,179883,22.08,BRITISH GAS,BRI040
EFDC,YB110,SUPERVISION/MANAGEMENT SPECIAL,ELECTRICITY,1120,07-Oct-20,179883,9.9,BRITISH GAS,BRI040
EFDC,YB110,SUPERVISION/MANAGEMENT SPECIAL,ELECTRICITY,1120,07-Oct-20,179883,17.24,BRITISH GAS,BRI040
EFDC,YB110,SUPERVISION/MANAGEMENT SPECIAL,ELECTRICITY,1120,07-Oct-20,179883,19.15,BRITISH GAS,BRI040
EFDC,YB110,SUPERVISION/MANAGEMENT SPECIAL,ELECTRICITY,1120,07-Oct-20,179883,12.85,BRITISH GAS,BRI040
EFDC,YB110,SUPERVISION/MANAGEMENT SPECIAL,ELECTRICITY,1120,07-Oct-20,179883,18.91,BRITISH GAS,BRI040
EFDC,YB110,SUPERVISION/MANAGEMENT SPECIAL,ELECTRICITY,1120,07-Oct-20,179883,8.44,BRITISH GAS,BRI040
EFDC,YB110,SUPERVISION/MANAGEMENT SPECIAL,ELECTRICITY,1120,07-Oct-20,179883,10.36,BRITISH GAS,BRI040
EFDC,YB110,SUPERVISION/MANAGEMENT SPECIAL,ELECTRICITY,1120,07-Oct-20,179883,19.92,BRITISH GAS,BRI040
EFDC,YB110,SUPERVISION/MANAGEMENT SPECIAL,ELECTRICITY,1120,07-Oct-20,179883,19.56,BRITISH GAS,BRI040
EFDC,35500,CONTRACT & TECH SUPPORT SERVIC,AGENCY STAFF,0120,07-Oct-20,179988,780.3,HL SERVICES (LONDON) LTD,HLS001
EFDC,YB110,SUPERVISION/MANAGEMENT SPECIAL,ELECTRICITY,1120,07-Oct-20,179883,15.89,BRITISH GAS,BRI040
EFDC,35500,CONTRACT & TECH SUPPORT SERVIC,AGENCY STAFF,0120,07-Oct-20,179987,566.1,HL SERVICES (LONDON) LTD,HLS001
EFDC,YB110,SUPERVISION/MANAGEMENT SPECIAL,ELECTRICITY,1120,07-Oct-20,179883,7.44,BRITISH GAS,BRI040
EFDC,YB110,SUPERVISION/MANAGEMENT SPECIAL,ELECTRICITY,1120,07-Oct-20,179883,10.79,BRITISH GAS,BRI040
EFDC,YB110,SUPERVISION/MANAGEMENT SPECIAL,ELECTRICITY,1120,07-Oct-20,179883,13.8,BRITISH GAS,BRI040
EFDC,YB110,SUPERVISION/MANAGEMENT SPECIAL,ELECTRICITY,1120,07-Oct-20,179883,-79.06,BRITISH GAS,BRI040
EFDC,78001,HRA SUPPORT SERVICES,MATERIALS,3080,07-Oct-20,179927,975,CRANBROOK ELECTRICS,CRA001
EFDC,YB110,SUPERVISION/MANAGEMENT SPECIAL,ELECTRICITY,1120,07-Oct-20,179883,-74.31,BRITISH GAS,BRI040
EFDC,YB110,SUPERVISION/MANAGEMENT SPECIAL,ELECTRICITY,1120,07-Oct-20,179883,16.09,BRITISH GAS,BRI040
EFDC,YB110,SUPERVISION/MANAGEMENT SPECIAL,ELECTRICITY,1120,07-Oct-20,179883,16.55,BRITISH GAS,BRI040
EFDC,YB110,SUPERVISION/MANAGEMENT SPECIAL,ELECTRICITY,1120,07-Oct-20,179883,-41.1,BRITISH GAS,BRI040
EFDC,26200,OTHER SUPPORT SERVICES,BUILDING MAINTENANCE,1010,07-Oct-20,178854,55.58,DEBA UK LTD,DEB002
EFDC,YB110,SUPERVISION/MANAGEMENT SPECIAL,ELECTRICITY,1120,07-Oct-20,179883,43.69,BRITISH GAS,BRI040
EFDC,YB110,SUPERVISION/MANAGEMENT SPECIAL,ELECTRICITY,1120,07-Oct-20,179883,-92.87,BRITISH GAS,BRI040
EFDC,YB110,SUPERVISION/MANAGEMENT SPECIAL,ELECTRICITY,1120,07-Oct-20,179883,40.34,BRITISH GAS,BRI040
EFDC,YB110,SUPERVISION/MANAGEMENT SPECIAL,ELECTRICITY,1120,07-Oct-20,179883,18.8,BRITISH GAS,BRI040
EFDC,26200,OTHER SUPPORT SERVICES,BUILDING MAINTENANCE,1010,07-Oct-20,178854,111.16,DEBA UK LTD,DEB002
EFDC,YB110,SUPERVISION/MANAGEMENT SPECIAL,ELECTRICITY,1120,07-Oct-20,179883,12.32,BRITISH GAS,BRI040
EFDC,YB110,SUPERVISION/MANAGEMENT SPECIAL,ELECTRICITY,1120,07-Oct-20,179883,-42.12,BRITISH GAS,BRI040
EFDC,YB110,SUPERVISION/MANAGEMENT SPECIAL,ELECTRICITY,1120,07-Oct-20,179883,13.39,BRITISH GAS,BRI040
EFDC,CAPHR,HRA CAPITAL,ARCHITECTS FEES,E160,07-Oct-20,180106,25507.85,STORM BUILDING LTD,STO007
EFDC,YB110,SUPERVISION/MANAGEMENT SPECIAL,ELECTRICITY,1120,07-Oct-20,179883,15.57,BRITISH GAS,BRI040
EFDC,YB110,SUPERVISION/MANAGEMENT SPECIAL,ELECTRICITY,1120,07-Oct-20,179883,11.81,BRITISH GAS,BRI040
EFDC,YB110,SUPERVISION/MANAGEMENT SPECIAL,ELECTRICITY,1120,07-Oct-20,179883,35.47,BRITISH GAS,BRI040
EFDC,YB110,SUPERVISION/MANAGEMENT SPECIAL,ELECTRICITY,1120,07-Oct-20,179883,13.99,BRITISH GAS,BRI040
EFDC,YB110,SUPERVISION/MANAGEMENT SPECIAL,ELECTRICITY,1120,07-Oct-20,179883,12.88,BRITISH GAS,BRI040
EFDC,YB110,SUPERVISION/MANAGEMENT SPECIAL,ELECTRICITY,1120,07-Oct-20,179883,12.04,BRITISH GAS,BRI040
EFDC,YB110,SUPERVISION/MANAGEMENT SPECIAL,ELECTRICITY,1120,07-Oct-20,179883,44.78,BRITISH GAS,BRI040
EFDC,YB110,SUPERVISION/MANAGEMENT SPECIAL,ELECTRICITY,1120,07-Oct-20,179883,38.36,BRITISH GAS,BRI040
EFDC,YB110,SUPERVISION/MANAGEMENT SPECIAL,ELECTRICITY,1120,07-Oct-20,179883,-40.32,BRITISH GAS,BRI040
EFDC,78001,HRA SUPPORT SERVICES,EQUIPMENT - NEW,3010,07-Oct-20,179933,1050,CRANBROOK ELECTRICS,CRA001
EFDC,YB110,SUPERVISION/MANAGEMENT SPECIAL,ELECTRICITY,1120,07-Oct-20,179883,32.29,BRITISH GAS,BRI040
EFDC,YB110,SUPERVISION/MANAGEMENT SPECIAL,ELECTRICITY,1120,07-Oct-20,179883,39.32,BRITISH GAS,BRI040
EFDC,YB110,SUPERVISION/MANAGEMENT SPECIAL,ELECTRICITY,1120,07-Oct-20,179883,13.1,BRITISH GAS,BRI040
EFDC,YB110,SUPERVISION/MANAGEMENT SPECIAL,ELECTRICITY,1120,07-Oct-20,179883,-13.57,BRITISH GAS,BRI040
EFDC,YB110,SUPERVISION/MANAGEMENT SPECIAL,ELECTRICITY,1120,07-Oct-20,179883,63.4,BRITISH GAS,BRI040
EFDC,YB110,SUPERVISION/MANAGEMENT SPECIAL,ELECTRICITY,1120,07-Oct-20,179883,15.59,BRITISH GAS,BRI040
EFDC,YB110,SUPERVISION/MANAGEMENT SPECIAL,ELECTRICITY,1120,07-Oct-20,179883,-34.07,BRITISH GAS,BRI040
EFDC,YB140,SUPERVISION/MANAGEMENT SPECIAL,ELECTRICITY,1120,07-Oct-20,179883,25.3,BRITISH GAS,BRI040
EFDC,YB110,SUPERVISION/MANAGEMENT SPECIAL,ELECTRICITY,1120,07-Oct-20,179883,-81.12,BRITISH GAS,BRI040
EFDC,YB110,SUPERVISION/MANAGEMENT SPECIAL,ELECTRICITY,1120,07-Oct-20,179883,13.13,BRITISH GAS,BRI040
EFDC,YB110,SUPERVISION/MANAGEMENT SPECIAL,ELECTRICITY,1120,07-Oct-20,179883,12.04,BRITISH GAS,BRI040
EFDC,YB110,SUPERVISION/MANAGEMENT SPECIAL,ELECTRICITY,1120,07-Oct-20,179883,13.81,BRITISH GAS,BRI040
EFDC,YB110,SUPERVISION/MANAGEMENT SPECIAL,ELECTRICITY,1120,07-Oct-20,179883,-23.2,BRITISH GAS,BRI040
EFDC,YB110,SUPERVISION/MANAGEMENT SPECIAL,ELECTRICITY,1120,07-Oct-20,179883,14.08,BRITISH GAS,BRI040
EFDC,26200,OTHER SUPPORT SERVICES,BUILDING MAINTENANCE,1010,07-Oct-20,178854,63.48,DEBA UK LTD,DEB002
EFDC,YB140,SUPERVISION/MANAGEMENT SPECIAL,ELECTRICITY,1120,07-Oct-20,179883,25.17,BRITISH GAS,BRI040
EFDC,YB110,SUPERVISION/MANAGEMENT SPECIAL,ELECTRICITY,1120,07-Oct-20,179883,15.43,BRITISH GAS,BRI040
EFDC,YB110,SUPERVISION/MANAGEMENT SPECIAL,ELECTRICITY,1120,07-Oct-20,179883,16.97,BRITISH GAS,BRI040
EFDC,26200,OTHER SUPPORT SERVICES,BUILDING MAINTENANCE,1010,07-Oct-20,178854,55.58,DEBA UK LTD,DEB002
EFDC,26200,OTHER SUPPORT SERVICES,BUILDING MAINTENANCE,1010,07-Oct-20,178854,55.58,DEBA UK LTD,DEB002
EFDC,YB140,SUPERVISION/MANAGEMENT SPECIAL,ELECTRICITY,1120,07-Oct-20,179883,21.24,BRITISH GAS,BRI040
EFDC,YB110,SUPERVISION/MANAGEMENT SPECIAL,ELECTRICITY,1120,07-Oct-20,179883,12.78,BRITISH GAS,BRI040
EFDC,YB110,SUPERVISION/MANAGEMENT SPECIAL,ELECTRICITY,1120,07-Oct-20,179883,-39.49,BRITISH GAS,BRI040
EFDC,YB110,SUPERVISION/MANAGEMENT SPECIAL,ELECTRICITY,1120,07-Oct-20,179883,-514.61,BRITISH GAS,BRI040
EFDC,YB140,SUPERVISION/MANAGEMENT SPECIAL,ELECTRICITY,1120,07-Oct-20,179883,21.5,BRITISH GAS,BRI040
EFDC,YB110,SUPERVISION/MANAGEMENT SPECIAL,ELECTRICITY,1120,07-Oct-20,179883,-46.18,BRITISH GAS,BRI040
EFDC,YB140,SUPERVISION/MANAGEMENT SPECIAL,ELECTRICITY,1120,07-Oct-20,179883,13.68,BRITISH GAS,BRI040
EFDC,26200,OTHER SUPPORT SERVICES,BUILDING MAINTENANCE,1010,07-Oct-20,178854,110.85,DEBA UK LTD,DEB002
EFDC,YB110,SUPERVISION/MANAGEMENT SPECIAL,ELECTRICITY,1120,07-Oct-20,179883,10.88,BRITISH GAS,BRI040
EFDC,26200,OTHER SUPPORT SERVICES,FIXED PLANT MAINTENANCE,1020,07-Oct-20,180006,208,LONDON ELITE ELECTRICAL LIMITED,LON038
EFDC,78001,HRA SUPPORT SERVICES,AGENCY STAFF,0120,07-Oct-20,179716,817.75,STRATUS RECRUITMENT (CONTRACTORS) LTD,STR023
EFDC,CAPHR,HRA CAPITAL,WORKS,A040,07-Oct-20,179934,619,DDM FIRE SAFETY,DDM001
EFDC,57100,HRA SUPPORT SERVICES,AGENCY STAFF,0120,07-Oct-20,178902,2840,GREENACRE RECRUITMENT LTD,GRE029
EFDC,GT100,LOCAL PLAN IMPLEMENTATION,CONSULTANTS FEES,3490,07-Oct-20,178553,1666,GUY NICHOLSON,NIC023
EFDC,RM400,PLANNED & CYCLICAL MAINTENANCE,BUILDING MAINTENANCE,1010,07-Oct-20,178854,1060.44,DEBA UK LTD,DEB002
EFDC,37600,PLANNING SUPPORT SERVICES,AGENCY STAFF,0120,07-Oct-20,178956,1120,PARK AVENUE RECRUITMENT LTD,PAR088
EFDC,CAPGF,GENERAL FUND CAPITAL,WORKS,B040,07-Oct-20,180006,208,LONDON ELITE ELECTRICAL LIMITED,LON038
EFDC,26200,OTHER SUPPORT SERVICES,FIXED PLANT MAINTENANCE,1020,07-Oct-20,180006,208,LONDON ELITE ELECTRICAL LIMITED,LON038
EFDC,26200,OTHER SUPPORT SERVICES,FIXED PLANT MAINTENANCE,1020,07-Oct-20,180006,208,LONDON ELITE ELECTRICAL LIMITED,LON038
EFDC,32060,OTHER SUPPORT SERVICES,AGENCY STAFF,0120,07-Oct-20,180065,1660.32,SELLICK PARTNERSHIP LIMITED,SEL022
EFDC,35006,CONTRACT & TECH SUPPORT SERVIC,AGENCY STAFF,0120,07-Oct-20,179956,2821.5,G2 RECRUITMENT SOLUTIONS,G2R001
EFDC,36500,HRA SUPPORT SERVICES,AGENCY STAFF,0120,07-Oct-20,178889,1578.5,G2 RECRUITMENT SOLUTIONS,G2R001
EFDC,35006,CONTRACT & TECH SUPPORT SERVIC,AGENCY STAFF,0120,07-Oct-20,179957,3961.5,G2 RECRUITMENT SOLUTIONS,G2R001
EFDC,26200,OTHER SUPPORT SERVICES,BUILDING MAINTENANCE,1010,07-Oct-20,180006,208,LONDON ELITE ELECTRICAL LIMITED,LON038
EFDC,CAPGF,GENERAL FUND CAPITAL,WORKS,B040,07-Oct-20,180006,208,LONDON ELITE ELECTRICAL LIMITED,LON038
EFDC,PS100,CAR PARKING,PARKING CONTRACTOR,4350,07-Oct-20,179689,18128.69,NSL LIMITED,NSL001
EFDC,RM400,PLANNED & CYCLICAL MAINTENANCE,BUILDING MAINTENANCE,1010,07-Oct-20,178943,519.36,ORBIK ELECTRONICS LTD,ORB001
EFDC,35500,CONTRACT & TECH SUPPORT SERVIC,AGENCY STAFF,0120,07-Oct-20,178936,536.5,NEXO RECRUITMENT,NEX002
EFDC,78001,HRA SUPPORT SERVICES,EQUIPMENT - NEW,3010,07-Oct-20,179904,560,AFI - UPLIFT LTD,AFI001
EFDC,26200,OTHER SUPPORT SERVICES,FIXED PLANT MAINTENANCE,1020,07-Oct-20,178854,423.33,DEBA UK LTD,DEB002
EFDC,CAPGF,GENERAL FUND CAPITAL,WORKS,B040,07-Oct-20,179994,750839,ISG FIT OUT LTD,ISG001
EFDC,26200,OTHER SUPPORT SERVICES,BUILDING MAINTENANCE,1010,07-Oct-20,180006,208,LONDON ELITE ELECTRICAL LIMITED,LON038
EFDC,BAL01,EFDC BALANCE SHEET,SUNDRY DEBTORS (OTHER),Z208,13-Oct-20,38018,600,NICKOLDS HMO,8946P
EFDC,05240,LEASEHOLDERS,CASH RECEIPTS,7790,13-Oct-20,38036,1113.41,MRS L JAGGERS,9109P
EFDC,RS400,"COMMUNITY, HEALTH & WELLBEING",ACTIVITIES,3372,13-Oct-20,38019,9000,BARNADO'S,10080P
EFDC,BAL01,EFDC BALANCE SHEET,HOUSING RENT REFUNDS,Z613,13-Oct-20,38031,7639.16,SHARON ANNE ANDERSON,10085P
EFDC,CAPHR,HRA CAPITAL,ARCHITECTS FEES,E160,14-Oct-20,180221,3693.84,ECD ARCHITECTS LTD,ECD001
EFDC,PS100,CAR PARKING,OTHER MAINTENANCE,1050,14-Oct-20,179707,195,P & L SIGNS LTD T/A SIGNS EXPRESS (HARLOW),SIG002
EFDC,TI170,LAND & PROPERTY,PREMISES,1030,14-Oct-20,177205,3515,EA GROUP (UK) LTD,GRO006
EFDC,36650,HRA SUPPORT SERVICES,AGENCY STAFF,0120,14-Oct-20,180389,1254.96,MORGAN HUNT UK LTD,MOR001
EFDC,33075,FINANCE - OTHER ACTIVITIES,POSTAGE,3510,14-Oct-20,180240,523.59,ROYAL MAIL GROUP PLC,ROY015
EFDC,CAPHR,HRA CAPITAL,ARCHITECTS FEES,E160,14-Oct-20,180220,4229.99,ECD ARCHITECTS LTD,ECD001
EFDC,CAPHR,HRA CAPITAL,ARCHITECTS FEES,E160,14-Oct-20,180207,26759.05,ECD ARCHITECTS LTD,ECD001
EFDC,35500,CONTRACT & TECH SUPPORT SERVIC,AGENCY STAFF,0120,14-Oct-20,180334,566.1,HL SERVICES (LONDON) LTD,HLS001
EFDC,36650,HRA SUPPORT SERVICES,AGENCY STAFF,0120,14-Oct-20,180390,1254.96,MORGAN HUNT UK LTD,MOR001
EFDC,TI170,LAND & PROPERTY,PREMISES,1030,14-Oct-20,180239,3515,EA GROUP (UK) LTD,GRO006
EFDC,36650,HRA SUPPORT SERVICES,AGENCY STAFF,0120,14-Oct-20,180386,1254.96,MORGAN HUNT UK LTD,MOR001
EFDC,YB400,SUPERVISION/MANAGEMENT SPECIAL,GROUNDS MAINTENANCE,1040,14-Oct-20,180081,9919.95,SUTCLIFFE PLAY LTD,SUT001
EFDC,33080,FINANCE - OTHER ACTIVITIES,MOBILE PHONE LINE COSTS,3580,14-Oct-20,179889,7323.58,O2 (UK) LTD,OTW002
EFDC,36650,HRA SUPPORT SERVICES,CONSULTANTS FEES,3490,14-Oct-20,180241,4743.9,HAYS SPECIALIST RECRUITMENT LTD,HAY011
EFDC,EP100,OTHER ACTIVITIES,OTHER MISCELLANEOUS EXPENSES,3850,14-Oct-20,180403,7320,O2 (UK) LTD,OTW002
EFDC,TI170,LAND & PROPERTY,PROFESSIONAL FEES,3420,14-Oct-20,180446,1830,T.S.S. (TOTAL SECURITY SERVICES) LTD,TSS001
EFDC,CAPHR,HRA CAPITAL,ARCHITECTS FEES,E160,14-Oct-20,180210,845.45,ECD ARCHITECTS LTD,ECD001
EFDC,36650,HRA SUPPORT SERVICES,AGENCY STAFF,0120,14-Oct-20,179320,2500,HAYS SPECIALIST RECRUITMENT LTD,HAY011
EFDC,CAPHR,HRA CAPITAL,ARCHITECTS FEES,E160,14-Oct-20,180209,845.45,ECD ARCHITECTS LTD,ECD001
EFDC,CAPHR,HRA CAPITAL,ARCHITECTS FEES,E160,14-Oct-20,180208,845.45,ECD ARCHITECTS LTD,ECD001
EFDC,CAPHR,HRA CAPITAL,ARCHITECTS FEES,E160,14-Oct-20,180245,3114.09,ECD ARCHITECTS LTD,ECD001
EFDC,CAPHR,HRA CAPITAL,ARCHITECTS FEES,E160,14-Oct-20,180212,1270.45,ECD ARCHITECTS LTD,ECD001
EFDC,UO120,LAND & PROPERTY,SECURITY,1650,14-Oct-20,180445,2350,T.S.S. (TOTAL SECURITY SERVICES) LTD,TSS001
EFDC,CAPGF,GENERAL FUND CAPITAL,PLANT ACQUISITION,C310,14-Oct-20,180409,47746.84,PLACES FOR PEOPLE LEISURE MANAGEMENT LTD,PLA005
EFDC,CAPHR,HRA CAPITAL,WORKS,A040,14-Oct-20,180421,2100,SCCI ALPHATRACK LTD,SCC003
EFDC,35400,CONTRACT & TECH SUPPORT SERVIC,AGENCY STAFF,0120,14-Oct-20,179990,543.15,HL SERVICES (LONDON) LTD,HLS001
EFDC,CAPGF,GENERAL FUND CAPITAL,WORKS,B040,14-Oct-20,180280,632.11,EDMUNDSON ELECTRICAL LTD,EDM001
EFDC,51150,OTHER SUPPORT SERVICES,POSTAGE,3510,14-Oct-20,180240,127.75,ROYAL MAIL GROUP PLC,ROY015
EFDC,51120,OTHER SUPPORT SERVICES,AGENCY STAFF,0120,14-Oct-20,180443,2905.06,T.S.S. (TOTAL SECURITY SERVICES) LTD,TSS001
EFDC,36500,HRA SUPPORT SERVICES,AGENCY STAFF,0120,14-Oct-20,180388,974.16,MORGAN HUNT UK LTD,MOR001
EFDC,RE100,ELECTIONS,POSTAGE,3510,14-Oct-20,180240,232.75,ROYAL MAIL GROUP PLC,ROY015
EFDC,TI170,LAND & PROPERTY,PREMISES,1030,14-Oct-20,180414,676.1,PURDY CONTRACTS LTD,PUR002
EFDC,TI170,LAND & PROPERTY,PREMISES,1030,14-Oct-20,180414,300,PURDY CONTRACTS LTD,PUR002
EFDC,33055,FINANCE - OTHER ACTIVITIES,POSTAGE,3510,14-Oct-20,180240,210,ROYAL MAIL GROUP PLC,ROY015
EFDC,TI220,LAND & PROPERTY,PROFESSIONAL FEES,3420,14-Oct-20,180430,750,STRUCTURAL ENGINEERS CAMBRIDGE LTD,STR013
EFDC,CAPHR,HRA CAPITAL,ARCHITECTS FEES,E160,14-Oct-20,180222,8824.09,ECD ARCHITECTS LTD,ECD001
EFDC,36650,HRA SUPPORT SERVICES,AGENCY STAFF,0120,14-Oct-20,180393,1220.1,MORGAN HUNT UK LTD,MOR001
EFDC,36650,HRA SUPPORT SERVICES,AGENCY STAFF,0120,14-Oct-20,180391,1254.96,MORGAN HUNT UK LTD,MOR001
EFDC,36650,HRA SUPPORT SERVICES,AGENCY STAFF,0120,14-Oct-20,180394,1254.96,MORGAN HUNT UK LTD,MOR001
EFDC,36650,HRA SUPPORT SERVICES,AGENCY STAFF,0120,14-Oct-20,180392,1147.24,MORGAN HUNT UK LTD,MOR001
EFDC,FD100,LAND DRAINAGE/SEWERAGE,HIGHWAYS CONTRACTORS,4310,14-Oct-20,180339,668,HUGH PEARL (LAND DRAINAGE) LTD,HUG001
EFDC,FD100,LAND DRAINAGE/SEWERAGE,HIGHWAYS CONTRACTORS,4310,14-Oct-20,180340,836,HUGH PEARL (LAND DRAINAGE) LTD,HUG001
EFDC,RS301,NORTH WEALD CENTRE,OTHER MAINTENANCE,1050,14-Oct-20,180417,4000,RVTV SECURITY LTD,RVT001
EFDC,PS100,CAR PARKING,OTHER MAINTENANCE,1050,14-Oct-20,179707,340,P & L SIGNS LTD T/A SIGNS EXPRESS (HARLOW),SIG002
EFDC,33060,FINANCE - OTHER ACTIVITIES,CONSULTANTS FEES,3490,14-Oct-20,180413,3000,PRICEWATERHOUSECOOPERS LLP,PRI002
EFDC,37600,PLANNING SUPPORT SERVICES,AGENCY STAFF,0120,14-Oct-20,180248,865.13,ADECCO UK LTD,ADE002
EFDC,CD110,"COMMUNITY, HEALTH & WELLBEING",ACTIVITIES,3372,14-Oct-20,179352,761.84,PHOENIX SOFTWARE LTD,PHO002
EFDC,CAPHR,HRA CAPITAL,ARCHITECTS FEES,E160,14-Oct-20,180218,5910.71,ECD ARCHITECTS LTD,ECD001
EFDC,33080,FINANCE - OTHER ACTIVITIES,ANNUAL SUPPORT /  LICENSES,3872,14-Oct-20,179198,4800,ACCESS INTELLIGENCE MEDIA &COMMUNICATIONS LTD,ACC012
EFDC,CAPGF,GENERAL FUND CAPITAL,WORKS,B040,14-Oct-20,180409,24809.72,PLACES FOR PEOPLE LEISURE MANAGEMENT LTD,PLA005
EFDC,RM300,PLANNED & CYCLICAL MAINTENANCE,BUILDING MAINTENANCE,1010,14-Oct-20,180327,7014.5,GRACELANDS COMPLETE MAINTENANCE SERVICES LTD,GRA007
EFDC,33060,FINANCE - OTHER ACTIVITIES,AGENCY STAFF,0120,14-Oct-20,179319,3870,HAYS SPECIALIST RECRUITMENT LTD,HAY011
EFDC,33080,FINANCE - OTHER ACTIVITIES,AGENCY STAFF,0120,14-Oct-20,179327,8713.44,HAYS SPECIALIST RECRUITMENT LTD,HAY011
EFDC,RM100,RESPONSIVE & VOID REPAIRS,BUILDING MAINTENANCE,1010,14-Oct-20,180328,0,GRACELANDS COMPLETE MAINTENANCE SERVICES LTD,GRA007
EFDC,33080,FINANCE - OTHER ACTIVITIES,ANNUAL SUPPORT /  LICENSES,3872,14-Oct-20,179341,307.5,INNOVYZE LIMITED,MIC001
EFDC,33080,FINANCE - OTHER ACTIVITIES,ANNUAL SUPPORT /  LICENSES,3872,14-Oct-20,179341,2050,INNOVYZE LIMITED,MIC001
EFDC,RM100,RESPONSIVE & VOID REPAIRS,BUILDING MAINTENANCE,1010,14-Oct-20,180238,750,W H CONSTRUCTION LTD,CON014
EFDC,CAPHR,HRA CAPITAL,WORKS,E040,14-Oct-20,180225,13350,TSG BUILDING SERVICES PLC,TSG001
EFDC,33060,FINANCE - OTHER ACTIVITIES,AGENCY STAFF,0120,14-Oct-20,179322,1563.3,HAYS SPECIALIST RECRUITMENT LTD,HAY011
EFDC,CAPGF,GENERAL FUND CAPITAL,CONSULTANCY FEES,B200,14-Oct-20,180408,5480,PLACES FOR PEOPLE LEISURE MANAGEMENT LTD,PLA005
EFDC,CAPHR,HRA CAPITAL,WORKS,A040,14-Oct-20,180419,1050,SCCI ALPHATRACK LTD,SCC003
EFDC,RM200,RESPONSIVE & VOID REPAIRS,BUILDING MAINTENANCE,1010,14-Oct-20,180455,5760,WICKES BUILDING SUPPLIES LTD,WIC004
EFDC,27050,ACCOMMODATION,EQUIPMENT - NEW,3010,14-Oct-20,180265,67.5,COFFEE SUPPLIES DIRECT LTD,COF002
EFDC,RM200,RESPONSIVE & VOID REPAIRS,BUILDING MAINTENANCE,1010,14-Oct-20,180454,1728,WICKES BUILDING SUPPLIES LTD,WIC004
EFDC,51120,OTHER SUPPORT SERVICES,AGENCY STAFF,0120,14-Oct-20,180444,2798.87,T.S.S. (TOTAL SECURITY SERVICES) LTD,TSS001
EFDC,26200,OTHER SUPPORT SERVICES,BUILDING MAINTENANCE,1010,14-Oct-20,179924,1800,CONTACT ROLLER SHUTTERS LTD,CON006
EFDC,33080,FINANCE - OTHER ACTIVITIES,AGENCY STAFF,0120,14-Oct-20,179325,1246.04,HAYS SPECIALIST RECRUITMENT LTD,HAY011
EFDC,RM100,RESPONSIVE & VOID REPAIRS,BUILDING MAINTENANCE,1010,14-Oct-20,180329,594.45,GRACELANDS COMPLETE MAINTENANCE SERVICES LTD,GRA007
EFDC,51120,OTHER SUPPORT SERVICES,RECRUITMENT EXPENSES,0320,14-Oct-20,180235,5569.05,HAYS SPECIALIST RECRUITMENT LTD,HAY011
EFDC,35400,CONTRACT & TECH SUPPORT SERVIC,AGENCY STAFF,0120,14-Oct-20,179326,700.16,HAYS SPECIALIST RECRUITMENT LTD,HAY011
EFDC,CAPHR,HRA CAPITAL,WORKS,A040,14-Oct-20,180223,6929.58,W H CONSTRUCTION LTD,CON014
EFDC,CAPHR,HRA CAPITAL,WORKS,A040,14-Oct-20,180226,53244.91,GRACELANDS COMPLETE MAINTENANCE SERVICES LTD,GRA007
EFDC,36500,HRA SUPPORT SERVICES,AGENCY STAFF,0120,14-Oct-20,180345,796.5,JAMES ANDREWS RECRUITMENT SOLUTIONS LTD,JAM001
EFDC,RM100,RESPONSIVE & VOID REPAIRS,BUILDING MAINTENANCE,1010,14-Oct-20,180328,654.14,GRACELANDS COMPLETE MAINTENANCE SERVICES LTD,GRA007
EFDC,RM100,RESPONSIVE & VOID REPAIRS,BUILDING MAINTENANCE,1010,14-Oct-20,180237,2430,W H CONSTRUCTION LTD,CON014
EFDC,RM100,RESPONSIVE & VOID REPAIRS,BUILDING MAINTENANCE,1010,14-Oct-20,180325,731.58,GRACELANDS COMPLETE MAINTENANCE SERVICES LTD,GRA007
EFDC,RM200,RESPONSIVE & VOID REPAIRS,BUILDING MAINTENANCE,1010,14-Oct-20,180452,6966,WICKES BUILDING SUPPLIES LTD,WIC004
EFDC,RM100,RESPONSIVE & VOID REPAIRS,BUILDING MAINTENANCE,1010,14-Oct-20,180329,0,GRACELANDS COMPLETE MAINTENANCE SERVICES LTD,GRA007
EFDC,RM100,RESPONSIVE & VOID REPAIRS,BUILDING MAINTENANCE,1010,14-Oct-20,180324,0,GRACELANDS COMPLETE MAINTENANCE SERVICES LTD,GRA007
EFDC,RM100,RESPONSIVE & VOID REPAIRS,BUILDING MAINTENANCE,1010,14-Oct-20,180324,910,GRACELANDS COMPLETE MAINTENANCE SERVICES LTD,GRA007
EFDC,36650,HRA SUPPORT SERVICES,AGENCY STAFF,0120,14-Oct-20,179321,2500,HAYS SPECIALIST RECRUITMENT LTD,HAY011
EFDC,RM100,RESPONSIVE & VOID REPAIRS,BUILDING MAINTENANCE,1010,14-Oct-20,180320,1244.4,GRACELANDS COMPLETE MAINTENANCE SERVICES LTD,GRA007
EFDC,RM100,RESPONSIVE & VOID REPAIRS,BUILDING MAINTENANCE,1010,14-Oct-20,180320,0,GRACELANDS COMPLETE MAINTENANCE SERVICES LTD,GRA007
EFDC,CAPHR,HRA CAPITAL,VOIDS WORKS,A045,14-Oct-20,180223,67823.08,W H CONSTRUCTION LTD,CON014
EFDC,RM100,RESPONSIVE & VOID REPAIRS,BUILDING MAINTENANCE,1010,14-Oct-20,180325,0,GRACELANDS COMPLETE MAINTENANCE SERVICES LTD,GRA007
EFDC,27050,ACCOMMODATION,EQUIPMENT - NEW,3010,14-Oct-20,180265,109.75,COFFEE SUPPLIES DIRECT LTD,COF002
EFDC,UO150,LAND & PROPERTY,PROFESSIONAL FEES,3420,14-Oct-20,180439,1013.49,TROWERS & HAMLINS LLP,TRO002
EFDC,32121,OTHER SUPPORT SERVICES,EMPLOYEES - OTHER PAYMENTS,0191,14-Oct-20,180243,59.98,COMPUTERSHAREVOUCHER SERVICES,BUS009
EFDC,CAPGF,GENERAL FUND CAPITAL,WORKS,J040,14-Oct-20,180275,1083,DAC BEACHCROFT LLP,DAC001
EFDC,CAPHR,HRA CAPITAL,ARCHITECTS FEES,E160,14-Oct-20,180211,845.45,ECD ARCHITECTS LTD,ECD001
EFDC,27050,ACCOMMODATION,EQUIPMENT - NEW,3010,14-Oct-20,180265,27,COFFEE SUPPLIES DIRECT LTD,COF002
EFDC,35500,CONTRACT & TECH SUPPORT SERVIC,AGENCY STAFF,0120,14-Oct-20,180336,780.3,HL SERVICES (LONDON) LTD,HLS001
EFDC,BAL01,EFDC BALANCE SHEET,BUSY BEES,Z606,14-Oct-20,180243,922.75,COMPUTERSHAREVOUCHER SERVICES,BUS009
EFDC,27050,ACCOMMODATION,EQUIPMENT - NEW,3010,14-Oct-20,180265,178.35,COFFEE SUPPLIES DIRECT LTD,COF002
EFDC,CAPHR,HRA CAPITAL,ARCHITECTS FEES,E160,14-Oct-20,180217,1452.97,ECD ARCHITECTS LTD,ECD001
EFDC,CAPHR,HRA CAPITAL,WORKS,A040,14-Oct-20,180224,26112.84,W H CONSTRUCTION LTD,CON014
EFDC,CAPHR,HRA CAPITAL,ARCHITECTS FEES,E160,14-Oct-20,180215,845.45,ECD ARCHITECTS LTD,ECD001
EFDC,32060,OTHER SUPPORT SERVICES,AGENCY STAFF,0120,14-Oct-20,180451,734.25,VENN GROUP LTD,VEN004
EFDC,CAPHR,HRA CAPITAL,ARCHITECTS FEES,E160,14-Oct-20,180214,1820.78,ECD ARCHITECTS LTD,ECD001
EFDC,CAPHR,HRA CAPITAL,ARCHITECTS FEES,E160,14-Oct-20,180213,845.45,ECD ARCHITECTS LTD,ECD001
EFDC,33075,FINANCE - OTHER ACTIVITIES,AGENCY STAFF,0120,14-Oct-20,180387,962,MORGAN HUNT UK LTD,MOR001
EFDC,YA100,SUPERVISION/MANAGEMENT GENERAL,PROFESSIONAL FEES,3420,14-Oct-20,180450,4000,VALUATION OFFICE AGENCY,VAL002
EFDC,27050,ACCOMMODATION,EQUIPMENT - NEW,3010,14-Oct-20,180265,203.8,COFFEE SUPPLIES DIRECT LTD,COF002
EFDC,UO150,LAND & PROPERTY,PROFESSIONAL FEES,3420,14-Oct-20,180441,1500,TROWERS & HAMLINS LLP,TRO002
EFDC,CAPHR,HRA CAPITAL,MANAGEMENT CONSULTANT,E130,14-Oct-20,180201,1397.2,PELLINGS LLP,PEL002
EFDC,CAPHR,HRA CAPITAL,WORKS,A040,14-Oct-20,180418,1155,SCCI ALPHATRACK LTD,SCC003
EFDC,YA180,SUPERVISION/MANAGEMENT GENERAL,CONSULTANTS FEES,3490,14-Oct-20,180206,1000,LANDMARK CHAMBERS,KNA001
EFDC,35400,CONTRACT & TECH SUPPORT SERVIC,STOCK ISSUES,3070,14-Oct-20,180007,1262.37,LUBBE & SONS (BULBS) LTD,LUB001
EFDC,35500,CONTRACT & TECH SUPPORT SERVIC,STOCK ISSUES,3070,14-Oct-20,180007,25,LUBBE & SONS (BULBS) LTD,LUB001
EFDC,35500,CONTRACT & TECH SUPPORT SERVIC,STOCK ISSUES,3070,14-Oct-20,180007,1262.38,LUBBE & SONS (BULBS) LTD,LUB001
EFDC,CAPHR,HRA CAPITAL,ARCHITECTS FEES,E160,14-Oct-20,180216,4046.45,ECD ARCHITECTS LTD,ECD001
EFDC,35400,CONTRACT & TECH SUPPORT SERVIC,STOCK ISSUES,3070,14-Oct-20,180007,25,LUBBE & SONS (BULBS) LTD,LUB001
EFDC,33080,FINANCE - OTHER ACTIVITIES,AGENCY STAFF,0120,14-Oct-20,179318,1246.04,HAYS SPECIALIST RECRUITMENT LTD,HAY011
EFDC,36500,HRA SUPPORT SERVICES,AGENCY STAFF,0120,14-Oct-20,180385,974.16,MORGAN HUNT UK LTD,MOR001
EFDC,CAPHR,HRA CAPITAL,WORKS,A040,14-Oct-20,180420,840,SCCI ALPHATRACK LTD,SCC003
EFDC,YB200,SUPERVISION/MANAGEMENT SPECIAL,REMOVAL EXPENSES,3830,14-Oct-20,180379,590,MCKELLAR & SONS REMOVAL & STORAGE LTD,MCK004
EFDC,CAPHR,HRA CAPITAL,MANAGEMENT CONSULTANT,E130,14-Oct-20,180192,598.79,AIREY MILLER LIMITED,AIR027
EFDC,CAPHR,HRA CAPITAL,MANAGEMENT CONSULTANT,E130,14-Oct-20,180198,540.62,AIREY MILLER LIMITED,AIR027
EFDC,CAPGF,GENERAL FUND CAPITAL,MANAGEMENT CONSULTANT,B130,14-Oct-20,180252,7500,BISSET ADAMS LIMITED,BIS007
EFDC,CAPHR,HRA CAPITAL,MANAGEMENT CONSULTANT,E130,14-Oct-20,180189,43.25,AIREY MILLER LIMITED,AIR027
EFDC,CAPHR,HRA CAPITAL,MANAGEMENT CONSULTANT,E130,14-Oct-20,180189,43.25,AIREY MILLER LIMITED,AIR027
EFDC,CAPGF,GENERAL FUND CAPITAL,WORKS,B040,14-Oct-20,180276,715,DDM FIRE SAFETY,DDM001
EFDC,CAPHR,HRA CAPITAL,MANAGEMENT CONSULTANT,E130,14-Oct-20,180189,43.25,AIREY MILLER LIMITED,AIR027
EFDC,57100,HRA SUPPORT SERVICES,AGENCY STAFF,0120,14-Oct-20,179311,3550,GREENACRE RECRUITMENT LTD,GRE029
EFDC,CAPHR,HRA CAPITAL,CLERK OF WORKS,E180,14-Oct-20,180205,1350,KEITH PEATTIE ASSOCIATES,KEI001
EFDC,CAPHR,HRA CAPITAL,MANAGEMENT CONSULTANT,E130,14-Oct-20,180189,43.25,AIREY MILLER LIMITED,AIR027
EFDC,35500,CONTRACT & TECH SUPPORT SERVIC,AGENCY STAFF,0120,14-Oct-20,179684,536.5,NEXO RECRUITMENT,NEX002
EFDC,CAPHR,HRA CAPITAL,MANAGEMENT CONSULTANT,E130,14-Oct-20,180200,5467.23,AIREY MILLER LIMITED,AIR027
EFDC,CAPHR,HRA CAPITAL,MANAGEMENT CONSULTANT,E130,14-Oct-20,180189,43.25,AIREY MILLER LIMITED,AIR027
EFDC,26200,OTHER SUPPORT SERVICES,BUILDING MAINTENANCE,1010,14-Oct-20,180005,208,LONDON ELITE ELECTRICAL LIMITED,LON038
EFDC,RM400,PLANNED & CYCLICAL MAINTENANCE,BUILDING MAINTENANCE,1010,14-Oct-20,180005,208,LONDON ELITE ELECTRICAL LIMITED,LON038
EFDC,RS400,"COMMUNITY, HEALTH & WELLBEING",EQUIPMENT - NEW,3010,14-Oct-20,180005,208,LONDON ELITE ELECTRICAL LIMITED,LON038
EFDC,26200,OTHER SUPPORT SERVICES,FIXED PLANT MAINTENANCE,1020,14-Oct-20,180005,104,LONDON ELITE ELECTRICAL LIMITED,LON038
EFDC,26200,OTHER SUPPORT SERVICES,FIXED PLANT MAINTENANCE,1020,14-Oct-20,180005,416,LONDON ELITE ELECTRICAL LIMITED,LON038
EFDC,TI170,LAND & PROPERTY,PROFESSIONAL FEES,3420,14-Oct-20,180246,1140,LAND SCIENCE LIMITED,LAN007
EFDC,CAPHR,HRA CAPITAL,WORKS,A040,14-Oct-20,179580,799,WILTON DECORATORS LTD,WIL033
EFDC,CAPHR,HRA CAPITAL,WORKS,A040,14-Oct-20,179580,100,WILTON DECORATORS LTD,WIL033
EFDC,78001,HRA SUPPORT SERVICES,AGENCY STAFF,0120,14-Oct-20,179715,996.98,STRATUS RECRUITMENT (CONTRACTORS) LTD,STR023
EFDC,CAPHR,HRA CAPITAL,WORKS,B040,14-Oct-20,180005,260,LONDON ELITE ELECTRICAL LIMITED,LON038
EFDC,RM400,PLANNED & CYCLICAL MAINTENANCE,BUILDING MAINTENANCE,1010,14-Oct-20,180005,208,LONDON ELITE ELECTRICAL LIMITED,LON038
EFDC,RM400,PLANNED & CYCLICAL MAINTENANCE,BUILDING MAINTENANCE,1010,14-Oct-20,180005,208,LONDON ELITE ELECTRICAL LIMITED,LON038
EFDC,RM400,PLANNED & CYCLICAL MAINTENANCE,BUILDING MAINTENANCE,1010,14-Oct-20,180005,208,LONDON ELITE ELECTRICAL LIMITED,LON038
EFDC,CAPGF,GENERAL FUND CAPITAL,CONSULTANCY FEES,B200,14-Oct-20,180251,3000,BISSET ADAMS LIMITED,BIS007
EFDC,35009,CONTRACT & TECH SUPPORT SERVIC,EQUIPMENT - MAINTENANCE,3030,14-Oct-20,180005,52,LONDON ELITE ELECTRICAL LIMITED,LON038
EFDC,CAPHR,HRA CAPITAL,MANAGEMENT CONSULTANT,E130,14-Oct-20,180190,677.88,AIREY MILLER LIMITED,AIR027
EFDC,CAPHR,HRA CAPITAL,MANAGEMENT CONSULTANT,E130,14-Oct-20,180199,606.59,AIREY MILLER LIMITED,AIR027
EFDC,HI121,HIGHWAYS,OTHER MAINTENANCE,1050,14-Oct-20,178979,1727.04,PROJECT CENTRE LTD,PRO005
EFDC,YB100,SUPERVISION/MANAGEMENT SPECIAL,WATER CHARGES,1410,14-Oct-20,180227,657.19,CASTLE WATER LTD,CAS001
EFDC,CAPHR,HRA CAPITAL,MANAGEMENT CONSULTANT,E130,14-Oct-20,180193,0,AIREY MILLER LIMITED,AIR027
EFDC,CAPGF,GENERAL FUND CAPITAL,CONSULTANCY FEES,B200,14-Oct-20,180433,11000,THREEDAY GROUP LTD,THR003
EFDC,GT100,LOCAL PLAN IMPLEMENTATION,PROFESSIONAL FEES,3420,14-Oct-20,180253,12622.5,BLOOM PROCUREMENT SERVICES LTD,BLO001
EFDC,CAPHR,HRA CAPITAL,MANAGEMENT CONSULTANT,E130,14-Oct-20,180189,43.25,AIREY MILLER LIMITED,AIR027
EFDC,RM100,RESPONSIVE & VOID REPAIRS,BUILDING MAINTENANCE,1010,14-Oct-20,180313,1359.89,GC ROOFING UK LIMITED,GCR001
EFDC,CAPHR,HRA CAPITAL,MANAGEMENT CONSULTANT,E130,14-Oct-20,180189,43.25,AIREY MILLER LIMITED,AIR027
EFDC,CAPHR,HRA CAPITAL,MANAGEMENT CONSULTANT,E130,14-Oct-20,180189,43.25,AIREY MILLER LIMITED,AIR027
EFDC,CAPHR,HRA CAPITAL,MANAGEMENT CONSULTANT,E130,14-Oct-20,180189,43.25,AIREY MILLER LIMITED,AIR027
EFDC,CAPHR,HRA CAPITAL,MANAGEMENT CONSULTANT,E130,14-Oct-20,180189,43.25,AIREY MILLER LIMITED,AIR027
EFDC,CAPHR,HRA CAPITAL,MANAGEMENT CONSULTANT,E130,14-Oct-20,180189,43.25,AIREY MILLER LIMITED,AIR027
EFDC,GT100,LOCAL PLAN IMPLEMENTATION,PROFESSIONAL FEES,3420,14-Oct-20,180255,23883.76,BLOOM PROCUREMENT SERVICES LTD,BLO001
EFDC,CAPHR,HRA CAPITAL,MANAGEMENT CONSULTANT,E130,14-Oct-20,180193,514.18,AIREY MILLER LIMITED,AIR027
EFDC,PP111,LOCAL PLAN IMPLEMENTATION,PROFESSIONAL FEES,3420,14-Oct-20,180254,8334.9,BLOOM PROCUREMENT SERVICES LTD,BLO001
EFDC,CAPHR,HRA CAPITAL,MANAGEMENT CONSULTANT,E130,14-Oct-20,180189,43.25,AIREY MILLER LIMITED,AIR027
EFDC,CAPHR,HRA CAPITAL,MANAGEMENT CONSULTANT,E130,14-Oct-20,180189,43.25,AIREY MILLER LIMITED,AIR027
EFDC,CAPHR,HRA CAPITAL,MANAGEMENT CONSULTANT,E130,14-Oct-20,180189,43.25,AIREY MILLER LIMITED,AIR027
EFDC,CAPHR,HRA CAPITAL,MANAGEMENT CONSULTANT,E130,14-Oct-20,180189,43.25,AIREY MILLER LIMITED,AIR027
EFDC,CAPHR,HRA CAPITAL,MANAGEMENT CONSULTANT,E130,14-Oct-20,180460,2565.75,AIREY MILLER LIMITED,AIR027
EFDC,CAPHR,HRA CAPITAL,MANAGEMENT CONSULTANT,E130,14-Oct-20,180461,2293.5,AIREY MILLER LIMITED,AIR027
EFDC,CAPHR,HRA CAPITAL,MANAGEMENT CONSULTANT,E130,14-Oct-20,180461,2293.5,AIREY MILLER LIMITED,AIR027
EFDC,CAPHR,HRA CAPITAL,MANAGEMENT CONSULTANT,E130,14-Oct-20,180461,2293.5,AIREY MILLER LIMITED,AIR027
EFDC,36500,HRA SUPPORT SERVICES,AGENCY STAFF,0120,14-Oct-20,179269,1496.5,G2 RECRUITMENT SOLUTIONS,G2R001
EFDC,CAPHR,HRA CAPITAL,MANAGEMENT CONSULTANT,E130,14-Oct-20,180189,43.25,AIREY MILLER LIMITED,AIR027
EFDC,CAPHR,HRA CAPITAL,MANAGEMENT CONSULTANT,E130,14-Oct-20,180189,43.25,AIREY MILLER LIMITED,AIR027
EFDC,CAPHR,HRA CAPITAL,MANAGEMENT CONSULTANT,E130,14-Oct-20,180189,43.25,AIREY MILLER LIMITED,AIR027
EFDC,CAPHR,HRA CAPITAL,MANAGEMENT CONSULTANT,E130,14-Oct-20,180189,43.25,AIREY MILLER LIMITED,AIR027
EFDC,CAPHR,HRA CAPITAL,MANAGEMENT CONSULTANT,E130,14-Oct-20,180189,43.25,AIREY MILLER LIMITED,AIR027
EFDC,CAPHR,HRA CAPITAL,MANAGEMENT CONSULTANT,E130,14-Oct-20,180189,43.25,AIREY MILLER LIMITED,AIR027
EFDC,CAPHR,HRA CAPITAL,MANAGEMENT CONSULTANT,E130,14-Oct-20,180189,43.25,AIREY MILLER LIMITED,AIR027
EFDC,CAPHR,HRA CAPITAL,MANAGEMENT CONSULTANT,E130,14-Oct-20,180189,43.25,AIREY MILLER LIMITED,AIR027
EFDC,CAPHR,HRA CAPITAL,MANAGEMENT CONSULTANT,E130,14-Oct-20,180189,43.25,AIREY MILLER LIMITED,AIR027
EFDC,PH100,PRIVATE SECTOR HOUSING,GRANTS GENERAL,3720,20-Oct-20,38066,2488,STANNAH LIFT SERVICES LTD,STA002
EFDC,BAL01,EFDC BALANCE SHEET,MISC DEDUCTIONS,Z611,20-Oct-20,38082,825,PRUDENTIAL,PRU001
EFDC,BAL01,EFDC BALANCE SHEET,HOUSING RENT REFUNDS,Z613,20-Oct-20,38083,1009.03,MR C G PANAYI- ANDREOU,5989P
EFDC,BAL01,EFDC BALANCE SHEET,SUNDRY DEBTORS (OTHER),Z208,20-Oct-20,38071,840,NICKOLDS HMO,8946P
EFDC,PH100,PRIVATE SECTOR HOUSING,GRANTS GENERAL,3720,20-Oct-20,38065,3995,J H CONTRACTORS (ESSEX) LIMITED,JHC001
EFDC,BAL01,EFDC BALANCE SHEET,SALARY OVERPAYMENTS/ADVANCES,Z610,20-Oct-20,38074,1400,G HATTON,10096P
EFDC,BAL01,EFDC BALANCE SHEET,SALARY OVERPAYMENTS/ADVANCES,Z610,20-Oct-20,38076,1956.32,N PATEL,10097P
EFDC,BAL01,EFDC BALANCE SHEET,HOUSING RENT REFUNDS,Z613,20-Oct-20,38085,1028.82,S MURRAY,10099P
EFDC,BAL01,EFDC BALANCE SHEET,SUNDRY DEBTORS (OTHER),Z208,20-Oct-20,38060,580,B SALAM,10092P
EFDC,CH110,"MUSEUM, HERITAGE & CULTURE",RENTS / HIRE OF HALL,1210,21-Oct-20,180681,1200,GRANGEWOOD INVESTMENTS LTD,GRA006
EFDC,SC100,WASTE MANAGEMENT,CLEANSING CONTRACTORS,4320,21-Oct-20,179701,955,REGIONAL WASTE RECYCLING (COMMERCIAL) LTD,REG002
EFDC,CAPGF,GENERAL FUND CAPITAL,CAPITAL SOFTWARE,K340,21-Oct-20,179706,1972.39,365 ITMS LTD,SEC008
EFDC,26200,OTHER SUPPORT SERVICES,BUILDING MAINTENANCE,1010,21-Oct-20,180072,675,SMART MERCHANTS LTD,SMA002
EFDC,37500,PLANNING SUPPORT SERVICES,AGENCY STAFF,0120,21-Oct-20,180626,587.3,ADECCO UK LTD,ADE002
EFDC,37500,PLANNING SUPPORT SERVICES,AGENCY STAFF,0120,21-Oct-20,180620,587.3,ADECCO UK LTD,ADE002
EFDC,35500,CONTRACT & TECH SUPPORT SERVIC,AGENCY STAFF,0120,21-Oct-20,180337,566.1,HL SERVICES (LONDON) LTD,HLS001
EFDC,37500,PLANNING SUPPORT SERVICES,AGENCY STAFF,0120,21-Oct-20,180624,587.3,ADECCO UK LTD,ADE002
EFDC,RM400,PLANNED & CYCLICAL MAINTENANCE,BUILDING MAINTENANCE,1010,21-Oct-20,180067,930.28,SMART MERCHANTS LTD,SMA002
EFDC,37500,PLANNING SUPPORT SERVICES,AGENCY STAFF,0120,21-Oct-20,180618,587.3,ADECCO UK LTD,ADE002
EFDC,37600,PLANNING SUPPORT SERVICES,AGENCY STAFF,0120,21-Oct-20,180622,865.13,ADECCO UK LTD,ADE002
EFDC,37500,PLANNING SUPPORT SERVICES,AGENCY STAFF,0120,21-Oct-20,180619,587.3,ADECCO UK LTD,ADE002
EFDC,RM400,PLANNED & CYCLICAL MAINTENANCE,BUILDING MAINTENANCE,1010,21-Oct-20,180069,970.76,SMART MERCHANTS LTD,SMA002
EFDC,43310,CONTRACT & TECH SUPPORT SERVIC,AGENCY STAFF,0120,21-Oct-20,180623,613.5,ADECCO UK LTD,ADE002
EFDC,32060,OTHER SUPPORT SERVICES,AGENCY STAFF,0120,21-Oct-20,180711,1628,LAW ABSOLUTE LIMITED,LAW009
EFDC,YA100,SUPERVISION/MANAGEMENT GENERAL,POSTAGE,3510,21-Oct-20,179677,2070.09,MOBILE STATIONERY PRINTING CENTRE LTD,MOB002
EFDC,OS101,PARKS & GROUNDS,TREE  MAINTENANCE,1070,21-Oct-20,179635,1286.85,GRISTWOOD & TOMS LTD,GRI001
EFDC,YB400,SUPERVISION/MANAGEMENT SPECIAL,TREE  MAINTENANCE,1070,21-Oct-20,179635,3502.06,GRISTWOOD & TOMS LTD,GRI001
EFDC,36800,HRA SUPPORT SERVICES,AGENCY STAFF,0120,21-Oct-20,180693,1006.71,HAYS SPECIALIST RECRUITMENT LTD,HAY011
EFDC,YA100,SUPERVISION/MANAGEMENT GENERAL,PRINT OPERATIONS INTERNAL,5420,21-Oct-20,179342,1138,MOBILE STATIONERY PRINTING CENTRE LTD,MOB002
EFDC,YA100,SUPERVISION/MANAGEMENT GENERAL,PRINTING - EXTERNAL,3390,21-Oct-20,179677,796,MOBILE STATIONERY PRINTING CENTRE LTD,MOB002
EFDC,36800,HRA SUPPORT SERVICES,AGENCY STAFF,0120,21-Oct-20,179637,742.5,HAYS SPECIALIST RECRUITMENT LTD,HAY011
EFDC,33060,FINANCE - OTHER ACTIVITIES,AGENCY STAFF,0120,21-Oct-20,179984,1563.3,HAYS SPECIALIST RECRUITMENT LTD,HAY011
EFDC,ED100,LOCAL PLAN IMPLEMENTATION,MARKETING & EVENTS,3370,21-Oct-20,180277,900,DESTINATION RESEARCH LTD,DES001
EFDC,36650,HRA SUPPORT SERVICES,AGENCY STAFF,0120,21-Oct-20,180713,3250,LEONARD CHESHIRE DISABILITY,LEO001
EFDC,36650,HRA SUPPORT SERVICES,AGENCY STAFF,0120,21-Oct-20,179636,2500,HAYS SPECIALIST RECRUITMENT LTD,HAY011
EFDC,32121,OTHER SUPPORT SERVICES,EQUIPMENT - NEW,3010,21-Oct-20,180568,1208.33,CYCLESCHEME LIMITED,CYC001
EFDC,RS301,NORTH WEALD CENTRE,BOOKS & PUBLICATIONS,3350,21-Oct-20,179666,520,JUMP DESIGN & PRINT LTD,JUM001
EFDC,HI122,HIGHWAYS,TREE  MAINTENANCE,1070,21-Oct-20,180739,1120,PRINCIPAL TREES LTD,PRI017
EFDC,TI170,LAND & PROPERTY,PREMISES,1030,21-Oct-20,180753,692.01,SMART MERCHANTS LTD,SMA002
EFDC,78001,HRA SUPPORT SERVICES,UNIFORMS,3220,21-Oct-20,180262,1236.7,CHELMSFORD SAFETY SUPPLIES LTD,CHE020
EFDC,32121,OTHER SUPPORT SERVICES,RECRUITMENT EXPENSES,0320,21-Oct-20,179977,5025,HAYS SPECIALIST RECRUITMENT LTD,HAY011
EFDC,27050,ACCOMMODATION,CLEANING MATERIALS,1610,21-Oct-20,179607,126,CHELMSFORD SAFETY SUPPLIES LTD,CHE020
EFDC,27050,ACCOMMODATION,CLEANING MATERIALS,1610,21-Oct-20,179607,385.5,CHELMSFORD SAFETY SUPPLIES LTD,CHE020
EFDC,27050,ACCOMMODATION,CLEANING MATERIALS,1610,21-Oct-20,179607,339.8,CHELMSFORD SAFETY SUPPLIES LTD,CHE020
EFDC,33060,FINANCE - OTHER ACTIVITIES,AGENCY STAFF,0120,21-Oct-20,179983,2360,HAYS SPECIALIST RECRUITMENT LTD,HAY011
EFDC,27050,ACCOMMODATION,CLEANING MATERIALS,1610,21-Oct-20,179607,199.5,CHELMSFORD SAFETY SUPPLIES LTD,CHE020
EFDC,33060,FINANCE - OTHER ACTIVITIES,AGENCY STAFF,0120,21-Oct-20,179982,2360,HAYS SPECIALIST RECRUITMENT LTD,HAY011
EFDC,27050,ACCOMMODATION,CLEANING MATERIALS,1610,21-Oct-20,179607,308.2,CHELMSFORD SAFETY SUPPLIES LTD,CHE020
EFDC,35400,CONTRACT & TECH SUPPORT SERVIC,AGENCY STAFF,0120,21-Oct-20,179638,700.16,HAYS SPECIALIST RECRUITMENT LTD,HAY011
EFDC,40120,CHIEF EXECUTIVE SUPPORT SERVIC,RECRUITMENT EXPENSES,0320,21-Oct-20,179978,6740.32,HAYS SPECIALIST RECRUITMENT LTD,HAY011
EFDC,78001,HRA SUPPORT SERVICES,MATERIALS,3080,21-Oct-20,180701,1694,IG DOORS LTD,IGD001
EFDC,CAPHR,HRA CAPITAL,WORKS,A040,21-Oct-20,180673,6912.09,EXTERIOR PLAS LTD,EXT001
EFDC,35400,CONTRACT & TECH SUPPORT SERVIC,VEHICLE HIRE,2620,21-Oct-20,179941,913,ERNEST DOE & SONS LTD,ERN001
EFDC,43310,CONTRACT & TECH SUPPORT SERVIC,AGENCY STAFF,0120,21-Oct-20,180621,613.5,ADECCO UK LTD,ADE002
EFDC,26200,OTHER SUPPORT SERVICES,BUILDING MAINTENANCE,1010,21-Oct-20,180630,1268.13,ALERTER GROUP PLC,ALE001
EFDC,35500,CONTRACT & TECH SUPPORT SERVIC,VEHICLE HIRE,2620,21-Oct-20,179941,913,ERNEST DOE & SONS LTD,ERN001
EFDC,YB120,SUPERVISION/MANAGEMENT SPECIAL,AGENCY STAFF,0120,21-Oct-20,180740,615.6,REED SPECIALIST RECRUITMENT LTD,REE002
EFDC,37600,PLANNING SUPPORT SERVICES,AGENCY STAFF,0120,21-Oct-20,180627,865.13,ADECCO UK LTD,ADE002
EFDC,37600,PLANNING SUPPORT SERVICES,AGENCY STAFF,0120,21-Oct-20,180628,865.13,ADECCO UK LTD,ADE002
EFDC,CAPHR,HRA CAPITAL,WORKS,A040,21-Oct-20,180676,683.18,EXTERIOR PLAS LTD,EXT001
EFDC,CAPHR,HRA CAPITAL,WORKS,A040,21-Oct-20,180674,10909.55,EXTERIOR PLAS LTD,EXT001
EFDC,RM100,RESPONSIVE & VOID REPAIRS,BUILDING MAINTENANCE,1010,21-Oct-20,180675,8824.46,EXTERIOR PLAS LTD,EXT001
EFDC,YB120,SUPERVISION/MANAGEMENT SPECIAL,AGENCY STAFF,0120,21-Oct-20,180741,615.6,REED SPECIALIST RECRUITMENT LTD,REE002
EFDC,HI122,HIGHWAYS,TREE  MAINTENANCE,1070,21-Oct-20,179635,3739.92,GRISTWOOD & TOMS LTD,GRI001
EFDC,23110,ACCOMMODATION,ELECTRICITY,1120,21-Oct-20,180579,1221.82,EDF ENERGY,EDF001
EFDC,35500,CONTRACT & TECH SUPPORT SERVIC,AGENCY STAFF,0120,21-Oct-20,180335,780.3,HL SERVICES (LONDON) LTD,HLS001
EFDC,37600,PLANNING SUPPORT SERVICES,AGENCY STAFF,0120,21-Oct-20,180629,738.24,ADECCO UK LTD,ADE002
EFDC,RS302,NORTH WEALD CENTRE,ELECTRICITY,1120,21-Oct-20,180572,5729.94,EDF ENERGY,EDF001
EFDC,RS302,NORTH WEALD CENTRE,ELECTRICITY,1120,21-Oct-20,180582,6007.2,EDF ENERGY,EDF001
EFDC,CAPHR,HRA CAPITAL,WORKS,A040,21-Oct-20,180577,3300,FLOWLINE (BUILDERS) LTD,FLO003
EFDC,27050,ACCOMMODATION,ELECTRICITY,1120,21-Oct-20,180570,6693.56,EDF ENERGY,EDF001
EFDC,CAPHR,HRA CAPITAL,WORKS,A040,21-Oct-20,180576,2114,FLOWLINE (BUILDERS) LTD,FLO003
EFDC,27050,ACCOMMODATION,ELECTRICITY,1120,21-Oct-20,180580,6437.32,EDF ENERGY,EDF001
EFDC,RE100,ELECTIONS,POSTAGE,3510,21-Oct-20,180664,2497.08,CIVICA ELECTION SERVICES LIMITED,ELE013
EFDC,23110,ACCOMMODATION,ELECTRICITY,1120,21-Oct-20,180569,1290.61,EDF ENERGY,EDF001
EFDC,YB400,SUPERVISION/MANAGEMENT SPECIAL,TREE  MAINTENANCE,1070,21-Oct-20,180737,520,PRINCIPAL TREES LTD,PRI017
EFDC,YB400,SUPERVISION/MANAGEMENT SPECIAL,TREE  MAINTENANCE,1070,21-Oct-20,180738,720,PRINCIPAL TREES LTD,PRI017
EFDC,32121,OTHER SUPPORT SERVICES,EQUIPMENT - NEW,3010,21-Oct-20,180568,50,CYCLESCHEME LIMITED,CYC001
EFDC,CAPHR,HRA CAPITAL,WORKS,A040,21-Oct-20,180672,4257.26,EXTERIOR PLAS LTD,EXT001
EFDC,CAPGF,GENERAL FUND CAPITAL,WORKS,J040,21-Oct-20,179722,3000,T B PROPERTY SERVICES (ESSEX) LTD,TBP001
EFDC,RM100,RESPONSIVE & VOID REPAIRS,BUILDING MAINTENANCE,1010,21-Oct-20,180606,2118.9,GRACELANDS COMPLETE MAINTENANCE SERVICES LTD,GRA007
EFDC,36900,HRA SUPPORT SERVICES,AGENCY STAFF,0120,21-Oct-20,180705,1073.25,JAMES ANDREWS RECRUITMENT SOLUTIONS LTD,JAM001
EFDC,36900,HRA SUPPORT SERVICES,AGENCY STAFF,0120,21-Oct-20,180707,1094.75,JAMES ANDREWS RECRUITMENT SOLUTIONS LTD,JAM001
EFDC,RM100,RESPONSIVE & VOID REPAIRS,BUILDING MAINTENANCE,1010,21-Oct-20,180686,812.71,GRACELANDS COMPLETE MAINTENANCE SERVICES LTD,GRA007
EFDC,CAPHR,HRA CAPITAL,WORKS,A040,21-Oct-20,180685,106084.05,GRACELANDS COMPLETE MAINTENANCE SERVICES LTD,GRA007
EFDC,RM100,RESPONSIVE & VOID REPAIRS,BUILDING MAINTENANCE,1010,21-Oct-20,180686,0,GRACELANDS COMPLETE MAINTENANCE SERVICES LTD,GRA007
EFDC,EH155,ENVIRONMENTAL HEALTH,FUEL,2330,21-Oct-20,180750,51.17,SHELL U.K. OIL PRODUCTS LIMITED,SHE007
EFDC,EH151,REGULATORY SERVICES,PRINTING - EXTERNAL,3390,21-Oct-20,180727,332,MFP,MFP001
EFDC,TI170,LAND & PROPERTY,PREMISES,1030,21-Oct-20,180282,575.4,EMERY ELECTRICAL LTD,EME001
EFDC,EH151,REGULATORY SERVICES,PRINTING - EXTERNAL,3390,21-Oct-20,180727,661,MFP,MFP001
EFDC,EH151,REGULATORY SERVICES,PRINTING - EXTERNAL,3390,21-Oct-20,180727,470,MFP,MFP001
EFDC,TO100,LAND & PROPERTY,VEHICLE PARTS / REPAIRS,2210,21-Oct-20,180779,781.56,P TUCKWELL LTD,TUC002
EFDC,EH151,REGULATORY SERVICES,PRINTING - EXTERNAL,3390,21-Oct-20,180727,333,MFP,MFP001
EFDC,RM100,RESPONSIVE & VOID REPAIRS,BUILDING MAINTENANCE,1010,21-Oct-20,180605,546.34,GRACELANDS COMPLETE MAINTENANCE SERVICES LTD,GRA007
EFDC,CAPGF,GENERAL FUND CAPITAL,WORKS,J040,21-Oct-20,179722,3670,T B PROPERTY SERVICES (ESSEX) LTD,TBP001
EFDC,CAPGF,GENERAL FUND CAPITAL,WORKS,J040,21-Oct-20,179722,768,T B PROPERTY SERVICES (ESSEX) LTD,TBP001
EFDC,CAPGF,GENERAL FUND CAPITAL,WORKS,J040,21-Oct-20,179722,220,T B PROPERTY SERVICES (ESSEX) LTD,TBP001
EFDC,78001,HRA SUPPORT SERVICES,EQUIPMENT - NEW,3010,21-Oct-20,180564,11497.6,TRAVIS PERKINS TRADING COMPANY LTD,TRA001
EFDC,78001,HRA SUPPORT SERVICES,EQUIPMENT - NEW,3010,21-Oct-20,180772,1586.95,TRAVIS PERKINS TRADING COMPANY LTD,TRA001
EFDC,78001,HRA SUPPORT SERVICES,EQUIPMENT - NEW,3010,21-Oct-20,180563,886.56,TRAVIS PERKINS TRADING COMPANY LTD,TRA001
EFDC,YB400,SUPERVISION/MANAGEMENT SPECIAL,GROUNDS MAINTENANCE,1040,21-Oct-20,180082,7916.77,SUTCLIFFE PLAY LTD,SUT001
EFDC,YB500,SUPERVISION/MANAGEMENT SPECIAL,WINDOW CLEANING,1620,21-Oct-20,180757,233,STREAK-FREE WINDOW CLEANERS,STR012
EFDC,YB500,SUPERVISION/MANAGEMENT SPECIAL,WINDOW CLEANING,1620,21-Oct-20,180757,289,STREAK-FREE WINDOW CLEANERS,STR012
EFDC,YB200,SUPERVISION/MANAGEMENT SPECIAL,EQUIPMENT - NEW,3010,21-Oct-20,179754,4451.2,TUNSTALL RESPONSE LTD,TUN002
EFDC,TO100,LAND & PROPERTY,VEHICLE PARTS / REPAIRS,2210,21-Oct-20,180780,515.54,P TUCKWELL LTD,TUC002
EFDC,EH151,REGULATORY SERVICES,PRINTING - EXTERNAL,3390,21-Oct-20,180727,641,MFP,MFP001
EFDC,78001,HRA SUPPORT SERVICES,MATERIALS,3080,21-Oct-20,180649,75,CRANBROOK ELECTRICS,CRA001
EFDC,36500,HRA SUPPORT SERVICES,AGENCY STAFF,0120,21-Oct-20,180728,974.16,MORGAN HUNT UK LTD,MOR001
EFDC,35400,CONTRACT & TECH SUPPORT SERVIC,AGENCY STAFF,0120,21-Oct-20,180250,507.58,BERRY RECRUITMENT LTD,BER001
EFDC,YB620,SUPERVISION/MANAGEMENT SPECIAL,EQUIPMENT - NEW,3010,21-Oct-20,180657,720,CRANBROOK ELECTRICS,CRA001
EFDC,RM100,RESPONSIVE & VOID REPAIRS,BUILDING MAINTENANCE,1010,21-Oct-20,180747,2254.27,M & J SERVICES LTD,SER009
EFDC,RM100,RESPONSIVE & VOID REPAIRS,BUILDING MAINTENANCE,1010,21-Oct-20,180745,7144.69,M & J SERVICES LTD,SER009
EFDC,RM100,RESPONSIVE & VOID REPAIRS,BUILDING MAINTENANCE,1010,21-Oct-20,180744,2437.97,M & J SERVICES LTD,SER009
EFDC,78001,HRA SUPPORT SERVICES,MATERIALS,3080,21-Oct-20,180656,39.5,CRANBROOK ELECTRICS,CRA001
EFDC,78001,HRA SUPPORT SERVICES,MATERIALS,3080,21-Oct-20,180656,39.5,CRANBROOK ELECTRICS,CRA001
EFDC,78001,HRA SUPPORT SERVICES,MATERIALS,3080,21-Oct-20,180656,89.1,CRANBROOK ELECTRICS,CRA001
EFDC,78001,HRA SUPPORT SERVICES,MATERIALS,3080,21-Oct-20,180656,150,CRANBROOK ELECTRICS,CRA001
EFDC,78001,HRA SUPPORT SERVICES,MATERIALS,3080,21-Oct-20,180656,78,CRANBROOK ELECTRICS,CRA001
EFDC,RM100,RESPONSIVE & VOID REPAIRS,BUILDING MAINTENANCE,1010,21-Oct-20,180597,1320,GRACELANDS COMPLETE MAINTENANCE SERVICES LTD,GRA007
EFDC,78001,HRA SUPPORT SERVICES,MATERIALS,3080,21-Oct-20,180649,148.5,CRANBROOK ELECTRICS,CRA001
EFDC,RM100,RESPONSIVE & VOID REPAIRS,BUILDING MAINTENANCE,1010,21-Oct-20,180604,568.87,GRACELANDS COMPLETE MAINTENANCE SERVICES LTD,GRA007
EFDC,CAPHR,HRA CAPITAL,WORKS,A040,21-Oct-20,180682,75456.29,GRACELANDS COMPLETE MAINTENANCE SERVICES LTD,GRA007
EFDC,78001,HRA SUPPORT SERVICES,MATERIALS,3080,21-Oct-20,180649,1195,CRANBROOK ELECTRICS,CRA001
EFDC,78001,HRA SUPPORT SERVICES,MATERIALS,3080,21-Oct-20,180649,249.5,CRANBROOK ELECTRICS,CRA001
EFDC,78001,HRA SUPPORT SERVICES,MATERIALS,3080,21-Oct-20,180649,249.5,CRANBROOK ELECTRICS,CRA001
EFDC,78001,HRA SUPPORT SERVICES,MATERIALS,3080,21-Oct-20,180649,75,CRANBROOK ELECTRICS,CRA001
EFDC,78001,HRA SUPPORT SERVICES,MATERIALS,3080,21-Oct-20,180656,77.7,CRANBROOK ELECTRICS,CRA001
EFDC,78001,HRA SUPPORT SERVICES,MATERIALS,3080,21-Oct-20,180656,70,CRANBROOK ELECTRICS,CRA001
EFDC,CAPHR,HRA CAPITAL,VOIDS WORKS,A045,21-Oct-20,180562,1708.6,GRACELANDS COMPLETE MAINTENANCE SERVICES LTD,GRA007
EFDC,CAPHR,HRA CAPITAL,VOIDS WORKS,A045,21-Oct-20,180562,117730.06,GRACELANDS COMPLETE MAINTENANCE SERVICES LTD,GRA007
EFDC,RM400,PLANNED & CYCLICAL MAINTENANCE,BUILDING MAINTENANCE,1010,21-Oct-20,180683,1775.24,GRACELANDS COMPLETE MAINTENANCE SERVICES LTD,GRA007
EFDC,CAPGF,GENERAL FUND CAPITAL,CAPITAL SOFTWARE,K340,21-Oct-20,179657,899.7,INSPIRED TECHNOLOGY SERVICES LTD,INS001
EFDC,36900,HRA SUPPORT SERVICES,AGENCY STAFF,0120,21-Oct-20,180706,1094.75,JAMES ANDREWS RECRUITMENT SOLUTIONS LTD,JAM001
EFDC,78001,HRA SUPPORT SERVICES,MATERIALS,3080,21-Oct-20,180649,599,CRANBROOK ELECTRICS,CRA001
EFDC,YB120,SUPERVISION/MANAGEMENT SPECIAL,FUEL,2330,21-Oct-20,180750,48.31,SHELL U.K. OIL PRODUCTS LIMITED,SHE007
EFDC,TI170,LAND & PROPERTY,PREMISES,1030,21-Oct-20,180753,15,SMART MERCHANTS LTD,SMA002
EFDC,33075,FINANCE - OTHER ACTIVITIES,POSTAGE,3510,21-Oct-20,180575,631,ROYAL MAIL GROUP PLC,ROY015
EFDC,33055,FINANCE - OTHER ACTIVITIES,POSTAGE,3510,21-Oct-20,180575,152.25,ROYAL MAIL GROUP PLC,ROY015
EFDC,78001,HRA SUPPORT SERVICES,FUEL,2330,21-Oct-20,180750,819.62,SHELL U.K. OIL PRODUCTS LIMITED,SHE007
EFDC,78001,HRA SUPPORT SERVICES,FUEL,2330,21-Oct-20,180749,1879.98,SHELL U.K. OIL PRODUCTS LIMITED,SHE007
EFDC,26200,OTHER SUPPORT SERVICES,FIXED PLANT MAINTENANCE,1020,21-Oct-20,180073,625.2,SMART MERCHANTS LTD,SMA002
EFDC,51150,OTHER SUPPORT SERVICES,POSTAGE,3510,21-Oct-20,180575,236.6,ROYAL MAIL GROUP PLC,ROY015
EFDC,32115,OTHER SUPPORT SERVICES,CONSULTANTS FEES,3490,21-Oct-20,179708,1122,SOLACE GROUP LTD,SOL010
EFDC,RE100,ELECTIONS,POSTAGE,3510,21-Oct-20,180575,142.8,ROYAL MAIL GROUP PLC,ROY015
EFDC,YB120,SUPERVISION/MANAGEMENT SPECIAL,FUEL,2330,21-Oct-20,180749,131.9,SHELL U.K. OIL PRODUCTS LIMITED,SHE007
EFDC,35400,CONTRACT & TECH SUPPORT SERVIC,FUEL,2330,21-Oct-20,180423,1557.35,SHELL U.K. OIL PRODUCTS LIMITED,SHE007
EFDC,EI131,LOCAL PLAN IMPLEMENTATION,FUEL,2330,21-Oct-20,180423,68.56,SHELL U.K. OIL PRODUCTS LIMITED,SHE007
EFDC,35500,CONTRACT & TECH SUPPORT SERVIC,FUEL,2330,21-Oct-20,180423,1333.63,SHELL U.K. OIL PRODUCTS LIMITED,SHE007
EFDC,YB400,SUPERVISION/MANAGEMENT SPECIAL,GROUNDS MAINTENANCE,1040,21-Oct-20,179669,583.75,KETTERING PLAYSAFE LIMITED,KET001
EFDC,CAPGF,GENERAL FUND CAPITAL,CONSULTANT FEES,J200,21-Oct-20,180702,780,INGLETON  WOOD,ING001
EFDC,26200,OTHER SUPPORT SERVICES,BUILDING MAINTENANCE,1010,21-Oct-20,180608,1072.9,WILTON DECORATORS LTD,WIL033
EFDC,26200,OTHER SUPPORT SERVICES,BUILDING MAINTENANCE,1010,21-Oct-20,180608,300,WILTON DECORATORS LTD,WIL033
EFDC,26200,OTHER SUPPORT SERVICES,BUILDING MAINTENANCE,1010,21-Oct-20,179628,1575,GBNS PARTNERSHIP LTD,GBN003
EFDC,YB400,SUPERVISION/MANAGEMENT SPECIAL,GROUNDS MAINTENANCE,1040,21-Oct-20,179670,2784.82,KETTERING PLAYSAFE LIMITED,KET001
EFDC,CH113,"MUSEUM, HERITAGE & CULTURE",PROFESSIONAL FEES,3420,21-Oct-20,179361,1610,ROSIE WHITEHOUSE,ROS008
EFDC,CAPGF,GENERAL FUND CAPITAL,WORKS,B040,21-Oct-20,180095,995,UPS POWER SERVICES,UPS008
EFDC,CAPGF,GENERAL FUND CAPITAL,WORKS,B040,21-Oct-20,180095,8576,UPS POWER SERVICES,UPS008
EFDC,CAPGF,GENERAL FUND CAPITAL,WORKS,B040,21-Oct-20,180095,525,UPS POWER SERVICES,UPS008
EFDC,EP100,OTHER ACTIVITIES,OTHER MISCELLANEOUS EXPENSES,3850,21-Oct-20,173249,5357.63,MENTAL HEALTH FIRST AID ENGLAND CIC,MEN006
EFDC,32121,OTHER SUPPORT SERVICES,RECRUITMENT EXPENSES,0320,21-Oct-20,180731,6825,PERKBOX LIMITED,PER004
EFDC,CM103,OTHER ACTIVITIES,CONSULTANTS FEES,3490,21-Oct-20,180708,10770,KPMG LLP,KPM001
EFDC,PP113,LOCAL PLAN IMPLEMENTATION,RECRUITMENT EXPENSES,0320,21-Oct-20,180048,5000,PUBLIC PRACTICE,PUB007
EFDC,RS301,NORTH WEALD CENTRE,CONSULTANTS FEES,3490,21-Oct-20,180094,30688.19,TURNER & TOWNSEND PROJECT MANAGEMENT LTD,TUR004
EFDC,78001,HRA SUPPORT SERVICES,AGENCY STAFF,0120,21-Oct-20,180768,839.88,STRATUS RECRUITMENT (CONTRACTORS) LTD,STR023
EFDC,33080,FINANCE - OTHER ACTIVITIES,EQUIPMENT - HIRED,3020,21-Oct-20,180614,8529.12,MODERN NETWORKS LTD,MOD006
EFDC,78001,HRA SUPPORT SERVICES,AGENCY STAFF,0120,21-Oct-20,180762,939.57,STRATUS RECRUITMENT (CONTRACTORS) LTD,STR023
EFDC,78001,HRA SUPPORT SERVICES,AGENCY STAFF,0120,21-Oct-20,179720,999.45,STRATUS RECRUITMENT (CONTRACTORS) LTD,STR023
EFDC,78001,HRA SUPPORT SERVICES,AGENCY STAFF,0120,21-Oct-20,180764,839.88,STRATUS RECRUITMENT (CONTRACTORS) LTD,STR023
EFDC,PP113,LOCAL PLAN IMPLEMENTATION,RECRUITMENT EXPENSES,0320,21-Oct-20,180049,5000,PUBLIC PRACTICE,PUB007
EFDC,PP113,LOCAL PLAN IMPLEMENTATION,RECRUITMENT EXPENSES,0320,21-Oct-20,180050,5000,PUBLIC PRACTICE,PUB007
EFDC,LA100,LAA POOLED FUNDS,LAA EXPENDITURE,Y100,21-Oct-20,180377,750,JOANNE MAJAUSKIS,MAJ001
EFDC,EP100,OTHER ACTIVITIES,OTHER MISCELLANEOUS EXPENSES,3850,21-Oct-20,180699,14925,HP INC LIMITED,HPI002
EFDC,EP100,OTHER ACTIVITIES,OTHER MISCELLANEOUS EXPENSES,3850,21-Oct-20,180699,2125,HP INC LIMITED,HPI002
EFDC,36500,HRA SUPPORT SERVICES,AGENCY STAFF,0120,21-Oct-20,179626,1701.5,G2 RECRUITMENT SOLUTIONS,G2R001
EFDC,35006,CONTRACT & TECH SUPPORT SERVIC,AGENCY STAFF,0120,21-Oct-20,179958,4345.85,G2 RECRUITMENT SOLUTIONS,G2R001
EFDC,EI131,LOCAL PLAN IMPLEMENTATION,PROFESSIONAL FEES,3420,21-Oct-20,180743,650,RSM DRIVER TRAINING LIMITED,RSM001
EFDC,EI131,LOCAL PLAN IMPLEMENTATION,PROFESSIONAL FEES,3420,21-Oct-20,180743,115,RSM DRIVER TRAINING LIMITED,RSM001
EFDC,CY100,COMMUNITY RESILIENCE,CONTRIBUTIONS,3740,21-Oct-20,180377,350,JOANNE MAJAUSKIS,MAJ001
EFDC,78001,HRA SUPPORT SERVICES,AGENCY STAFF,0120,21-Oct-20,180761,676.57,STRATUS RECRUITMENT (CONTRACTORS) LTD,STR023
EFDC,TO100,LAND & PROPERTY,VEHICLE PARTS / REPAIRS,2210,21-Oct-20,180734,4384,PREMIER VEHICLE MANAGEMENT,PRE040
EFDC,RS301,NORTH WEALD CENTRE,CONSULTANTS FEES,3490,21-Oct-20,180690,4900,HEALTHY ABODE LTD T/A HA ACOUSTICS,HAA001
EFDC,TO100,LAND & PROPERTY,VEHICLE PARTS / REPAIRS,2210,21-Oct-20,180735,4494.97,PREMIER VEHICLE MANAGEMENT,PRE040
EFDC,33080,FINANCE - OTHER ACTIVITIES,EQUIPMENT - HIRED,3020,21-Oct-20,180615,8871.16,MODERN NETWORKS LTD,MOD006
EFDC,35500,CONTRACT & TECH SUPPORT SERVIC,AGENCY STAFF,0120,21-Oct-20,180032,536.5,NEXO RECRUITMENT,NEX002
EFDC,TI170,LAND & PROPERTY,PROFESSIONAL FEES,3420,21-Oct-20,180410,725,PREMIER DRAINAGE COMPANY LTD,PRE009
EFDC,CAPGF,GENERAL FUND CAPITAL,MANAGEMENT CONSULTANT,B130,21-Oct-20,180640,4700,BWB CONSULTING LTD,BWB001
EFDC,32060,OTHER SUPPORT SERVICES,PROFESSIONAL FEES,3420,21-Oct-20,179908,1500,ASHLEY BOWES - CORNERSTONE BARRISTERS,ASH005
EFDC,33080,FINANCE - OTHER ACTIVITIES,EQUIPMENT - HIRED,3020,21-Oct-20,180616,8955.76,MODERN NETWORKS LTD,MOD006
EFDC,78001,HRA SUPPORT SERVICES,AGENCY STAFF,0120,21-Oct-20,180769,839.88,STRATUS RECRUITMENT (CONTRACTORS) LTD,STR023
EFDC,BAL01,EFDC BALANCE SHEET,SALARIES - UNIONS,Z605,23-Oct-20,38105,1105.55,UNISON,UNI001
EFDC,32140,OTHER SUPPORT SERVICES,COMMISSION,9320,23-Oct-20,38105,-27.64,UNISON,UNI001
EFDC,PH100,PRIVATE SECTOR HOUSING,GRANTS GENERAL,3720,23-Oct-20,38112,6893,STANNAH LIFT SERVICES LTD,STA002
EFDC,PH100,PRIVATE SECTOR HOUSING,GRANTS GENERAL,3720,23-Oct-20,38111,2488,STANNAH LIFT SERVICES LTD,STA002
EFDC,PH100,PRIVATE SECTOR HOUSING,GRANTS GENERAL,3720,23-Oct-20,38110,2488,STANNAH LIFT SERVICES LTD,STA002
EFDC,PH100,PRIVATE SECTOR HOUSING,GRANTS GENERAL,3720,23-Oct-20,38108,2788,STANNAH LIFT SERVICES LTD,STA002
EFDC,BAL01,EFDC BALANCE SHEET,HOUSING RENT REFUNDS,Z613,23-Oct-20,38113,5589.3,MR & MRS CAMPLING,3725P
EFDC,PH100,PRIVATE SECTOR HOUSING,GRANTS GENERAL,3720,23-Oct-20,38107,6283,HD PROPERTY SERVICES LIMITED,6878P
EFDC,PH100,PRIVATE SECTOR HOUSING,GRANTS GENERAL,3720,23-Oct-20,38109,5500,J H CONTRACTORS (ESSEX) LIMITED,JHC001
EFDC,BAL01,EFDC BALANCE SHEET,AIMS,Z211,23-Oct-20,38119,7098.3,MR SAAD MIAH,10104P
EFDC,BAL01,EFDC BALANCE SHEET,DEPOSITS - PAID,Z223,23-Oct-20,38114,560,MR N DAWSON,9812P
EFDC,BAL01,EFDC BALANCE SHEET,SUNDRY DEBTORS (OTHER),Z208,23-Oct-20,38114,560,MR N DAWSON,9812P
EFDC,GD100,VOLUNTARY SECTOR SUPPORT,GRANTS TO VOLUNTARY ORGS,3710,27-Oct-20,38142,2977,NAZEING PAROCHIAL CHURCH COUNCIL,7804P
EFDC,BAL01,EFDC BALANCE SHEET,SUNDRY DEBTORS (OTHER),Z208,27-Oct-20,38145,570,NICKOLDS(HMO MANAGEMENT) & MAINTENANCE,10095P
EFDC,GD100,VOLUNTARY SECTOR SUPPORT,GRANTS TO VOLUNTARY ORGS,3710,27-Oct-20,38143,4323,MATCHING GREEN CRICKET CLUB,10110P
EFDC,GD100,VOLUNTARY SECTOR SUPPORT,GRANTS TO VOLUNTARY ORGS,3710,27-Oct-20,38146,915,EPPING BOWLS CLUB,10111P
EFDC,BAL01,EFDC BALANCE SHEET,HOUSING RENT REFUNDS,Z613,27-Oct-20,38155,3321.99,MISS G R SLATER,10120P
EFDC,33080,FINANCE - OTHER ACTIVITIES,ANNUAL SUPPORT /  LICENSES,3872,28-Oct-20,180075,5110,SOFTCAT LTD,SOF002
EFDC,33080,FINANCE - OTHER ACTIVITIES,ANNUAL SUPPORT /  LICENSES,3872,28-Oct-20,180075,4028.36,SOFTCAT LTD,SOF002
EFDC,78001,HRA SUPPORT SERVICES,EQUIPMENT - NEW,3010,28-Oct-20,180771,5316.58,TRAVIS PERKINS TRADING COMPANY LTD,TRA001
EFDC,35400,CONTRACT & TECH SUPPORT SERVIC,PROFESSIONAL FEES,3420,28-Oct-20,180643,1858.5,COMPLETE WEED CONTROL EAST ANGLIA,COM012
EFDC,SC100,WASTE MANAGEMENT,CLEANSING CONTRACTORS,4320,28-Oct-20,180742,189,REGIONAL WASTE RECYCLING (COMMERCIAL) LTD,REG002
EFDC,35400,CONTRACT & TECH SUPPORT SERVIC,PROFESSIONAL FEES,3420,28-Oct-20,180643,77.6,COMPLETE WEED CONTROL EAST ANGLIA,COM012
EFDC,33080,FINANCE - OTHER ACTIVITIES,ANNUAL SUPPORT /  LICENSES,3872,28-Oct-20,180075,4643.6,SOFTCAT LTD,SOF002
EFDC,35500,CONTRACT & TECH SUPPORT SERVIC,PROFESSIONAL FEES,3420,28-Oct-20,180642,294.95,COMPLETE WEED CONTROL EAST ANGLIA,COM012
EFDC,33080,FINANCE - OTHER ACTIVITIES,ANNUAL SUPPORT /  LICENSES,3872,28-Oct-20,180075,32228,SOFTCAT LTD,SOF002
EFDC,35400,CONTRACT & TECH SUPPORT SERVIC,PROFESSIONAL FEES,3420,28-Oct-20,180643,77.6,COMPLETE WEED CONTROL EAST ANGLIA,COM012
EFDC,PS100,CAR PARKING,OTHER MAINTENANCE,1050,28-Oct-20,180011,1352,METRIC GROUP LTD,MET005
EFDC,RS301,NORTH WEALD CENTRE,EQUIPMENT - NEW,3010,28-Oct-20,181018,534,NORTH WEALD FIRE RESCUE,NOR001
EFDC,33080,FINANCE - OTHER ACTIVITIES,ANNUAL SUPPORT /  LICENSES,3872,28-Oct-20,179905,1365.97,ALIGNED ASSETS LIMITED,ALI002
EFDC,43310,CONTRACT & TECH SUPPORT SERVIC,AGENCY STAFF,0120,28-Oct-20,180919,609.41,ADECCO UK LTD,ADE002
EFDC,RS301,NORTH WEALD CENTRE,FIXED PLANT MAINTENANCE,1020,28-Oct-20,180432,1560,C.Q SURFACING LTD,SUR008
EFDC,RS400,"COMMUNITY, HEALTH & WELLBEING",PRINTING - EXTERNAL,3390,28-Oct-20,180726,1080,MFP,MFP001
EFDC,PS100,CAR PARKING,OTHER MAINTENANCE,1050,28-Oct-20,180009,1763.32,METRIC GROUP LTD,MET005
EFDC,DC120,PLANNING REGULATORY SERVICES,PUBLICITY,3360,28-Oct-20,181015,2499,NEWSQUEST MEDIA GROUP,NEW002
EFDC,PP111,LOCAL PLAN IMPLEMENTATION,CONSULTANTS FEES,3490,28-Oct-20,181023,19065.25,OVE ARUP & PARTNERS LTD,OVE002
EFDC,RM400,PLANNED & CYCLICAL MAINTENANCE,BUILDING MAINTENANCE,1010,28-Oct-20,180950,1275,ESSEX LIFT SERVICES LTD,ESS032
EFDC,43310,CONTRACT & TECH SUPPORT SERVIC,AGENCY STAFF,0120,28-Oct-20,181024,6887.07,OVE ARUP & PARTNERS LTD,OVE002
EFDC,26200,OTHER SUPPORT SERVICES,BUILDING MAINTENANCE,1010,28-Oct-20,180981,865.46,GRIGGS STREETLIGHTING & MAINTENANCE LTD,GRI003
EFDC,CAPHR,HRA CAPITAL,EQUIPMENT ACQUISITION,C330,28-Oct-20,181039,855,RVTV SECURITY LTD,RVT001
EFDC,32120,OTHER SUPPORT SERVICES,SUBSCRIPTIONS,3730,28-Oct-20,180099,600,VINE HR LTD,VIN003
EFDC,26200,OTHER SUPPORT SERVICES,BUILDING MAINTENANCE,1010,28-Oct-20,180950,85,ESSEX LIFT SERVICES LTD,ESS032
EFDC,HI124,HIGHWAYS,OTHER MAINTENANCE,1050,28-Oct-20,180932,120,W H CONSTRUCTION LTD,CON014
EFDC,HI124,HIGHWAYS,OTHER MAINTENANCE,1050,28-Oct-20,180932,1200,W H CONSTRUCTION LTD,CON014
EFDC,CAPHR,HRA CAPITAL,VOIDS WORKS,A045,28-Oct-20,181085,765,WOODS BUILDING SERVICES LTD,WOO001
EFDC,35400,CONTRACT & TECH SUPPORT SERVIC,PROFESSIONAL FEES,3420,28-Oct-20,180643,44.25,COMPLETE WEED CONTROL EAST ANGLIA,COM012
EFDC,32060,OTHER SUPPORT SERVICES,CONSULTANTS FEES,3490,28-Oct-20,180748,2101.5,SHARPE PRITCHARD LLP,SHA004
EFDC,26200,OTHER SUPPORT SERVICES,BUILDING MAINTENANCE,1010,28-Oct-20,180950,85,ESSEX LIFT SERVICES LTD,ESS032
EFDC,26200,OTHER SUPPORT SERVICES,BUILDING MAINTENANCE,1010,28-Oct-20,180950,85,ESSEX LIFT SERVICES LTD,ESS032
EFDC,35500,CONTRACT & TECH SUPPORT SERVIC,PROFESSIONAL FEES,3420,28-Oct-20,180642,1135.75,COMPLETE WEED CONTROL EAST ANGLIA,COM012
EFDC,35500,CONTRACT & TECH SUPPORT SERVIC,AGENCY STAFF,0120,28-Oct-20,180991,504.9,HL SERVICES (LONDON) LTD,HLS001
EFDC,EH112,LAND DRAINAGE/SEWERAGE,OTHER MAINTENANCE,1050,28-Oct-20,181081,4013.41,VEOLIA ES (UK) LTD,VER004
EFDC,HI124,HIGHWAYS,OTHER MAINTENANCE,1050,28-Oct-20,180933,1100,W H CONSTRUCTION LTD,CON014
EFDC,RS301,NORTH WEALD CENTRE,FIXED PLANT MAINTENANCE,1020,28-Oct-20,180432,4305,C.Q SURFACING LTD,SUR008
EFDC,35400,CONTRACT & TECH SUPPORT SERVIC,PROFESSIONAL FEES,3420,28-Oct-20,180643,14.75,COMPLETE WEED CONTROL EAST ANGLIA,COM012
EFDC,35400,CONTRACT & TECH SUPPORT SERVIC,VEHICLE HIRE,2620,28-Oct-20,180291,2880,ERNEST DOE & SONS LTD,ERN001
EFDC,CAPHR,HRA CAPITAL,WORKS,A040,28-Oct-20,181070,1839,TOWER ASPHALT LTD,TOW001
EFDC,EH112,LAND DRAINAGE/SEWERAGE,OTHER MAINTENANCE,1050,28-Oct-20,181080,2617,VEOLIA ES (UK) LTD,VER004
EFDC,33060,FINANCE - OTHER ACTIVITIES,AGENCY STAFF,0120,28-Oct-20,179979,2360,HAYS SPECIALIST RECRUITMENT LTD,HAY011
EFDC,CAPHR,HRA CAPITAL,WORKS,A040,28-Oct-20,180612,299.24,PYRODEC LTD,PYR001
EFDC,CAPHR,HRA CAPITAL,WORKS,A040,28-Oct-20,180613,420,PYRODEC LTD,PYR001
EFDC,BA100,HOUSING BENEFITS,LICENCES,3870,28-Oct-20,180098,625,VICTORIA SOLUTIONS LTD,VIC002
EFDC,37500,PLANNING SUPPORT SERVICES,AGENCY STAFF,0120,28-Oct-20,180917,587.3,ADECCO UK LTD,ADE002
EFDC,33060,FINANCE - OTHER ACTIVITIES,AGENCY STAFF,0120,28-Oct-20,179980,1563.3,HAYS SPECIALIST RECRUITMENT LTD,HAY011
EFDC,33060,FINANCE - OTHER ACTIVITIES,AGENCY STAFF,0120,28-Oct-20,179981,3870,HAYS SPECIALIST RECRUITMENT LTD,HAY011
EFDC,36900,HRA SUPPORT SERVICES,AGENCY STAFF,0120,28-Oct-20,180995,2274.72,JAMES ANDREWS RECRUITMENT SOLUTIONS LTD,JAM001
EFDC,32115,OTHER SUPPORT SERVICES,TRAINING EXPENSES,0310,28-Oct-20,181098,1560,WRITTLE COLLEGE,WRI004
EFDC,CAPHR,HRA CAPITAL,WORKS,A040,28-Oct-20,180977,31932.6,GRACELANDS COMPLETE MAINTENANCE SERVICES LTD,GRA007
EFDC,CAPHR,HRA CAPITAL,WORKS,A040,28-Oct-20,180589,420,PYRODEC LTD,PYR001
EFDC,35400,CONTRACT & TECH SUPPORT SERVIC,AGENCY STAFF,0120,28-Oct-20,179976,700.16,HAYS SPECIALIST RECRUITMENT LTD,HAY011
EFDC,CAPHR,HRA CAPITAL,WORKS,A040,28-Oct-20,180611,420,PYRODEC LTD,PYR001
EFDC,26200,OTHER SUPPORT SERVICES,BUILDING MAINTENANCE,1010,28-Oct-20,180012,524.04,MITIE SECURITY LTD,MIT004
EFDC,TI220,LAND & PROPERTY,PROFESSIONAL FEES,3420,28-Oct-20,180759,4600,STRUCTURAL ENGINEERS CAMBRIDGE LTD,STR013
EFDC,SC100,WASTE MANAGEMENT,CLEANSING CONTRACTORS,4320,28-Oct-20,180742,450,REGIONAL WASTE RECYCLING (COMMERCIAL) LTD,REG002
EFDC,TI220,LAND & PROPERTY,PROFESSIONAL FEES,3420,28-Oct-20,180759,1310,STRUCTURAL ENGINEERS CAMBRIDGE LTD,STR013
EFDC,FD100,LAND DRAINAGE/SEWERAGE,CLEANSING CONTRACTORS,4320,28-Oct-20,180342,1596,HYDRO-LOGIC SERVICES INTERNATIONAL LLP,HYD001
EFDC,78001,HRA SUPPORT SERVICES,UNIFORMS,3220,28-Oct-20,180926,3978.45,CHELMSFORD SAFETY SUPPLIES LTD,CHE020
EFDC,36800,HRA SUPPORT SERVICES,AGENCY STAFF,0120,28-Oct-20,180691,780.27,HAYS SPECIALIST RECRUITMENT LTD,HAY011
EFDC,33060,FINANCE - OTHER ACTIVITIES,AGENCY STAFF,0120,28-Oct-20,180984,3870,HAYS SPECIALIST RECRUITMENT LTD,HAY011
EFDC,33060,FINANCE - OTHER ACTIVITIES,AGENCY STAFF,0120,28-Oct-20,180985,2360,HAYS SPECIALIST RECRUITMENT LTD,HAY011
EFDC,SC100,WASTE MANAGEMENT,CLEANSING CONTRACTORS,4320,28-Oct-20,180742,55,REGIONAL WASTE RECYCLING (COMMERCIAL) LTD,REG002
EFDC,32060,OTHER SUPPORT SERVICES,AGENCY STAFF,0120,28-Oct-20,180712,1628,LAW ABSOLUTE LIMITED,LAW009
EFDC,RM100,RESPONSIVE & VOID REPAIRS,BUILDING MAINTENANCE,1010,28-Oct-20,180896,1923.23,GRACELANDS COMPLETE MAINTENANCE SERVICES LTD,GRA007
EFDC,35400,CONTRACT & TECH SUPPORT SERVIC,AGENCY STAFF,0120,28-Oct-20,180990,504.9,HL SERVICES (LONDON) LTD,HLS001
EFDC,36500,HRA SUPPORT SERVICES,AGENCY STAFF,0120,28-Oct-20,181014,974.16,MORGAN HUNT UK LTD,MOR001
EFDC,36900,HRA SUPPORT SERVICES,AGENCY STAFF,0120,28-Oct-20,180996,1102,JAMES ANDREWS RECRUITMENT SOLUTIONS LTD,JAM001
EFDC,32121,OTHER SUPPORT SERVICES,RECRUITMENT EXPENSES,0320,28-Oct-20,180987,3408,HAYS SPECIALIST RECRUITMENT LTD,HAY011
EFDC,TI220,LAND & PROPERTY,PROFESSIONAL FEES,3420,28-Oct-20,180759,2091,STRUCTURAL ENGINEERS CAMBRIDGE LTD,STR013
EFDC,33080,FINANCE - OTHER ACTIVITIES,ANNUAL SUPPORT /  LICENSES,3872,28-Oct-20,180075,9583,SOFTCAT LTD,SOF002
EFDC,37500,PLANNING SUPPORT SERVICES,AGENCY STAFF,0120,28-Oct-20,180918,587.3,ADECCO UK LTD,ADE002
EFDC,BA100,HOUSING BENEFITS,CONSULTANTS FEES,3490,28-Oct-20,180098,625,VICTORIA SOLUTIONS LTD,VIC002
EFDC,CAPHR,HRA CAPITAL,WORKS,A040,28-Oct-20,180591,420,PYRODEC LTD,PYR001
EFDC,RM400,PLANNED & CYCLICAL MAINTENANCE,BUILDING MAINTENANCE,1010,28-Oct-20,179907,5324.55,ALLIED MECHANICAL SERVICES LTD,ALL002
EFDC,CAPHR,HRA CAPITAL,WORKS,A040,28-Oct-20,180611,299.24,PYRODEC LTD,PYR001
EFDC,CAPHR,HRA CAPITAL,WORKS,A040,28-Oct-20,180591,299.24,PYRODEC LTD,PYR001
EFDC,CAPHR,HRA CAPITAL,WORKS,A040,28-Oct-20,180589,299.24,PYRODEC LTD,PYR001
EFDC,CAPHR,HRA CAPITAL,WORKS,A040,28-Oct-20,180592,420,PYRODEC LTD,PYR001
EFDC,CAPHR,HRA CAPITAL,WORKS,A040,28-Oct-20,180613,299.24,PYRODEC LTD,PYR001
EFDC,CAPHR,HRA CAPITAL,WORKS,A040,28-Oct-20,180592,299.24,PYRODEC LTD,PYR001
EFDC,35500,CONTRACT & TECH SUPPORT SERVIC,AGENCY STAFF,0120,28-Oct-20,180989,504.9,HL SERVICES (LONDON) LTD,HLS001
EFDC,CAPHR,HRA CAPITAL,WORKS,A040,28-Oct-20,180612,420,PYRODEC LTD,PYR001
EFDC,CAPHR,HRA CAPITAL,WORKS,A040,28-Oct-20,180925,47.5,BRIAR CONSULTING ENGINEERS LTD,BRI021
EFDC,CAPHR,HRA CAPITAL,WORKS,A040,28-Oct-20,180925,47.5,BRIAR CONSULTING ENGINEERS LTD,BRI021
EFDC,CAPHR,HRA CAPITAL,WORKS,A040,28-Oct-20,180925,47.5,BRIAR CONSULTING ENGINEERS LTD,BRI021
EFDC,CAPHR,HRA CAPITAL,WORKS,A040,28-Oct-20,180925,47.5,BRIAR CONSULTING ENGINEERS LTD,BRI021
EFDC,CAPHR,HRA CAPITAL,WORKS,A040,28-Oct-20,180925,47.5,BRIAR CONSULTING ENGINEERS LTD,BRI021
EFDC,GT100,LOCAL PLAN IMPLEMENTATION,EQUIPMENT - NEW,3010,28-Oct-20,180004,8064.82,LONDON GREEN CYCLES LTD,LON018
EFDC,TO100,LAND & PROPERTY,VEHICLE PARTS / REPAIRS,2210,28-Oct-20,181034,4650,PREMIER VEHICLE MANAGEMENT,PRE040
EFDC,GT100,LOCAL PLAN IMPLEMENTATION,EQUIPMENT - NEW,3010,28-Oct-20,180004,400,LONDON GREEN CYCLES LTD,LON018
EFDC,GT100,LOCAL PLAN IMPLEMENTATION,EQUIPMENT - NEW,3010,28-Oct-20,180004,408.32,LONDON GREEN CYCLES LTD,LON018
EFDC,CAPHR,HRA CAPITAL,WORKS,A040,28-Oct-20,180925,47.5,BRIAR CONSULTING ENGINEERS LTD,BRI021
EFDC,CAPHR,HRA CAPITAL,WORKS,A040,28-Oct-20,180925,47.5,BRIAR CONSULTING ENGINEERS LTD,BRI021
EFDC,CAPHR,HRA CAPITAL,WORKS,A040,28-Oct-20,180925,47.5,BRIAR CONSULTING ENGINEERS LTD,BRI021
EFDC,CAPHR,HRA CAPITAL,WORKS,A040,28-Oct-20,180925,47.5,BRIAR CONSULTING ENGINEERS LTD,BRI021
EFDC,CAPHR,HRA CAPITAL,WORKS,A040,28-Oct-20,180925,47.5,BRIAR CONSULTING ENGINEERS LTD,BRI021
EFDC,CAPHR,HRA CAPITAL,WORKS,A040,28-Oct-20,180925,47.5,BRIAR CONSULTING ENGINEERS LTD,BRI021
EFDC,CAPHR,HRA CAPITAL,WORKS,A040,28-Oct-20,180925,47.5,BRIAR CONSULTING ENGINEERS LTD,BRI021
EFDC,CAPHR,HRA CAPITAL,WORKS,A040,28-Oct-20,180925,47.5,BRIAR CONSULTING ENGINEERS LTD,BRI021
EFDC,CAPHR,HRA CAPITAL,WORKS,A040,28-Oct-20,180925,47.5,BRIAR CONSULTING ENGINEERS LTD,BRI021
EFDC,CAPHR,HRA CAPITAL,WORKS,A040,28-Oct-20,180925,47.5,BRIAR CONSULTING ENGINEERS LTD,BRI021
EFDC,CAPHR,HRA CAPITAL,WORKS,A040,28-Oct-20,180925,47.5,BRIAR CONSULTING ENGINEERS LTD,BRI021
EFDC,CAPHR,HRA CAPITAL,WORKS,A040,28-Oct-20,180925,47.5,BRIAR CONSULTING ENGINEERS LTD,BRI021
EFDC,CAPHR,HRA CAPITAL,WORKS,A040,28-Oct-20,180925,47.5,BRIAR CONSULTING ENGINEERS LTD,BRI021
EFDC,CAPHR,HRA CAPITAL,WORKS,A040,28-Oct-20,180925,47.5,BRIAR CONSULTING ENGINEERS LTD,BRI021
EFDC,32220,OTHER SUPPORT SERVICES,PROFESSIONAL FEES,3420,28-Oct-20,180703,1500,INGLETON  WOOD,ING001
EFDC,CAPHR,HRA CAPITAL,WORKS,A040,28-Oct-20,180925,47.5,BRIAR CONSULTING ENGINEERS LTD,BRI021
EFDC,GT100,LOCAL PLAN IMPLEMENTATION,EQUIPMENT - NEW,3010,28-Oct-20,180004,313.32,LONDON GREEN CYCLES LTD,LON018
EFDC,CAPHR,HRA CAPITAL,WORKS,A040,28-Oct-20,180925,47.5,BRIAR CONSULTING ENGINEERS LTD,BRI021
EFDC,CAPGF,GENERAL FUND CAPITAL,CONSULTANCY FEES,B200,28-Oct-20,180710,16065,LA FOSSE ASSOCIATES LIMITED,LAF001
EFDC,78001,HRA SUPPORT SERVICES,AGENCY STAFF,0120,28-Oct-20,181048,1767.9,STRATUS RECRUITMENT (CONTRACTORS) LTD,STR023
EFDC,TO100,LAND & PROPERTY,VEHICLE PARTS / REPAIRS,2210,28-Oct-20,181035,4206.6,PREMIER VEHICLE MANAGEMENT,PRE040
EFDC,78001,HRA SUPPORT SERVICES,AGENCY STAFF,0120,28-Oct-20,181055,889.2,STRATUS RECRUITMENT (CONTRACTORS) LTD,STR023
EFDC,78001,HRA SUPPORT SERVICES,AGENCY STAFF,0120,28-Oct-20,181057,839.88,STRATUS RECRUITMENT (CONTRACTORS) LTD,STR023
EFDC,26200,OTHER SUPPORT SERVICES,BUILDING MAINTENANCE,1010,28-Oct-20,180395,2665.94,NCC MECHANICAL LIMITED,NNC001
EFDC,78001,HRA SUPPORT SERVICES,AGENCY STAFF,0120,28-Oct-20,180765,1000.17,STRATUS RECRUITMENT (CONTRACTORS) LTD,STR023
EFDC,78001,HRA SUPPORT SERVICES,AGENCY STAFF,0120,28-Oct-20,180766,821.28,STRATUS RECRUITMENT (CONTRACTORS) LTD,STR023
EFDC,78001,HRA SUPPORT SERVICES,AGENCY STAFF,0120,28-Oct-20,181056,1511.46,STRATUS RECRUITMENT (CONTRACTORS) LTD,STR023
EFDC,78001,HRA SUPPORT SERVICES,AGENCY STAFF,0120,28-Oct-20,181051,1426.29,STRATUS RECRUITMENT (CONTRACTORS) LTD,STR023
EFDC,78001,HRA SUPPORT SERVICES,AGENCY STAFF,0120,28-Oct-20,181054,889.2,STRATUS RECRUITMENT (CONTRACTORS) LTD,STR023
EFDC,GT100,LOCAL PLAN IMPLEMENTATION,CONSULTANTS FEES,3490,28-Oct-20,180033,1666,GUY NICHOLSON,NIC023
EFDC,78001,HRA SUPPORT SERVICES,AGENCY STAFF,0120,28-Oct-20,181050,1242.84,STRATUS RECRUITMENT (CONTRACTORS) LTD,STR023
EFDC,23110,ACCOMMODATION,SECURITY,1650,28-Oct-20,180951,280,ESSENTIAL SECURITY SYSTEMS LTD,ESS033
EFDC,LA100,LAA POOLED FUNDS,LAA EXPENDITURE,Y100,28-Oct-20,180722,1125,JOANNE MAJAUSKIS,MAJ001
EFDC,GT100,LOCAL PLAN IMPLEMENTATION,EQUIPMENT - NEW,3010,28-Oct-20,180004,1200,LONDON GREEN CYCLES LTD,LON018
EFDC,37600,PLANNING SUPPORT SERVICES,AGENCY STAFF,0120,28-Oct-20,180046,1277.5,PARK AVENUE RECRUITMENT LTD,PAR088
EFDC,37600,PLANNING SUPPORT SERVICES,AGENCY STAFF,0120,28-Oct-20,180045,1260,PARK AVENUE RECRUITMENT LTD,PAR088
EFDC,57100,HRA SUPPORT SERVICES,AGENCY STAFF,0120,28-Oct-20,180331,3550,GREENACRE RECRUITMENT LTD,GRE029
EFDC,GT100,LOCAL PLAN IMPLEMENTATION,CONSULTANTS FEES,3490,28-Oct-20,180661,4485.01,CUSHMAN & WAKEFIELD DEBENHAM TIE LEUNG LTD,CUS022
EFDC,CAPGF,GENERAL FUND CAPITAL,CONSULTANCY FEES,B200,28-Oct-20,179965,10075,GARDINER & THEOBALD LLP,GAR004
EFDC,32121,OTHER SUPPORT SERVICES,LEGAL EXPENSES,3680,28-Oct-20,179942,5000,THE EMPLOYMENT SERVICES PARTNERSHIP LTD,ESP008
EFDC,32121,OTHER SUPPORT SERVICES,LEGAL EXPENSES,3680,28-Oct-20,180946,5000,THE EMPLOYMENT SERVICES PARTNERSHIP LTD,ESP008
EFDC,YD100,"RENTS, RATES TAXES & INSURANCE",WATER CHARGES,1410,28-Oct-20,180898,549.63,CASTLE WATER LTD,CAS001
EFDC,CAPGF,GENERAL FUND CAPITAL,CONSULTANCY FEES,B200,28-Oct-20,180709,11000,LA FOSSE ASSOCIATES LIMITED,LAF001
EFDC,GT100,LOCAL PLAN IMPLEMENTATION,EQUIPMENT - NEW,3010,28-Oct-20,180004,300,LONDON GREEN CYCLES LTD,LON018
EFDC,GT100,LOCAL PLAN IMPLEMENTATION,EQUIPMENT - NEW,3010,28-Oct-20,180004,150,LONDON GREEN CYCLES LTD,LON018
EFDC,CAPHR,HRA CAPITAL,WORKS,A040,28-Oct-20,180925,47.5,BRIAR CONSULTING ENGINEERS LTD,BRI021
EFDC,23110,ACCOMMODATION,SECURITY,1650,28-Oct-20,180951,395,ESSENTIAL SECURITY SYSTEMS LTD,ESS033
EFDC,TO100,LAND & PROPERTY,VEHICLE PARTS / REPAIRS,2210,28-Oct-20,181033,4054,PREMIER VEHICLE MANAGEMENT,PRE040
EFDC,WC200,WASTE MANAGEMENT,CLEANSING CONTRACTORS,4320,28-Oct-20,180978,1015,LOCAL GREEN POINTS LLP,GRE020
EFDC,26200,OTHER SUPPORT SERVICES,FIXED PLANT MAINTENANCE,1020,28-Oct-20,180066,265,SGM LIGHT UK LTD,SGM001
EFDC,26200,OTHER SUPPORT SERVICES,FIXED PLANT MAINTENANCE,1020,28-Oct-20,180066,4104,SGM LIGHT UK LTD,SGM001
EFDC,40120,CHIEF EXECUTIVE SUPPORT SERVIC,CONSULTANTS FEES,3490,28-Oct-20,180343,513,IDEA IMPROVEMENT & DEVELOPMENT AGENCY,IMP020
EFDC,CAPGF,GENERAL FUND CAPITAL,MANAGEMENT CONSULTANT,B130,28-Oct-20,180259,7950,BWB CONSULTING LTD,BWB001
EFDC,CAPGF,GENERAL FUND CAPITAL,CONSULTANCY FEES,B200,28-Oct-20,180412,11800,PRESS & STARKEY,PRE017
EFDC,GT100,LOCAL PLAN IMPLEMENTATION,PROFESSIONAL FEES,3420,28-Oct-20,179974,3200,GUNILLA EDWARDS,GUN001
EFDC,78001,HRA SUPPORT SERVICES,AGENCY STAFF,0120,28-Oct-20,181077,522,VENTURE CONSTRUCTION SERVICES LTD,VEN002
EFDC,26200,OTHER SUPPORT SERVICES,BUILDING MAINTENANCE,1010,28-Oct-20,180407,81.67,PH WATER TECHNOLOGIES LTD,PHW003
EFDC,WC200,WASTE MANAGEMENT,CLEANSING CONTRACTORS,4320,28-Oct-20,180978,300,LOCAL GREEN POINTS LLP,GRE020
EFDC,WC200,WASTE MANAGEMENT,CLEANSING CONTRACTORS,4320,28-Oct-20,180978,468,LOCAL GREEN POINTS LLP,GRE020
EFDC,WC200,WASTE MANAGEMENT,CLEANSING CONTRACTORS,4320,28-Oct-20,180978,450,LOCAL GREEN POINTS LLP,GRE020
EFDC,RS301,NORTH WEALD CENTRE,CLEANING MATERIALS,1610,28-Oct-20,180994,882,HYGIENECO WASHROOMS LIMITED,HYG005
EFDC,RM100,RESPONSIVE & VOID REPAIRS,BUILDING MAINTENANCE,1010,28-Oct-20,180979,2060,GREEN EARTH MANAGEMENT COMPANY LTD,GRE026
EFDC,RS301,NORTH WEALD CENTRE,CLEANING MATERIALS,1610,28-Oct-20,180994,661.5,HYGIENECO WASHROOMS LIMITED,HYG005
EFDC,WC200,WASTE MANAGEMENT,CLEANSING CONTRACTORS,4320,28-Oct-20,180978,2385,LOCAL GREEN POINTS LLP,GRE020
EFDC,CAPHR,HRA CAPITAL,WORKS,A040,28-Oct-20,180925,47.5,BRIAR CONSULTING ENGINEERS LTD,BRI021
EFDC,GT100,LOCAL PLAN IMPLEMENTATION,EQUIPMENT - NEW,3010,28-Oct-20,180004,2541.66,LONDON GREEN CYCLES LTD,LON018
EFDC,TO100,LAND & PROPERTY,VEHICLE PARTS / REPAIRS,2210,28-Oct-20,180999,839,JUST TRANSIT SPARES LTD,JUS005
EFDC,GT100,LOCAL PLAN IMPLEMENTATION,EQUIPMENT - NEW,3010,28-Oct-20,180004,366.6,LONDON GREEN CYCLES LTD,LON018
EFDC,RM400,PLANNED & CYCLICAL MAINTENANCE,BUILDING MAINTENANCE,1010,28-Oct-20,180407,879.87,PH WATER TECHNOLOGIES LTD,PHW003
EFDC,GT100,LOCAL PLAN IMPLEMENTATION,EQUIPMENT - NEW,3010,28-Oct-20,180004,66.67,LONDON GREEN CYCLES LTD,LON018
EFDC,GT100,LOCAL PLAN IMPLEMENTATION,EQUIPMENT - NEW,3010,28-Oct-20,180004,66.66,LONDON GREEN CYCLES LTD,LON018
EFDC,GT100,LOCAL PLAN IMPLEMENTATION,PROFESSIONAL FEES,3420,28-Oct-20,179985,6000,HELEN MARSHALL LTD T/A THE PEOPLE'S PICTURE,HEL002
EFDC,26200,OTHER SUPPORT SERVICES,BUILDING MAINTENANCE,1010,28-Oct-20,180407,81.67,PH WATER TECHNOLOGIES LTD,PHW003
EFDC,26200,OTHER SUPPORT SERVICES,BUILDING MAINTENANCE,1010,28-Oct-20,180407,78.33,PH WATER TECHNOLOGIES LTD,PHW003
EFDC,GT100,LOCAL PLAN IMPLEMENTATION,EQUIPMENT - NEW,3010,28-Oct-20,180004,57.5,LONDON GREEN CYCLES LTD,LON018
EFDC,GT100,LOCAL PLAN IMPLEMENTATION,EQUIPMENT - NEW,3010,28-Oct-20,180004,5.42,LONDON GREEN CYCLES LTD,LON018
EFDC,32060,OTHER SUPPORT SERVICES,CONSULTANTS FEES,3490,28-Oct-20,181082,823,WILKIN CHAPMAN LLP,WIL034
EFDC,GT100,LOCAL PLAN IMPLEMENTATION,PROFESSIONAL FEES,3420,28-Oct-20,180100,7500,WELL NORTH ENTERPRISES CIC LTD,WEL002
EFDC,ED100,LOCAL PLAN IMPLEMENTATION,CONSULTANTS FEES,3490,28-Oct-20,180080,5246.5,STUDIO 3 LTD,STU007
EFDC,GT100,LOCAL PLAN IMPLEMENTATION,EQUIPMENT - NEW,3010,28-Oct-20,180004,2025,LONDON GREEN CYCLES LTD,LON018
EFDC,26200,OTHER SUPPORT SERVICES,FIXED PLANT MAINTENANCE,1020,28-Oct-20,180066,55,SGM LIGHT UK LTD,SGM001
EFDC,26200,OTHER SUPPORT SERVICES,BUILDING MAINTENANCE,1010,28-Oct-20,180407,78.33,PH WATER TECHNOLOGIES LTD,PHW003
EFDC,36500,HRA SUPPORT SERVICES,AGENCY STAFF,0120,28-Oct-20,180310,1517,G2 RECRUITMENT SOLUTIONS,G2R001
EFDC,BAL01,EFDC BALANCE SHEET,AIMS,Z211,30-Oct-20,38189,7376.29,P.A. SPARKS & SONS LTD,10137P
EFDC,BAL01,EFDC BALANCE SHEET,AIMS,Z211,30-Oct-20,38190,699.84,THE SCOUT ASSOCIATION,10138P
EFDC,PH100,PRIVATE SECTOR HOUSING,GRANTS GENERAL,3720,03-Nov-20,38232,5197,STANNAH LIFT SERVICES LTD,STA002
EFDC,PH100,PRIVATE SECTOR HOUSING,GRANTS GENERAL,3720,03-Nov-20,38231,2714,STANNAH LIFT SERVICES LTD,STA002
EFDC,PH100,PRIVATE SECTOR HOUSING,GRANTS GENERAL,3720,03-Nov-20,38233,3024,STANNAH LIFT SERVICES LTD,STA002
EFDC,TO100,LAND & PROPERTY,LEVY FEES,3890,03-Nov-20,38230,2050,DVSA FINANCE SERVICE MANAGEMENT,5750P
EFDC,PH100,PRIVATE SECTOR HOUSING,GRANTS GENERAL,3720,03-Nov-20,38234,560,ACCESSIBLE SOLUTIONS LIMITED,ACC002
EFDC,GD100,VOLUNTARY SECTOR SUPPORT,GRANTS TO VOLUNTARY ORGS,3710,03-Nov-20,38229,2500,ST MARGARET'S CHURCH - STANFORD RIVERS,10148P
EFDC,PR100,CAPITAL POOLING,PAYMENT TO CENTRAL GOVERNMENT,7050,03-Nov-20,38239,419656.59,MINISTRY OF HOUSING,9651P
EFDC,23110,ACCOMMODATION,REFUSE REMOVAL,1640,04-Nov-20,181207,25.23,BIFFA MUNICIPAL LTD,BIF001
EFDC,CAPHR,HRA CAPITAL,WORKS,A040,04-Nov-20,181434,15531.39,VSN ENTERPRISES LTD,VSN001
EFDC,CAPHR,HRA CAPITAL,WORKS,A040,04-Nov-20,181434,10400,VSN ENTERPRISES LTD,VSN001
EFDC,78001,HRA SUPPORT SERVICES,MATERIALS,3080,04-Nov-20,181289,623.75,CRANBROOK ELECTRICS,CRA001
EFDC,33075,FINANCE - OTHER ACTIVITIES,POSTAGE,3510,04-Nov-20,181358,651,MFP,MFP001
EFDC,33075,FINANCE - OTHER ACTIVITIES,POSTAGE,3510,04-Nov-20,181358,623,MFP,MFP001
EFDC,35500,CONTRACT & TECH SUPPORT SERVIC,AGENCY STAFF,0120,04-Nov-20,181346,504.9,HL SERVICES (LONDON) LTD,HLS001
EFDC,35400,CONTRACT & TECH SUPPORT SERVIC,AGENCY STAFF,0120,04-Nov-20,181345,504.9,HL SERVICES (LONDON) LTD,HLS001
EFDC,33075,FINANCE - OTHER ACTIVITIES,POSTAGE,3510,04-Nov-20,181358,525,MFP,MFP001
EFDC,33075,FINANCE - OTHER ACTIVITIES,POSTAGE,3510,04-Nov-20,181358,661,MFP,MFP001
EFDC,32060,OTHER SUPPORT SERVICES,AGENCY STAFF,0120,04-Nov-20,181004,1628,LAW ABSOLUTE LIMITED,LAW009
EFDC,51150,OTHER SUPPORT SERVICES,TRAINING EXPENSES,0310,04-Nov-20,181421,3200,UNIVERSITY OF WESTMINSTER,UNI005
EFDC,51140,OTHER SUPPORT SERVICES,AGENCY STAFF,0120,04-Nov-20,181384,577.44,REED SPECIALIST RECRUITMENT LTD,REE002
EFDC,BAL01,EFDC BALANCE SHEET,TUSKER CAR SCHEME,Z631,04-Nov-20,181260,756.6,TUSKERDIRECT LTD,TUS002
EFDC,YB500,SUPERVISION/MANAGEMENT SPECIAL,GAS,1110,04-Nov-20,181229,508.13,CORONA ENERGY RETAIL 4 LTD,COR015
EFDC,YB400,SUPERVISION/MANAGEMENT SPECIAL,CLEANSING CONTRACTORS,4320,04-Nov-20,181207,170.62,BIFFA MUNICIPAL LTD,BIF001
EFDC,YB500,SUPERVISION/MANAGEMENT SPECIAL,GAS,1110,04-Nov-20,181236,614.27,CORONA ENERGY RETAIL 4 LTD,COR015
EFDC,36800,HRA SUPPORT SERVICES,AGENCY STAFF,0120,04-Nov-20,180692,779.85,HAYS SPECIALIST RECRUITMENT LTD,HAY011
EFDC,WC200,WASTE MANAGEMENT,CLEANSING CONTRACTORS,4320,04-Nov-20,181207,29168,BIFFA MUNICIPAL LTD,BIF001
EFDC,WC102,WASTE MANAGEMENT,CLEANSING CONTRACTORS,4320,04-Nov-20,181207,545.97,BIFFA MUNICIPAL LTD,BIF001
EFDC,YB500,SUPERVISION/MANAGEMENT SPECIAL,GAS,1110,04-Nov-20,181235,600.04,CORONA ENERGY RETAIL 4 LTD,COR015
EFDC,BAL01,EFDC BALANCE SHEET,TUSKER CAR SCHEME,Z631,04-Nov-20,181260,-1566.25,TUSKERDIRECT LTD,TUS002
EFDC,27050,ACCOMMODATION,GAS,1110,04-Nov-20,181238,695.2,CORONA ENERGY RETAIL 4 LTD,COR015
EFDC,BAL01,EFDC BALANCE SHEET,TUSKER CAR SCHEME,Z631,04-Nov-20,181260,2344.24,TUSKERDIRECT LTD,TUS002
EFDC,BAL01,EFDC BALANCE SHEET,TUSKER CAR SCHEME,Z631,04-Nov-20,181260,5.19,TUSKERDIRECT LTD,TUS002
EFDC,BAL01,EFDC BALANCE SHEET,TUSKER CAR SCHEME,Z631,04-Nov-20,181260,1686.69,TUSKERDIRECT LTD,TUS002
EFDC,YB400,SUPERVISION/MANAGEMENT SPECIAL,CLEANSING CONTRACTORS,4320,04-Nov-20,181207,-16.2,BIFFA MUNICIPAL LTD,BIF001
EFDC,EH120,PRIVATE SECTOR HOUSING,OTHER MISCELLANEOUS EXPENSES,3850,04-Nov-20,180677,850,MR JOHN FITZSIMONS,FIT002
EFDC,33060,FINANCE - OTHER ACTIVITIES,AGENCY STAFF,0120,04-Nov-20,180983,3870,HAYS SPECIALIST RECRUITMENT LTD,HAY011
EFDC,33060,FINANCE - OTHER ACTIVITIES,AGENCY STAFF,0120,04-Nov-20,180982,1563.3,HAYS SPECIALIST RECRUITMENT LTD,HAY011
EFDC,YB500,SUPERVISION/MANAGEMENT SPECIAL,GAS,1110,04-Nov-20,181239,570.07,CORONA ENERGY RETAIL 4 LTD,COR015
EFDC,CAPHR,HRA CAPITAL,LEGAL FEES,E140,04-Nov-20,181220,1500,LANDMARK CHAMBERS,KNA001
EFDC,51140,OTHER SUPPORT SERVICES,AGENCY STAFF,0120,04-Nov-20,181375,577.44,REED SPECIALIST RECRUITMENT LTD,REE002
EFDC,PS100,CAR PARKING,OTHER MAINTENANCE,1050,04-Nov-20,181280,3591,BRITISH PARKING ASSOCIATION,BRI023
EFDC,RM200,RESPONSIVE & VOID REPAIRS,BUILDING MAINTENANCE,1010,04-Nov-20,181337,669.36,GRACELANDS COMPLETE MAINTENANCE SERVICES LTD,GRA007
EFDC,PS100,CAR PARKING,OTHER MAINTENANCE,1050,04-Nov-20,181280,70,BRITISH PARKING ASSOCIATION,BRI023
EFDC,YB400,SUPERVISION/MANAGEMENT SPECIAL,CLEANSING CONTRACTORS,4320,04-Nov-20,181207,708.92,BIFFA MUNICIPAL LTD,BIF001
EFDC,WC200,WASTE MANAGEMENT,CLEANSING CONTRACTORS,4320,04-Nov-20,181207,29612.98,BIFFA MUNICIPAL LTD,BIF001
EFDC,WC100,WASTE MANAGEMENT,CLEANSING CONTRACTORS,4320,04-Nov-20,181207,12579.92,BIFFA MUNICIPAL LTD,BIF001
EFDC,YB500,SUPERVISION/MANAGEMENT SPECIAL,GAS,1110,04-Nov-20,181224,733.13,CORONA ENERGY RETAIL 4 LTD,COR015
EFDC,WC200,WASTE MANAGEMENT,CLEANSING CONTRACTORS,4320,04-Nov-20,181207,-500,BIFFA MUNICIPAL LTD,BIF001
EFDC,YB500,SUPERVISION/MANAGEMENT SPECIAL,GAS,1110,04-Nov-20,181231,634.34,CORONA ENERGY RETAIL 4 LTD,COR015
EFDC,RS301,NORTH WEALD CENTRE,CLEANING,1630,04-Nov-20,181360,617.49,MONTHIND CLEAN LLP,MON004
EFDC,YB620,SUPERVISION/MANAGEMENT SPECIAL,GAS,1110,04-Nov-20,181223,556.67,CORONA ENERGY RETAIL 4 LTD,COR015
EFDC,YB500,SUPERVISION/MANAGEMENT SPECIAL,GAS,1110,04-Nov-20,181233,690.61,CORONA ENERGY RETAIL 4 LTD,COR015
EFDC,33020,FINANCE - OTHER ACTIVITIES,CONSULTANTS FEES,3490,04-Nov-20,181284,3135,CAPITA BUSINESS SERVICES LTD,CAP004
EFDC,YB500,SUPERVISION/MANAGEMENT SPECIAL,GAS,1110,04-Nov-20,181221,609.04,CORONA ENERGY RETAIL 4 LTD,COR015
EFDC,RM400,PLANNED & CYCLICAL MAINTENANCE,BUILDING MAINTENANCE,1010,04-Nov-20,181335,5835.42,GRACELANDS COMPLETE MAINTENANCE SERVICES LTD,GRA007
EFDC,SC100,WASTE MANAGEMENT,CLEANSING CONTRACTORS,4320,04-Nov-20,181207,1731.66,BIFFA MUNICIPAL LTD,BIF001
EFDC,EI131,LOCAL PLAN IMPLEMENTATION,REFUSE REMOVAL,1640,04-Nov-20,181207,20,BIFFA MUNICIPAL LTD,BIF001
EFDC,27110,ACCOMMODATION,REFUSE REMOVAL,1640,04-Nov-20,181207,11.43,BIFFA MUNICIPAL LTD,BIF001
EFDC,51140,OTHER SUPPORT SERVICES,AGENCY STAFF,0120,04-Nov-20,181385,577.44,REED SPECIALIST RECRUITMENT LTD,REE002
EFDC,51140,OTHER SUPPORT SERVICES,AGENCY STAFF,0120,04-Nov-20,181388,577.44,REED SPECIALIST RECRUITMENT LTD,REE002
EFDC,27050,ACCOMMODATION,REFUSE REMOVAL,1640,04-Nov-20,181207,297.18,BIFFA MUNICIPAL LTD,BIF001
EFDC,FD100,LAND DRAINAGE/SEWERAGE,PROFESSIONAL FEES,3420,04-Nov-20,181207,9.12,BIFFA MUNICIPAL LTD,BIF001
EFDC,HI123,COST CENTRES - CONTRACT & TECH,EQUIPMENT - NEW,3010,04-Nov-20,181259,941.25,TRADE UK,TRA027
EFDC,78001,HRA SUPPORT SERVICES,MATERIALS,3080,04-Nov-20,181396,187.78,TRAVIS PERKINS TRADING COMPANY LTD,TRA001
EFDC,CAPHR,HRA CAPITAL,VOIDS WORKS,A045,04-Nov-20,181442,506,WOODS BUILDING SERVICES LTD,WOO001
EFDC,78001,HRA SUPPORT SERVICES,MATERIALS,3080,04-Nov-20,181396,9.16,TRAVIS PERKINS TRADING COMPANY LTD,TRA001
EFDC,RM300,PLANNED & CYCLICAL MAINTENANCE,BUILDING MAINTENANCE,1010,04-Nov-20,180909,2663,STANNAH LIFT SERVICES LTD,STA019
EFDC,OS110,PARKS & GROUNDS,GROUNDS MAINTENANCE,1040,04-Nov-20,181207,57.63,BIFFA MUNICIPAL LTD,BIF001
EFDC,CAPHR,HRA CAPITAL,VOIDS WORKS,A045,04-Nov-20,181443,930,WOODS BUILDING SERVICES LTD,WOO001
EFDC,23140,ACCOMMODATION,REFUSE REMOVAL,1640,04-Nov-20,181207,22.86,BIFFA MUNICIPAL LTD,BIF001
EFDC,WC100,WASTE MANAGEMENT,EQUIPMENT - NEW,3010,04-Nov-20,181207,66.28,BIFFA MUNICIPAL LTD,BIF001
EFDC,27150,"COMMUNITY, HEALTH & WELLBEING",REFUSE REMOVAL,1640,04-Nov-20,181207,11.43,BIFFA MUNICIPAL LTD,BIF001
EFDC,OS100,PARKS & GROUNDS,GROUNDS MAINTENANCE,1040,04-Nov-20,181207,27.36,BIFFA MUNICIPAL LTD,BIF001
EFDC,37500,PLANNING SUPPORT SERVICES,AGENCY STAFF,0120,04-Nov-20,181272,587.3,ADECCO UK LTD,ADE002
EFDC,YA200,SUPERVISION/MANAGEMENT GENERAL,REFUSE REMOVAL,1640,04-Nov-20,181207,54,BIFFA MUNICIPAL LTD,BIF001
EFDC,OS110,PARKS & GROUNDS,GROUNDS MAINTENANCE,1040,04-Nov-20,181207,27.36,BIFFA MUNICIPAL LTD,BIF001
EFDC,36650,HRA SUPPORT SERVICES,AGENCY STAFF,0120,04-Nov-20,181362,1254.96,MORGAN HUNT UK LTD,MOR001
EFDC,36500,HRA SUPPORT SERVICES,AGENCY STAFF,0120,04-Nov-20,181363,974.16,MORGAN HUNT UK LTD,MOR001
EFDC,GD190,VOLUNTARY SECTOR SUPPORT,GROUNDS MAINTENANCE,1040,04-Nov-20,181207,22.85,BIFFA MUNICIPAL LTD,BIF001
EFDC,36650,HRA SUPPORT SERVICES,AGENCY STAFF,0120,04-Nov-20,181361,1254.96,MORGAN HUNT UK LTD,MOR001
EFDC,78001,HRA SUPPORT SERVICES,MATERIALS,3080,04-Nov-20,181396,85.26,TRAVIS PERKINS TRADING COMPANY LTD,TRA001
EFDC,WC300,WASTE MANAGEMENT,CLEANSING CONTRACTORS,4320,04-Nov-20,181207,1178.6,BIFFA MUNICIPAL LTD,BIF001
EFDC,33080,FINANCE - OTHER ACTIVITIES,ANNUAL SUPPORT /  LICENSES,3872,04-Nov-20,179991,6800,HOUSE ON THE HILL SOFTWARE LTD,HOU008
EFDC,35500,CONTRACT & TECH SUPPORT SERVIC,AGENCY STAFF,0120,04-Nov-20,181344,504.9,HL SERVICES (LONDON) LTD,HLS001
EFDC,37500,PLANNING SUPPORT SERVICES,AGENCY STAFF,0120,04-Nov-20,181273,587.3,ADECCO UK LTD,ADE002
EFDC,HL100,HOMELESSNESS,PROFESSIONAL FEES,3420,04-Nov-20,180279,7301.66,L&Q LIVING,EAS014
EFDC,WC100,WASTE MANAGEMENT,EQUIPMENT - NEW,3010,04-Nov-20,181207,11157.7,BIFFA MUNICIPAL LTD,BIF001
EFDC,78001,HRA SUPPORT SERVICES,MATERIALS,3080,04-Nov-20,181396,75.48,TRAVIS PERKINS TRADING COMPANY LTD,TRA001
EFDC,78001,HRA SUPPORT SERVICES,MATERIALS,3080,04-Nov-20,181396,358.75,TRAVIS PERKINS TRADING COMPANY LTD,TRA001
EFDC,78001,HRA SUPPORT SERVICES,MATERIALS,3080,04-Nov-20,181289,623.75,CRANBROOK ELECTRICS,CRA001
EFDC,YB400,SUPERVISION/MANAGEMENT SPECIAL,REFUSE REMOVAL,1640,04-Nov-20,181207,1061.53,BIFFA MUNICIPAL LTD,BIF001
EFDC,51140,OTHER SUPPORT SERVICES,AGENCY STAFF,0120,04-Nov-20,181382,605.52,REED SPECIALIST RECRUITMENT LTD,REE002
EFDC,51140,OTHER SUPPORT SERVICES,AGENCY STAFF,0120,04-Nov-20,181377,577.44,REED SPECIALIST RECRUITMENT LTD,REE002
EFDC,33075,FINANCE - OTHER ACTIVITIES,POSTAGE,3510,04-Nov-20,181358,582,MFP,MFP001
EFDC,RM200,RESPONSIVE & VOID REPAIRS,BUILDING MAINTENANCE,1010,04-Nov-20,181331,581.07,GRACELANDS COMPLETE MAINTENANCE SERVICES LTD,GRA007
EFDC,GD190,VOLUNTARY SECTOR SUPPORT,GROUNDS MAINTENANCE,1040,04-Nov-20,181207,76.92,BIFFA MUNICIPAL LTD,BIF001
EFDC,51140,OTHER SUPPORT SERVICES,AGENCY STAFF,0120,04-Nov-20,181379,577.44,REED SPECIALIST RECRUITMENT LTD,REE002
EFDC,51140,OTHER SUPPORT SERVICES,AGENCY STAFF,0120,04-Nov-20,181387,605.52,REED SPECIALIST RECRUITMENT LTD,REE002
EFDC,RM100,RESPONSIVE & VOID REPAIRS,BUILDING MAINTENANCE,1010,04-Nov-20,181298,550,FIELDWHITE SERVICES LTD,FIE003
EFDC,51140,OTHER SUPPORT SERVICES,AGENCY STAFF,0120,04-Nov-20,181373,577.44,REED SPECIALIST RECRUITMENT LTD,REE002
EFDC,51140,OTHER SUPPORT SERVICES,AGENCY STAFF,0120,04-Nov-20,181378,577.44,REED SPECIALIST RECRUITMENT LTD,REE002
EFDC,RM100,RESPONSIVE & VOID REPAIRS,BUILDING MAINTENANCE,1010,04-Nov-20,181296,990,FIELDWHITE SERVICES LTD,FIE003
EFDC,51140,OTHER SUPPORT SERVICES,AGENCY STAFF,0120,04-Nov-20,181376,577.44,REED SPECIALIST RECRUITMENT LTD,REE002
EFDC,51140,OTHER SUPPORT SERVICES,AGENCY STAFF,0120,04-Nov-20,181383,577.44,REED SPECIALIST RECRUITMENT LTD,REE002
EFDC,37600,PLANNING SUPPORT SERVICES,AGENCY STAFF,0120,04-Nov-20,180920,865.13,ADECCO UK LTD,ADE002
EFDC,YB620,SUPERVISION/MANAGEMENT SPECIAL,REFUSE REMOVAL,1640,04-Nov-20,181207,11.43,BIFFA MUNICIPAL LTD,BIF001
EFDC,YB500,SUPERVISION/MANAGEMENT SPECIAL,REFUSE REMOVAL,1640,04-Nov-20,181207,11.43,BIFFA MUNICIPAL LTD,BIF001
EFDC,51140,OTHER SUPPORT SERVICES,AGENCY STAFF,0120,04-Nov-20,181372,605.52,REED SPECIALIST RECRUITMENT LTD,REE002
EFDC,CAPHR,HRA CAPITAL,MANAGEMENT CONSULTANT,E130,04-Nov-20,181216,35872.94,STORM BUILDING LTD,STO007
EFDC,SC100,WASTE MANAGEMENT,CLEANSING CONTRACTORS,4320,04-Nov-20,181207,463.71,BIFFA MUNICIPAL LTD,BIF001
EFDC,51140,OTHER SUPPORT SERVICES,AGENCY STAFF,0120,04-Nov-20,181381,672.8,REED SPECIALIST RECRUITMENT LTD,REE002
EFDC,RS301,NORTH WEALD CENTRE,RENTS,9410,04-Nov-20,181207,-600,BIFFA MUNICIPAL LTD,BIF001
EFDC,WC100,WASTE MANAGEMENT,CLEANSING CONTRACTORS,4320,04-Nov-20,181207,100.24,BIFFA MUNICIPAL LTD,BIF001
EFDC,78001,HRA SUPPORT SERVICES,MATERIALS,3080,04-Nov-20,181289,499,CRANBROOK ELECTRICS,CRA001
EFDC,YB400,SUPERVISION/MANAGEMENT SPECIAL,EQUIPMENT - NEW,3010,04-Nov-20,181207,13.49,BIFFA MUNICIPAL LTD,BIF001
EFDC,RM100,RESPONSIVE & VOID REPAIRS,BUILDING MAINTENANCE,1010,04-Nov-20,181328,604.7,GC ROOFING UK LIMITED,GCR001
EFDC,26200,OTHER SUPPORT SERVICES,BUILDING MAINTENANCE,1010,04-Nov-20,181291,34.5,DDM FIRE SAFETY,DDM001
EFDC,26200,OTHER SUPPORT SERVICES,BUILDING MAINTENANCE,1010,04-Nov-20,181291,35,DDM FIRE SAFETY,DDM001
EFDC,26200,OTHER SUPPORT SERVICES,BUILDING MAINTENANCE,1010,04-Nov-20,181291,52.5,DDM FIRE SAFETY,DDM001
EFDC,26200,OTHER SUPPORT SERVICES,BUILDING MAINTENANCE,1010,04-Nov-20,181291,55,DDM FIRE SAFETY,DDM001
EFDC,26200,OTHER SUPPORT SERVICES,BUILDING MAINTENANCE,1010,04-Nov-20,181291,35,DDM FIRE SAFETY,DDM001
EFDC,RS301,NORTH WEALD CENTRE,OTHER MAINTENANCE,1050,04-Nov-20,180636,2546.28,BLAKE CONTRACTORS LIMITED,BLA008
EFDC,CAPHR,HRA CAPITAL,MANAGEMENT CONSULTANT,E130,04-Nov-20,181271,606.59,AIREY MILLER LIMITED,AIR027
EFDC,35006,CONTRACT & TECH SUPPORT SERVIC,AGENCY STAFF,0120,04-Nov-20,180678,2840.5,G2 RECRUITMENT SOLUTIONS,G2R001
EFDC,26200,OTHER SUPPORT SERVICES,BUILDING MAINTENANCE,1010,04-Nov-20,181291,121,DDM FIRE SAFETY,DDM001
EFDC,26200,OTHER SUPPORT SERVICES,BUILDING MAINTENANCE,1010,04-Nov-20,181291,60,DDM FIRE SAFETY,DDM001
EFDC,TI170,LAND & PROPERTY,PROFESSIONAL FEES,3420,04-Nov-20,180733,1630,PREMIER DRAINAGE COMPANY LTD,PRE009
EFDC,RM100,RESPONSIVE & VOID REPAIRS,BUILDING MAINTENANCE,1010,04-Nov-20,181329,788.9,GC ROOFING UK LIMITED,GCR001
EFDC,57100,HRA SUPPORT SERVICES,AGENCY STAFF,0120,04-Nov-20,181340,3550,GREENACRE RECRUITMENT LTD,GRE029
EFDC,CAPGF,GENERAL FUND CAPITAL,CONSULTANCY FEES,B200,04-Nov-20,181392,11000,THREEDAY GROUP LTD,THR003
EFDC,26200,OTHER SUPPORT SERVICES,BUILDING MAINTENANCE,1010,04-Nov-20,181291,112.5,DDM FIRE SAFETY,DDM001
EFDC,RM400,PLANNED & CYCLICAL MAINTENANCE,BUILDING MAINTENANCE,1010,04-Nov-20,181291,1264,DDM FIRE SAFETY,DDM001
EFDC,RM100,RESPONSIVE & VOID REPAIRS,BUILDING MAINTENANCE,1010,04-Nov-20,181330,671.65,GC ROOFING UK LIMITED,GCR001
EFDC,57100,HRA SUPPORT SERVICES,AGENCY STAFF,0120,04-Nov-20,181343,3550,GREENACRE RECRUITMENT LTD,GRE029
EFDC,26200,OTHER SUPPORT SERVICES,BUILDING MAINTENANCE,1010,04-Nov-20,180714,800,LONDON ELITE ELECTRICAL LIMITED,LON038
EFDC,36500,HRA SUPPORT SERVICES,AGENCY STAFF,0120,04-Nov-20,180311,1517,G2 RECRUITMENT SOLUTIONS,G2R001
EFDC,78001,HRA SUPPORT SERVICES,AGENCY STAFF,0120,04-Nov-20,180763,1002.6,STRATUS RECRUITMENT (CONTRACTORS) LTD,STR023
EFDC,TO100,LAND & PROPERTY,LICENSES,2360,04-Nov-20,180695,720,HAYNES PRO UK,HAY014
EFDC,78001,HRA SUPPORT SERVICES,AGENCY STAFF,0120,04-Nov-20,180767,2400.3,STRATUS RECRUITMENT (CONTRACTORS) LTD,STR023
EFDC,26200,OTHER SUPPORT SERVICES,FIXED PLANT MAINTENANCE,1020,04-Nov-20,181291,290,DDM FIRE SAFETY,DDM001
EFDC,57100,HRA SUPPORT SERVICES,AGENCY STAFF,0120,04-Nov-20,180330,3550,GREENACRE RECRUITMENT LTD,GRE029
EFDC,HL100,HOMELESSNESS,CONSULTANTS FEES,3490,04-Nov-20,181366,1200,PEACHY CREATIVE LIMITED,PEA005
EFDC,36500,HRA SUPPORT SERVICES,AGENCY STAFF,0120,04-Nov-20,181303,1002.97,G2 RECRUITMENT SOLUTIONS,G2R001
EFDC,CAPHR,HRA CAPITAL,MANAGEMENT CONSULTANT,E130,04-Nov-20,181218,87,AIREY MILLER LIMITED,AIR027
EFDC,CAPHR,HRA CAPITAL,MANAGEMENT CONSULTANT,E130,04-Nov-20,181218,87,AIREY MILLER LIMITED,AIR027
EFDC,CAPHR,HRA CAPITAL,MANAGEMENT CONSULTANT,E130,04-Nov-20,181270,540.63,AIREY MILLER LIMITED,AIR027
EFDC,CAPHR,HRA CAPITAL,MANAGEMENT CONSULTANT,E130,04-Nov-20,181268,709.06,AIREY MILLER LIMITED,AIR027
EFDC,CAPHR,HRA CAPITAL,MANAGEMENT CONSULTANT,E130,04-Nov-20,181264,577.66,AIREY MILLER LIMITED,AIR027
EFDC,CAPHR,HRA CAPITAL,MANAGEMENT CONSULTANT,E130,04-Nov-20,181263,672.73,AIREY MILLER LIMITED,AIR027
EFDC,CAPHR,HRA CAPITAL,MANAGEMENT CONSULTANT,E130,04-Nov-20,181262,549.54,AIREY MILLER LIMITED,AIR027
EFDC,36500,HRA SUPPORT SERVICES,AGENCY STAFF,0120,04-Nov-20,181305,1013.81,G2 RECRUITMENT SOLUTIONS,G2R001
EFDC,CAPHR,HRA CAPITAL,MANAGEMENT CONSULTANT,E130,04-Nov-20,181218,87,AIREY MILLER LIMITED,AIR027
EFDC,36500,HRA SUPPORT SERVICES,AGENCY STAFF,0120,04-Nov-20,181304,1002.97,G2 RECRUITMENT SOLUTIONS,G2R001
EFDC,CAPHR,HRA CAPITAL,MANAGEMENT CONSULTANT,E130,04-Nov-20,181218,87,AIREY MILLER LIMITED,AIR027
EFDC,CAPHR,HRA CAPITAL,MANAGEMENT CONSULTANT,E130,04-Nov-20,181218,87,AIREY MILLER LIMITED,AIR027
EFDC,CAPHR,HRA CAPITAL,MANAGEMENT CONSULTANT,E130,04-Nov-20,181218,87,AIREY MILLER LIMITED,AIR027
EFDC,CAPHR,HRA CAPITAL,MANAGEMENT CONSULTANT,E130,04-Nov-20,181218,87,AIREY MILLER LIMITED,AIR027
EFDC,CAPHR,HRA CAPITAL,MANAGEMENT CONSULTANT,E130,04-Nov-20,181218,87,AIREY MILLER LIMITED,AIR027
EFDC,36500,HRA SUPPORT SERVICES,AGENCY STAFF,0120,04-Nov-20,181302,1002.43,G2 RECRUITMENT SOLUTIONS,G2R001
EFDC,CAPHR,HRA CAPITAL,MANAGEMENT CONSULTANT,E130,04-Nov-20,181218,87,AIREY MILLER LIMITED,AIR027
EFDC,CAPHR,HRA CAPITAL,WORKS,A040,04-Nov-20,180588,1140,WILTON DECORATORS LTD,WIL033
EFDC,CAPHR,HRA CAPITAL,WORKS,A040,04-Nov-20,180588,300,WILTON DECORATORS LTD,WIL033
EFDC,CAPHR,HRA CAPITAL,MANAGEMENT CONSULTANT,E130,04-Nov-20,181261,677.88,AIREY MILLER LIMITED,AIR027
EFDC,CAPHR,HRA CAPITAL,MANAGEMENT CONSULTANT,E130,04-Nov-20,181218,87,AIREY MILLER LIMITED,AIR027
EFDC,26200,OTHER SUPPORT SERVICES,BUILDING MAINTENANCE,1010,04-Nov-20,181291,72,DDM FIRE SAFETY,DDM001
EFDC,HL100,HOMELESSNESS,CONSULTANTS FEES,3490,04-Nov-20,181366,210,PEACHY CREATIVE LIMITED,PEA005
EFDC,CAPHR,HRA CAPITAL,MANAGEMENT CONSULTANT,E130,04-Nov-20,181218,87,AIREY MILLER LIMITED,AIR027
EFDC,CAPHR,HRA CAPITAL,MANAGEMENT CONSULTANT,E130,04-Nov-20,181218,87,AIREY MILLER LIMITED,AIR027
EFDC,36500,HRA SUPPORT SERVICES,AGENCY STAFF,0120,04-Nov-20,181307,836.04,G2 RECRUITMENT SOLUTIONS,G2R001
EFDC,CAPHR,HRA CAPITAL,MANAGEMENT CONSULTANT,E130,04-Nov-20,181218,87,AIREY MILLER LIMITED,AIR027
EFDC,36500,HRA SUPPORT SERVICES,AGENCY STAFF,0120,04-Nov-20,181308,982.38,G2 RECRUITMENT SOLUTIONS,G2R001
EFDC,CAPHR,HRA CAPITAL,MANAGEMENT CONSULTANT,E130,04-Nov-20,181218,87,AIREY MILLER LIMITED,AIR027
EFDC,36500,HRA SUPPORT SERVICES,AGENCY STAFF,0120,04-Nov-20,181306,1888.6,G2 RECRUITMENT SOLUTIONS,G2R001
EFDC,CAPHR,HRA CAPITAL,MANAGEMENT CONSULTANT,E130,04-Nov-20,181218,87,AIREY MILLER LIMITED,AIR027
EFDC,CAPHR,HRA CAPITAL,MANAGEMENT CONSULTANT,E130,04-Nov-20,181218,87,AIREY MILLER LIMITED,AIR027
EFDC,CAPHR,HRA CAPITAL,MANAGEMENT CONSULTANT,E130,04-Nov-20,181218,87,AIREY MILLER LIMITED,AIR027
EFDC,CAPHR,HRA CAPITAL,MANAGEMENT CONSULTANT,E130,04-Nov-20,181218,87,AIREY MILLER LIMITED,AIR027
EFDC,CAPHR,HRA CAPITAL,MANAGEMENT CONSULTANT,E130,04-Nov-20,181218,87,AIREY MILLER LIMITED,AIR027
EFDC,CAPHR,HRA CAPITAL,MANAGEMENT CONSULTANT,E130,04-Nov-20,181218,87,AIREY MILLER LIMITED,AIR027
EFDC,CAPHR,HRA CAPITAL,MANAGEMENT CONSULTANT,E130,04-Nov-20,181218,87,AIREY MILLER LIMITED,AIR027
EFDC,CAPHR,HRA CAPITAL,MANAGEMENT CONSULTANT,E130,04-Nov-20,181218,87,AIREY MILLER LIMITED,AIR027
EFDC,CAPHR,HRA CAPITAL,MANAGEMENT CONSULTANT,E130,04-Nov-20,181218,87,AIREY MILLER LIMITED,AIR027
EFDC,CAPHR,HRA CAPITAL,MANAGEMENT CONSULTANT,E130,04-Nov-20,181218,87,AIREY MILLER LIMITED,AIR027
EFDC,25300,INTERNAL INSURANCE FUND,PROFESSIONAL FEES,3420,06-Nov-20,38289,1000,MR & MRS A J PARIS,10175P
EFDC,BAL01,EFDC BALANCE SHEET,SALARY OVERPAYMENTS/ADVANCES,Z610,06-Nov-20,38290,10157,C BINTLEY,10176P
EFDC,BAL01,EFDC BALANCE SHEET,SALARY OVERPAYMENTS/ADVANCES,Z610,06-Nov-20,38291,22867,JAROSLAW TRYKOZKO,10177P
EFDC,GD140,VOLUNTARY SECTOR SUPPORT,GRANTS TO VOLUNTARY ORGS,3710,10-Nov-20,38324,72470,EPPING FOREST CITIZENS ADVICE BUREAU,205P
EFDC,YB800,SUPERVISION/MANAGEMENT SPECIAL,GRANTS TO VOLUNTARY ORGS,3710,10-Nov-20,38324,5450,EPPING FOREST CITIZENS ADVICE BUREAU,205P
EFDC,BAL01,EFDC BALANCE SHEET,HOUSING RENT REFUNDS,Z613,10-Nov-20,38320,600,MR A HODGSON,4909P
EFDC,BAL01,EFDC BALANCE SHEET,SUNDRY DEBTORS (OTHER),Z208,10-Nov-20,38318,840,NICKOLDS PROPERTY MANAGEMENT,9996P
EFDC,05240,LEASEHOLDERS,CASH RECEIPTS,7790,10-Nov-20,38313,592.27,MS A M KING,10180P
EFDC,BAL01,EFDC BALANCE SHEET,HOUSING RENT REFUNDS,Z613,10-Nov-20,38319,1115.59,MRS G WILLIAMS,10185P
EFDC,YB200,SUPERVISION/MANAGEMENT SPECIAL,REMOVAL EXPENSES,3830,10-Nov-20,38322,500,MS B ROPER,10186P
EFDC,YB200,SUPERVISION/MANAGEMENT SPECIAL,CONTRIBUTIONS,3740,10-Nov-20,38322,500,MS B ROPER,10186P
EFDC,YB200,SUPERVISION/MANAGEMENT SPECIAL,COMPENSATION PAYMENTS,3880,10-Nov-20,38322,1000,MS B ROPER,10186P
EFDC,YB200,SUPERVISION/MANAGEMENT SPECIAL,REMOVAL EXPENSES,3830,10-Nov-20,38323,500,MRS JANET HEDGES,10187P
EFDC,YB200,SUPERVISION/MANAGEMENT SPECIAL,COMPENSATION PAYMENTS,3880,10-Nov-20,38323,702.58,MRS JANET HEDGES,10187P
EFDC,YB200,SUPERVISION/MANAGEMENT SPECIAL,CONTRIBUTIONS,3740,10-Nov-20,38323,500,MRS JANET HEDGES,10187P
EFDC,YB200,SUPERVISION/MANAGEMENT SPECIAL,COMPENSATION PAYMENTS,3880,10-Nov-20,38326,1000,JOSEPHINE SILK,10189P
EFDC,YB200,SUPERVISION/MANAGEMENT SPECIAL,CONTRIBUTIONS,3740,10-Nov-20,38326,500,JOSEPHINE SILK,10189P
EFDC,YB200,SUPERVISION/MANAGEMENT SPECIAL,REMOVAL EXPENSES,3830,10-Nov-20,38326,500,JOSEPHINE SILK,10189P
EFDC,BAL01,EFDC BALANCE SHEET,HOUSING RENT REFUNDS,Z613,10-Nov-20,38329,679.94,TE & EM LETTS,10190P
EFDC,YB110,SUPERVISION/MANAGEMENT SPECIAL,ELECTRICITY,1120,11-Nov-20,181778,19.81,BRITISH GAS,BRI040
EFDC,YB110,SUPERVISION/MANAGEMENT SPECIAL,ELECTRICITY,1120,11-Nov-20,181778,36.18,BRITISH GAS,BRI040
EFDC,YB110,SUPERVISION/MANAGEMENT SPECIAL,ELECTRICITY,1120,11-Nov-20,181778,-14.62,BRITISH GAS,BRI040
EFDC,YB110,SUPERVISION/MANAGEMENT SPECIAL,ELECTRICITY,1120,11-Nov-20,181778,16.93,BRITISH GAS,BRI040
EFDC,YB500,SUPERVISION/MANAGEMENT SPECIAL,ELECTRICITY,1120,11-Nov-20,181778,8.4,BRITISH GAS,BRI040
EFDC,YB110,SUPERVISION/MANAGEMENT SPECIAL,ELECTRICITY,1120,11-Nov-20,181778,13.43,BRITISH GAS,BRI040
EFDC,YB110,SUPERVISION/MANAGEMENT SPECIAL,ELECTRICITY,1120,11-Nov-20,181778,21.85,BRITISH GAS,BRI040
EFDC,YB110,SUPERVISION/MANAGEMENT SPECIAL,ELECTRICITY,1120,11-Nov-20,181778,-15.39,BRITISH GAS,BRI040
EFDC,YB110,SUPERVISION/MANAGEMENT SPECIAL,ELECTRICITY,1120,11-Nov-20,181778,-13.71,BRITISH GAS,BRI040
EFDC,YB110,SUPERVISION/MANAGEMENT SPECIAL,ELECTRICITY,1120,11-Nov-20,181778,10.94,BRITISH GAS,BRI040
EFDC,YB110,SUPERVISION/MANAGEMENT SPECIAL,ELECTRICITY,1120,11-Nov-20,181778,-13.48,BRITISH GAS,BRI040
EFDC,YB110,SUPERVISION/MANAGEMENT SPECIAL,ELECTRICITY,1120,11-Nov-20,181778,10.06,BRITISH GAS,BRI040
EFDC,27110,ACCOMMODATION,ELECTRICITY,1120,11-Nov-20,181778,8.51,BRITISH GAS,BRI040
EFDC,YB110,SUPERVISION/MANAGEMENT SPECIAL,ELECTRICITY,1120,11-Nov-20,181778,-13.24,BRITISH GAS,BRI040
EFDC,27150,"COMMUNITY, HEALTH & WELLBEING",ELECTRICITY,1120,11-Nov-20,181778,515.9,BRITISH GAS,BRI040
EFDC,YB110,SUPERVISION/MANAGEMENT SPECIAL,ELECTRICITY,1120,11-Nov-20,181778,-12.44,BRITISH GAS,BRI040
EFDC,YB110,SUPERVISION/MANAGEMENT SPECIAL,ELECTRICITY,1120,11-Nov-20,181778,12.29,BRITISH GAS,BRI040
EFDC,YB110,SUPERVISION/MANAGEMENT SPECIAL,ELECTRICITY,1120,11-Nov-20,181778,-14.43,BRITISH GAS,BRI040
EFDC,27050,ACCOMMODATION,ELECTRICITY,1120,11-Nov-20,181778,72.31,BRITISH GAS,BRI040
EFDC,27110,ACCOMMODATION,ELECTRICITY,1120,11-Nov-20,181778,-65.61,BRITISH GAS,BRI040
EFDC,27110,ACCOMMODATION,ELECTRICITY,1120,11-Nov-20,181778,41.07,BRITISH GAS,BRI040
EFDC,YB500,SUPERVISION/MANAGEMENT SPECIAL,ELECTRICITY,1120,11-Nov-20,181778,500.5,BRITISH GAS,BRI040
EFDC,YB110,SUPERVISION/MANAGEMENT SPECIAL,ELECTRICITY,1120,11-Nov-20,181778,54.27,BRITISH GAS,BRI040
EFDC,YB500,SUPERVISION/MANAGEMENT SPECIAL,ELECTRICITY,1120,11-Nov-20,181778,686.2,BRITISH GAS,BRI040
EFDC,27110,ACCOMMODATION,ELECTRICITY,1120,11-Nov-20,181778,63.49,BRITISH GAS,BRI040
EFDC,YB500,SUPERVISION/MANAGEMENT SPECIAL,ELECTRICITY,1120,11-Nov-20,181778,16.53,BRITISH GAS,BRI040
EFDC,YB110,SUPERVISION/MANAGEMENT SPECIAL,ELECTRICITY,1120,11-Nov-20,181778,45.48,BRITISH GAS,BRI040
EFDC,YB110,SUPERVISION/MANAGEMENT SPECIAL,ELECTRICITY,1120,11-Nov-20,181778,-27.79,BRITISH GAS,BRI040
EFDC,YB110,SUPERVISION/MANAGEMENT SPECIAL,ELECTRICITY,1120,11-Nov-20,181778,15.9,BRITISH GAS,BRI040
EFDC,YB500,SUPERVISION/MANAGEMENT SPECIAL,ELECTRICITY,1120,11-Nov-20,181778,33.12,BRITISH GAS,BRI040
EFDC,YB110,SUPERVISION/MANAGEMENT SPECIAL,ELECTRICITY,1120,11-Nov-20,181778,-51.52,BRITISH GAS,BRI040
EFDC,YB110,SUPERVISION/MANAGEMENT SPECIAL,ELECTRICITY,1120,11-Nov-20,181778,14.59,BRITISH GAS,BRI040
EFDC,YB500,SUPERVISION/MANAGEMENT SPECIAL,ELECTRICITY,1120,11-Nov-20,181778,16.03,BRITISH GAS,BRI040
EFDC,YB500,SUPERVISION/MANAGEMENT SPECIAL,ELECTRICITY,1120,11-Nov-20,181778,14.7,BRITISH GAS,BRI040
EFDC,YB500,SUPERVISION/MANAGEMENT SPECIAL,ELECTRICITY,1120,11-Nov-20,181778,282.02,BRITISH GAS,BRI040
EFDC,YB500,SUPERVISION/MANAGEMENT SPECIAL,ELECTRICITY,1120,11-Nov-20,181778,55.07,BRITISH GAS,BRI040
EFDC,YB500,SUPERVISION/MANAGEMENT SPECIAL,ELECTRICITY,1120,11-Nov-20,181778,185.62,BRITISH GAS,BRI040
EFDC,YB500,SUPERVISION/MANAGEMENT SPECIAL,ELECTRICITY,1120,11-Nov-20,181778,11.21,BRITISH GAS,BRI040
EFDC,YB500,SUPERVISION/MANAGEMENT SPECIAL,ELECTRICITY,1120,11-Nov-20,181778,8.38,BRITISH GAS,BRI040
EFDC,27110,ACCOMMODATION,ELECTRICITY,1120,11-Nov-20,181778,45.58,BRITISH GAS,BRI040
EFDC,YB110,SUPERVISION/MANAGEMENT SPECIAL,ELECTRICITY,1120,11-Nov-20,181778,-9.86,BRITISH GAS,BRI040
EFDC,YB110,SUPERVISION/MANAGEMENT SPECIAL,ELECTRICITY,1120,11-Nov-20,181778,-12.86,BRITISH GAS,BRI040
EFDC,YB110,SUPERVISION/MANAGEMENT SPECIAL,ELECTRICITY,1120,11-Nov-20,181778,22.79,BRITISH GAS,BRI040
EFDC,YB110,SUPERVISION/MANAGEMENT SPECIAL,ELECTRICITY,1120,11-Nov-20,181778,9.14,BRITISH GAS,BRI040
EFDC,YB110,SUPERVISION/MANAGEMENT SPECIAL,ELECTRICITY,1120,11-Nov-20,181778,8.48,BRITISH GAS,BRI040
EFDC,YB110,SUPERVISION/MANAGEMENT SPECIAL,ELECTRICITY,1120,11-Nov-20,181778,8.45,BRITISH GAS,BRI040
EFDC,YB110,SUPERVISION/MANAGEMENT SPECIAL,ELECTRICITY,1120,11-Nov-20,181778,-28.45,BRITISH GAS,BRI040
EFDC,YB110,SUPERVISION/MANAGEMENT SPECIAL,ELECTRICITY,1120,11-Nov-20,181778,14.03,BRITISH GAS,BRI040
EFDC,YB110,SUPERVISION/MANAGEMENT SPECIAL,ELECTRICITY,1120,11-Nov-20,181778,-26.88,BRITISH GAS,BRI040
EFDC,YB110,SUPERVISION/MANAGEMENT SPECIAL,ELECTRICITY,1120,11-Nov-20,181778,8.62,BRITISH GAS,BRI040
EFDC,YB620,SUPERVISION/MANAGEMENT SPECIAL,ELECTRICITY,1120,11-Nov-20,181778,1205.92,BRITISH GAS,BRI040
EFDC,YB110,SUPERVISION/MANAGEMENT SPECIAL,ELECTRICITY,1120,11-Nov-20,181778,8.95,BRITISH GAS,BRI040
EFDC,YB110,SUPERVISION/MANAGEMENT SPECIAL,ELECTRICITY,1120,11-Nov-20,181778,9.1,BRITISH GAS,BRI040
EFDC,YB110,SUPERVISION/MANAGEMENT SPECIAL,ELECTRICITY,1120,11-Nov-20,181778,-12.6,BRITISH GAS,BRI040
EFDC,YB110,SUPERVISION/MANAGEMENT SPECIAL,ELECTRICITY,1120,11-Nov-20,181778,47.78,BRITISH GAS,BRI040
EFDC,YB500,SUPERVISION/MANAGEMENT SPECIAL,ELECTRICITY,1120,11-Nov-20,181778,51.93,BRITISH GAS,BRI040
EFDC,YB500,SUPERVISION/MANAGEMENT SPECIAL,ELECTRICITY,1120,11-Nov-20,181778,9.84,BRITISH GAS,BRI040
EFDC,YB500,SUPERVISION/MANAGEMENT SPECIAL,ELECTRICITY,1120,11-Nov-20,181778,9.42,BRITISH GAS,BRI040
EFDC,YB500,SUPERVISION/MANAGEMENT SPECIAL,ELECTRICITY,1120,11-Nov-20,181778,38.58,BRITISH GAS,BRI040
EFDC,YB110,SUPERVISION/MANAGEMENT SPECIAL,ELECTRICITY,1120,11-Nov-20,181778,8.3,BRITISH GAS,BRI040
EFDC,YB500,SUPERVISION/MANAGEMENT SPECIAL,ELECTRICITY,1120,11-Nov-20,181778,14.04,BRITISH GAS,BRI040
EFDC,YB110,SUPERVISION/MANAGEMENT SPECIAL,ELECTRICITY,1120,11-Nov-20,181778,8.62,BRITISH GAS,BRI040
EFDC,YB110,SUPERVISION/MANAGEMENT SPECIAL,ELECTRICITY,1120,11-Nov-20,181778,9.1,BRITISH GAS,BRI040
EFDC,YB110,SUPERVISION/MANAGEMENT SPECIAL,ELECTRICITY,1120,11-Nov-20,181778,15.6,BRITISH GAS,BRI040
EFDC,YB110,SUPERVISION/MANAGEMENT SPECIAL,ELECTRICITY,1120,11-Nov-20,181778,11.78,BRITISH GAS,BRI040
EFDC,YB110,SUPERVISION/MANAGEMENT SPECIAL,ELECTRICITY,1120,11-Nov-20,181778,17.21,BRITISH GAS,BRI040
EFDC,YB110,SUPERVISION/MANAGEMENT SPECIAL,ELECTRICITY,1120,11-Nov-20,181778,16.96,BRITISH GAS,BRI040
EFDC,YB110,SUPERVISION/MANAGEMENT SPECIAL,ELECTRICITY,1120,11-Nov-20,181778,31.1,BRITISH GAS,BRI040
EFDC,YB110,SUPERVISION/MANAGEMENT SPECIAL,ELECTRICITY,1120,11-Nov-20,181778,25.36,BRITISH GAS,BRI040
EFDC,YB110,SUPERVISION/MANAGEMENT SPECIAL,ELECTRICITY,1120,11-Nov-20,181778,21.91,BRITISH GAS,BRI040
EFDC,YB110,SUPERVISION/MANAGEMENT SPECIAL,ELECTRICITY,1120,11-Nov-20,181778,99.67,BRITISH GAS,BRI040
EFDC,YB110,SUPERVISION/MANAGEMENT SPECIAL,ELECTRICITY,1120,11-Nov-20,181778,18.35,BRITISH GAS,BRI040
EFDC,YB110,SUPERVISION/MANAGEMENT SPECIAL,ELECTRICITY,1120,11-Nov-20,181778,23.54,BRITISH GAS,BRI040
EFDC,YB110,SUPERVISION/MANAGEMENT SPECIAL,ELECTRICITY,1120,11-Nov-20,181778,12.68,BRITISH GAS,BRI040
EFDC,YB110,SUPERVISION/MANAGEMENT SPECIAL,ELECTRICITY,1120,11-Nov-20,181778,22.06,BRITISH GAS,BRI040
EFDC,YB110,SUPERVISION/MANAGEMENT SPECIAL,ELECTRICITY,1120,11-Nov-20,181778,17.44,BRITISH GAS,BRI040
EFDC,YB110,SUPERVISION/MANAGEMENT SPECIAL,ELECTRICITY,1120,11-Nov-20,181778,24.87,BRITISH GAS,BRI040
EFDC,YB110,SUPERVISION/MANAGEMENT SPECIAL,ELECTRICITY,1120,11-Nov-20,181778,23.53,BRITISH GAS,BRI040
EFDC,YB110,SUPERVISION/MANAGEMENT SPECIAL,ELECTRICITY,1120,11-Nov-20,181778,-53.71,BRITISH GAS,BRI040
EFDC,YB110,SUPERVISION/MANAGEMENT SPECIAL,ELECTRICITY,1120,11-Nov-20,181778,17.92,BRITISH GAS,BRI040
EFDC,YB110,SUPERVISION/MANAGEMENT SPECIAL,ELECTRICITY,1120,11-Nov-20,181778,18.09,BRITISH GAS,BRI040
EFDC,YB110,SUPERVISION/MANAGEMENT SPECIAL,ELECTRICITY,1120,11-Nov-20,181778,16.5,BRITISH GAS,BRI040
EFDC,YB110,SUPERVISION/MANAGEMENT SPECIAL,ELECTRICITY,1120,11-Nov-20,181778,109.95,BRITISH GAS,BRI040
EFDC,YB110,SUPERVISION/MANAGEMENT SPECIAL,ELECTRICITY,1120,11-Nov-20,181778,22.17,BRITISH GAS,BRI040
EFDC,YB110,SUPERVISION/MANAGEMENT SPECIAL,ELECTRICITY,1120,11-Nov-20,181778,22.17,BRITISH GAS,BRI040
EFDC,YB110,SUPERVISION/MANAGEMENT SPECIAL,ELECTRICITY,1120,11-Nov-20,181778,19.3,BRITISH GAS,BRI040
EFDC,YB110,SUPERVISION/MANAGEMENT SPECIAL,ELECTRICITY,1120,11-Nov-20,181778,18.67,BRITISH GAS,BRI040
EFDC,YB110,SUPERVISION/MANAGEMENT SPECIAL,ELECTRICITY,1120,11-Nov-20,181778,18.81,BRITISH GAS,BRI040
EFDC,YB110,SUPERVISION/MANAGEMENT SPECIAL,ELECTRICITY,1120,11-Nov-20,181778,16.91,BRITISH GAS,BRI040
EFDC,YB110,SUPERVISION/MANAGEMENT SPECIAL,ELECTRICITY,1120,11-Nov-20,181778,32.06,BRITISH GAS,BRI040
EFDC,YB110,SUPERVISION/MANAGEMENT SPECIAL,ELECTRICITY,1120,11-Nov-20,181778,22.68,BRITISH GAS,BRI040
EFDC,YB110,SUPERVISION/MANAGEMENT SPECIAL,ELECTRICITY,1120,11-Nov-20,181778,20.88,BRITISH GAS,BRI040
EFDC,YB110,SUPERVISION/MANAGEMENT SPECIAL,ELECTRICITY,1120,11-Nov-20,181778,12.49,BRITISH GAS,BRI040
EFDC,YB110,SUPERVISION/MANAGEMENT SPECIAL,ELECTRICITY,1120,11-Nov-20,181778,20.5,BRITISH GAS,BRI040
EFDC,YB110,SUPERVISION/MANAGEMENT SPECIAL,ELECTRICITY,1120,11-Nov-20,181778,22.17,BRITISH GAS,BRI040
EFDC,YB110,SUPERVISION/MANAGEMENT SPECIAL,ELECTRICITY,1120,11-Nov-20,181778,22.17,BRITISH GAS,BRI040
EFDC,YB110,SUPERVISION/MANAGEMENT SPECIAL,ELECTRICITY,1120,11-Nov-20,181778,16.54,BRITISH GAS,BRI040
EFDC,YB110,SUPERVISION/MANAGEMENT SPECIAL,ELECTRICITY,1120,11-Nov-20,181778,12.6,BRITISH GAS,BRI040
EFDC,YB110,SUPERVISION/MANAGEMENT SPECIAL,ELECTRICITY,1120,11-Nov-20,181778,16.91,BRITISH GAS,BRI040
EFDC,YB110,SUPERVISION/MANAGEMENT SPECIAL,ELECTRICITY,1120,11-Nov-20,181778,64.21,BRITISH GAS,BRI040
EFDC,YB110,SUPERVISION/MANAGEMENT SPECIAL,ELECTRICITY,1120,11-Nov-20,181778,13.25,BRITISH GAS,BRI040
EFDC,YB110,SUPERVISION/MANAGEMENT SPECIAL,ELECTRICITY,1120,11-Nov-20,181778,18.82,BRITISH GAS,BRI040
EFDC,YB110,SUPERVISION/MANAGEMENT SPECIAL,ELECTRICITY,1120,11-Nov-20,181778,18.82,BRITISH GAS,BRI040
EFDC,YB110,SUPERVISION/MANAGEMENT SPECIAL,ELECTRICITY,1120,11-Nov-20,181778,40.82,BRITISH GAS,BRI040
EFDC,YB110,SUPERVISION/MANAGEMENT SPECIAL,ELECTRICITY,1120,11-Nov-20,181778,18.34,BRITISH GAS,BRI040
EFDC,YB110,SUPERVISION/MANAGEMENT SPECIAL,ELECTRICITY,1120,11-Nov-20,181778,80.28,BRITISH GAS,BRI040
EFDC,YB110,SUPERVISION/MANAGEMENT SPECIAL,ELECTRICITY,1120,11-Nov-20,181778,14.3,BRITISH GAS,BRI040
EFDC,YB110,SUPERVISION/MANAGEMENT SPECIAL,ELECTRICITY,1120,11-Nov-20,181778,43.2,BRITISH GAS,BRI040
EFDC,YB110,SUPERVISION/MANAGEMENT SPECIAL,ELECTRICITY,1120,11-Nov-20,181778,17.93,BRITISH GAS,BRI040
EFDC,YB110,SUPERVISION/MANAGEMENT SPECIAL,ELECTRICITY,1120,11-Nov-20,181778,23.42,BRITISH GAS,BRI040
EFDC,YB110,SUPERVISION/MANAGEMENT SPECIAL,ELECTRICITY,1120,11-Nov-20,181778,156.84,BRITISH GAS,BRI040
EFDC,YB110,SUPERVISION/MANAGEMENT SPECIAL,ELECTRICITY,1120,11-Nov-20,181778,20.27,BRITISH GAS,BRI040
EFDC,YB110,SUPERVISION/MANAGEMENT SPECIAL,ELECTRICITY,1120,11-Nov-20,181778,8.37,BRITISH GAS,BRI040
EFDC,YB110,SUPERVISION/MANAGEMENT SPECIAL,ELECTRICITY,1120,11-Nov-20,181778,14.28,BRITISH GAS,BRI040
EFDC,YB500,SUPERVISION/MANAGEMENT SPECIAL,ELECTRICITY,1120,11-Nov-20,181778,9.16,BRITISH GAS,BRI040
EFDC,YB110,SUPERVISION/MANAGEMENT SPECIAL,ELECTRICITY,1120,11-Nov-20,181778,22.67,BRITISH GAS,BRI040
EFDC,YB110,SUPERVISION/MANAGEMENT SPECIAL,ELECTRICITY,1120,11-Nov-20,181778,38.39,BRITISH GAS,BRI040
EFDC,YB110,SUPERVISION/MANAGEMENT SPECIAL,ELECTRICITY,1120,11-Nov-20,181778,24.44,BRITISH GAS,BRI040
EFDC,YB110,SUPERVISION/MANAGEMENT SPECIAL,ELECTRICITY,1120,11-Nov-20,181778,41.62,BRITISH GAS,BRI040
EFDC,YB110,SUPERVISION/MANAGEMENT SPECIAL,ELECTRICITY,1120,11-Nov-20,181778,20.67,BRITISH GAS,BRI040
EFDC,YB110,SUPERVISION/MANAGEMENT SPECIAL,ELECTRICITY,1120,11-Nov-20,181778,13.68,BRITISH GAS,BRI040
EFDC,YB110,SUPERVISION/MANAGEMENT SPECIAL,ELECTRICITY,1120,11-Nov-20,181778,17,BRITISH GAS,BRI040
EFDC,YB110,SUPERVISION/MANAGEMENT SPECIAL,ELECTRICITY,1120,11-Nov-20,181778,14.99,BRITISH GAS,BRI040
EFDC,YB110,SUPERVISION/MANAGEMENT SPECIAL,ELECTRICITY,1120,11-Nov-20,181778,19.6,BRITISH GAS,BRI040
EFDC,YB110,SUPERVISION/MANAGEMENT SPECIAL,ELECTRICITY,1120,11-Nov-20,181778,13.86,BRITISH GAS,BRI040
EFDC,YB110,SUPERVISION/MANAGEMENT SPECIAL,ELECTRICITY,1120,11-Nov-20,181778,28.03,BRITISH GAS,BRI040
EFDC,YB110,SUPERVISION/MANAGEMENT SPECIAL,ELECTRICITY,1120,11-Nov-20,181778,20.16,BRITISH GAS,BRI040
EFDC,YB110,SUPERVISION/MANAGEMENT SPECIAL,ELECTRICITY,1120,11-Nov-20,181778,14.66,BRITISH GAS,BRI040
EFDC,YB110,SUPERVISION/MANAGEMENT SPECIAL,ELECTRICITY,1120,11-Nov-20,181778,28.98,BRITISH GAS,BRI040
EFDC,YB110,SUPERVISION/MANAGEMENT SPECIAL,ELECTRICITY,1120,11-Nov-20,181778,14.65,BRITISH GAS,BRI040
EFDC,YB110,SUPERVISION/MANAGEMENT SPECIAL,ELECTRICITY,1120,11-Nov-20,181778,21.9,BRITISH GAS,BRI040
EFDC,YB110,SUPERVISION/MANAGEMENT SPECIAL,ELECTRICITY,1120,11-Nov-20,181778,-37.12,BRITISH GAS,BRI040
EFDC,YB110,SUPERVISION/MANAGEMENT SPECIAL,ELECTRICITY,1120,11-Nov-20,181778,70.63,BRITISH GAS,BRI040
EFDC,YB110,SUPERVISION/MANAGEMENT SPECIAL,ELECTRICITY,1120,11-Nov-20,181778,15.29,BRITISH GAS,BRI040
EFDC,YB110,SUPERVISION/MANAGEMENT SPECIAL,ELECTRICITY,1120,11-Nov-20,181778,30.17,BRITISH GAS,BRI040
EFDC,YB110,SUPERVISION/MANAGEMENT SPECIAL,ELECTRICITY,1120,11-Nov-20,181778,40.95,BRITISH GAS,BRI040
EFDC,YB110,SUPERVISION/MANAGEMENT SPECIAL,ELECTRICITY,1120,11-Nov-20,181778,14.9,BRITISH GAS,BRI040
EFDC,YB110,SUPERVISION/MANAGEMENT SPECIAL,ELECTRICITY,1120,11-Nov-20,181778,18.39,BRITISH GAS,BRI040
EFDC,YB110,SUPERVISION/MANAGEMENT SPECIAL,ELECTRICITY,1120,11-Nov-20,181778,35.23,BRITISH GAS,BRI040
EFDC,YB110,SUPERVISION/MANAGEMENT SPECIAL,ELECTRICITY,1120,11-Nov-20,181778,-16.41,BRITISH GAS,BRI040
EFDC,YB110,SUPERVISION/MANAGEMENT SPECIAL,ELECTRICITY,1120,11-Nov-20,181778,95.88,BRITISH GAS,BRI040
EFDC,YB110,SUPERVISION/MANAGEMENT SPECIAL,ELECTRICITY,1120,11-Nov-20,181778,-123.44,BRITISH GAS,BRI040
EFDC,YB110,SUPERVISION/MANAGEMENT SPECIAL,ELECTRICITY,1120,11-Nov-20,181778,-92.39,BRITISH GAS,BRI040
EFDC,YB110,SUPERVISION/MANAGEMENT SPECIAL,ELECTRICITY,1120,11-Nov-20,181778,-155.55,BRITISH GAS,BRI040
EFDC,YB110,SUPERVISION/MANAGEMENT SPECIAL,ELECTRICITY,1120,11-Nov-20,181778,-77.16,BRITISH GAS,BRI040
EFDC,YB110,SUPERVISION/MANAGEMENT SPECIAL,ELECTRICITY,1120,11-Nov-20,181778,-81.83,BRITISH GAS,BRI040
EFDC,YB110,SUPERVISION/MANAGEMENT SPECIAL,ELECTRICITY,1120,11-Nov-20,181778,-49.21,BRITISH GAS,BRI040
EFDC,YB110,SUPERVISION/MANAGEMENT SPECIAL,ELECTRICITY,1120,11-Nov-20,181778,-24.79,BRITISH GAS,BRI040
EFDC,YB110,SUPERVISION/MANAGEMENT SPECIAL,ELECTRICITY,1120,11-Nov-20,181778,20.03,BRITISH GAS,BRI040
EFDC,YB110,SUPERVISION/MANAGEMENT SPECIAL,ELECTRICITY,1120,11-Nov-20,181778,17.28,BRITISH GAS,BRI040
EFDC,YB110,SUPERVISION/MANAGEMENT SPECIAL,ELECTRICITY,1120,11-Nov-20,181778,-46.07,BRITISH GAS,BRI040
EFDC,YB110,SUPERVISION/MANAGEMENT SPECIAL,ELECTRICITY,1120,11-Nov-20,181778,19.58,BRITISH GAS,BRI040
EFDC,YB110,SUPERVISION/MANAGEMENT SPECIAL,ELECTRICITY,1120,11-Nov-20,181778,17.38,BRITISH GAS,BRI040
EFDC,YB110,SUPERVISION/MANAGEMENT SPECIAL,ELECTRICITY,1120,11-Nov-20,181778,15.8,BRITISH GAS,BRI040
EFDC,YB110,SUPERVISION/MANAGEMENT SPECIAL,ELECTRICITY,1120,11-Nov-20,181778,49.43,BRITISH GAS,BRI040
EFDC,YB110,SUPERVISION/MANAGEMENT SPECIAL,ELECTRICITY,1120,11-Nov-20,181778,26.7,BRITISH GAS,BRI040
EFDC,YB110,SUPERVISION/MANAGEMENT SPECIAL,ELECTRICITY,1120,11-Nov-20,181778,13.53,BRITISH GAS,BRI040
EFDC,YB110,SUPERVISION/MANAGEMENT SPECIAL,ELECTRICITY,1120,11-Nov-20,181778,-30.14,BRITISH GAS,BRI040
EFDC,YB110,SUPERVISION/MANAGEMENT SPECIAL,ELECTRICITY,1120,11-Nov-20,181778,21.79,BRITISH GAS,BRI040
EFDC,YB110,SUPERVISION/MANAGEMENT SPECIAL,ELECTRICITY,1120,11-Nov-20,181778,43.43,BRITISH GAS,BRI040
EFDC,YB110,SUPERVISION/MANAGEMENT SPECIAL,ELECTRICITY,1120,11-Nov-20,181778,25.25,BRITISH GAS,BRI040
EFDC,YB110,SUPERVISION/MANAGEMENT SPECIAL,ELECTRICITY,1120,11-Nov-20,181778,10.15,BRITISH GAS,BRI040
EFDC,YB110,SUPERVISION/MANAGEMENT SPECIAL,ELECTRICITY,1120,11-Nov-20,181778,77.95,BRITISH GAS,BRI040
EFDC,YB110,SUPERVISION/MANAGEMENT SPECIAL,ELECTRICITY,1120,11-Nov-20,181778,-11.5,BRITISH GAS,BRI040
EFDC,YB110,SUPERVISION/MANAGEMENT SPECIAL,ELECTRICITY,1120,11-Nov-20,181778,20.09,BRITISH GAS,BRI040
EFDC,YB110,SUPERVISION/MANAGEMENT SPECIAL,ELECTRICITY,1120,11-Nov-20,181778,23.04,BRITISH GAS,BRI040
EFDC,YB110,SUPERVISION/MANAGEMENT SPECIAL,ELECTRICITY,1120,11-Nov-20,181778,-12.78,BRITISH GAS,BRI040
EFDC,YB110,SUPERVISION/MANAGEMENT SPECIAL,ELECTRICITY,1120,11-Nov-20,181778,-13.95,BRITISH GAS,BRI040
EFDC,YB110,SUPERVISION/MANAGEMENT SPECIAL,ELECTRICITY,1120,11-Nov-20,181778,-13.39,BRITISH GAS,BRI040
EFDC,YB110,SUPERVISION/MANAGEMENT SPECIAL,ELECTRICITY,1120,11-Nov-20,181778,-158.28,BRITISH GAS,BRI040
EFDC,YB110,SUPERVISION/MANAGEMENT SPECIAL,ELECTRICITY,1120,11-Nov-20,181778,-447.4,BRITISH GAS,BRI040
EFDC,YB110,SUPERVISION/MANAGEMENT SPECIAL,ELECTRICITY,1120,11-Nov-20,181778,-65.83,BRITISH GAS,BRI040
EFDC,YB110,SUPERVISION/MANAGEMENT SPECIAL,ELECTRICITY,1120,11-Nov-20,181778,-28.32,BRITISH GAS,BRI040
EFDC,YB110,SUPERVISION/MANAGEMENT SPECIAL,ELECTRICITY,1120,11-Nov-20,181778,14.86,BRITISH GAS,BRI040
EFDC,YB110,SUPERVISION/MANAGEMENT SPECIAL,ELECTRICITY,1120,11-Nov-20,181778,-75.41,BRITISH GAS,BRI040
EFDC,YB110,SUPERVISION/MANAGEMENT SPECIAL,ELECTRICITY,1120,11-Nov-20,181778,53.6,BRITISH GAS,BRI040
EFDC,YB110,SUPERVISION/MANAGEMENT SPECIAL,ELECTRICITY,1120,11-Nov-20,181778,121.53,BRITISH GAS,BRI040
EFDC,YB110,SUPERVISION/MANAGEMENT SPECIAL,ELECTRICITY,1120,11-Nov-20,181778,17.29,BRITISH GAS,BRI040
EFDC,YB110,SUPERVISION/MANAGEMENT SPECIAL,ELECTRICITY,1120,11-Nov-20,181778,90.42,BRITISH GAS,BRI040
EFDC,YB110,SUPERVISION/MANAGEMENT SPECIAL,ELECTRICITY,1120,11-Nov-20,181778,19.6,BRITISH GAS,BRI040
EFDC,YB110,SUPERVISION/MANAGEMENT SPECIAL,ELECTRICITY,1120,11-Nov-20,181778,17.78,BRITISH GAS,BRI040
EFDC,YB110,SUPERVISION/MANAGEMENT SPECIAL,ELECTRICITY,1120,11-Nov-20,181778,-10.8,BRITISH GAS,BRI040
EFDC,YB110,SUPERVISION/MANAGEMENT SPECIAL,ELECTRICITY,1120,11-Nov-20,181778,-11.74,BRITISH GAS,BRI040
EFDC,YB110,SUPERVISION/MANAGEMENT SPECIAL,ELECTRICITY,1120,11-Nov-20,181778,18.6,BRITISH GAS,BRI040
EFDC,YB110,SUPERVISION/MANAGEMENT SPECIAL,ELECTRICITY,1120,11-Nov-20,181778,-30.44,BRITISH GAS,BRI040
EFDC,YB110,SUPERVISION/MANAGEMENT SPECIAL,ELECTRICITY,1120,11-Nov-20,181778,-30.43,BRITISH GAS,BRI040
EFDC,YB110,SUPERVISION/MANAGEMENT SPECIAL,ELECTRICITY,1120,11-Nov-20,181778,-45.37,BRITISH GAS,BRI040
EFDC,YB110,SUPERVISION/MANAGEMENT SPECIAL,ELECTRICITY,1120,11-Nov-20,181778,-120.07,BRITISH GAS,BRI040
EFDC,YB110,SUPERVISION/MANAGEMENT SPECIAL,ELECTRICITY,1120,11-Nov-20,181778,-45.3,BRITISH GAS,BRI040
EFDC,YB110,SUPERVISION/MANAGEMENT SPECIAL,ELECTRICITY,1120,11-Nov-20,181778,17.63,BRITISH GAS,BRI040
EFDC,YB110,SUPERVISION/MANAGEMENT SPECIAL,ELECTRICITY,1120,11-Nov-20,181778,-13.35,BRITISH GAS,BRI040
EFDC,YB110,SUPERVISION/MANAGEMENT SPECIAL,ELECTRICITY,1120,11-Nov-20,181778,-9.68,BRITISH GAS,BRI040
EFDC,YB110,SUPERVISION/MANAGEMENT SPECIAL,ELECTRICITY,1120,11-Nov-20,181778,-11.41,BRITISH GAS,BRI040
EFDC,YB110,SUPERVISION/MANAGEMENT SPECIAL,ELECTRICITY,1120,11-Nov-20,181778,-12.83,BRITISH GAS,BRI040
EFDC,YB110,SUPERVISION/MANAGEMENT SPECIAL,ELECTRICITY,1120,11-Nov-20,181778,-16.17,BRITISH GAS,BRI040
EFDC,YB110,SUPERVISION/MANAGEMENT SPECIAL,ELECTRICITY,1120,11-Nov-20,181778,-9.9,BRITISH GAS,BRI040
EFDC,YB110,SUPERVISION/MANAGEMENT SPECIAL,ELECTRICITY,1120,11-Nov-20,181778,-10.79,BRITISH GAS,BRI040
EFDC,YB110,SUPERVISION/MANAGEMENT SPECIAL,ELECTRICITY,1120,11-Nov-20,181778,-11.04,BRITISH GAS,BRI040
EFDC,YB110,SUPERVISION/MANAGEMENT SPECIAL,ELECTRICITY,1120,11-Nov-20,181778,-19.33,BRITISH GAS,BRI040
EFDC,YB110,SUPERVISION/MANAGEMENT SPECIAL,ELECTRICITY,1120,11-Nov-20,181778,-34.28,BRITISH GAS,BRI040
EFDC,YB110,SUPERVISION/MANAGEMENT SPECIAL,ELECTRICITY,1120,11-Nov-20,181778,16.15,BRITISH GAS,BRI040
EFDC,YB110,SUPERVISION/MANAGEMENT SPECIAL,ELECTRICITY,1120,11-Nov-20,181778,17.93,BRITISH GAS,BRI040
EFDC,YB110,SUPERVISION/MANAGEMENT SPECIAL,ELECTRICITY,1120,11-Nov-20,181778,15.36,BRITISH GAS,BRI040
EFDC,YB110,SUPERVISION/MANAGEMENT SPECIAL,ELECTRICITY,1120,11-Nov-20,181778,14.05,BRITISH GAS,BRI040
EFDC,YB110,SUPERVISION/MANAGEMENT SPECIAL,ELECTRICITY,1120,11-Nov-20,181778,24.49,BRITISH GAS,BRI040
EFDC,YB110,SUPERVISION/MANAGEMENT SPECIAL,ELECTRICITY,1120,11-Nov-20,181778,23.07,BRITISH GAS,BRI040
EFDC,YB110,SUPERVISION/MANAGEMENT SPECIAL,ELECTRICITY,1120,11-Nov-20,181778,58.76,BRITISH GAS,BRI040
EFDC,YB110,SUPERVISION/MANAGEMENT SPECIAL,ELECTRICITY,1120,11-Nov-20,181778,137.33,BRITISH GAS,BRI040
EFDC,YB110,SUPERVISION/MANAGEMENT SPECIAL,ELECTRICITY,1120,11-Nov-20,181778,21.92,BRITISH GAS,BRI040
EFDC,YB110,SUPERVISION/MANAGEMENT SPECIAL,ELECTRICITY,1120,11-Nov-20,181778,14.9,BRITISH GAS,BRI040
EFDC,YB110,SUPERVISION/MANAGEMENT SPECIAL,ELECTRICITY,1120,11-Nov-20,181778,19.65,BRITISH GAS,BRI040
EFDC,YB110,SUPERVISION/MANAGEMENT SPECIAL,ELECTRICITY,1120,11-Nov-20,181778,14.03,BRITISH GAS,BRI040
EFDC,YB110,SUPERVISION/MANAGEMENT SPECIAL,ELECTRICITY,1120,11-Nov-20,181778,20.05,BRITISH GAS,BRI040
EFDC,YB110,SUPERVISION/MANAGEMENT SPECIAL,ELECTRICITY,1120,11-Nov-20,181778,17.11,BRITISH GAS,BRI040
EFDC,YB110,SUPERVISION/MANAGEMENT SPECIAL,ELECTRICITY,1120,11-Nov-20,181778,56.42,BRITISH GAS,BRI040
EFDC,YB110,SUPERVISION/MANAGEMENT SPECIAL,ELECTRICITY,1120,11-Nov-20,181778,15.24,BRITISH GAS,BRI040
EFDC,YB110,SUPERVISION/MANAGEMENT SPECIAL,ELECTRICITY,1120,11-Nov-20,181778,11.41,BRITISH GAS,BRI040
EFDC,YB110,SUPERVISION/MANAGEMENT SPECIAL,ELECTRICITY,1120,11-Nov-20,181778,13.8,BRITISH GAS,BRI040
EFDC,YB110,SUPERVISION/MANAGEMENT SPECIAL,ELECTRICITY,1120,11-Nov-20,181778,17.53,BRITISH GAS,BRI040
EFDC,YB110,SUPERVISION/MANAGEMENT SPECIAL,ELECTRICITY,1120,11-Nov-20,181778,12.53,BRITISH GAS,BRI040
EFDC,YB110,SUPERVISION/MANAGEMENT SPECIAL,ELECTRICITY,1120,11-Nov-20,181778,15.56,BRITISH GAS,BRI040
EFDC,YB110,SUPERVISION/MANAGEMENT SPECIAL,ELECTRICITY,1120,11-Nov-20,181778,15.39,BRITISH GAS,BRI040
EFDC,YB110,SUPERVISION/MANAGEMENT SPECIAL,ELECTRICITY,1120,11-Nov-20,181778,15.51,BRITISH GAS,BRI040
EFDC,YB110,SUPERVISION/MANAGEMENT SPECIAL,ELECTRICITY,1120,11-Nov-20,181778,15.43,BRITISH GAS,BRI040
EFDC,YB520,SUPERVISION/MANAGEMENT SPECIAL,ELECTRICITY,1120,11-Nov-20,181778,244.74,BRITISH GAS,BRI040
EFDC,YB520,SUPERVISION/MANAGEMENT SPECIAL,ELECTRICITY,1120,11-Nov-20,181778,232.32,BRITISH GAS,BRI040
EFDC,YB110,SUPERVISION/MANAGEMENT SPECIAL,ELECTRICITY,1120,11-Nov-20,181778,11.78,BRITISH GAS,BRI040
EFDC,YB110,SUPERVISION/MANAGEMENT SPECIAL,ELECTRICITY,1120,11-Nov-20,181778,11.47,BRITISH GAS,BRI040
EFDC,YB110,SUPERVISION/MANAGEMENT SPECIAL,ELECTRICITY,1120,11-Nov-20,181778,53.64,BRITISH GAS,BRI040
EFDC,YB110,SUPERVISION/MANAGEMENT SPECIAL,ELECTRICITY,1120,11-Nov-20,181778,56.22,BRITISH GAS,BRI040
EFDC,YB110,SUPERVISION/MANAGEMENT SPECIAL,ELECTRICITY,1120,11-Nov-20,181778,11.52,BRITISH GAS,BRI040
EFDC,YB110,SUPERVISION/MANAGEMENT SPECIAL,ELECTRICITY,1120,11-Nov-20,181778,14.03,BRITISH GAS,BRI040
EFDC,YB110,SUPERVISION/MANAGEMENT SPECIAL,ELECTRICITY,1120,11-Nov-20,181778,87.91,BRITISH GAS,BRI040
EFDC,YB110,SUPERVISION/MANAGEMENT SPECIAL,ELECTRICITY,1120,11-Nov-20,181778,13.58,BRITISH GAS,BRI040
EFDC,YB110,SUPERVISION/MANAGEMENT SPECIAL,ELECTRICITY,1120,11-Nov-20,181778,16.15,BRITISH GAS,BRI040
EFDC,YB110,SUPERVISION/MANAGEMENT SPECIAL,ELECTRICITY,1120,11-Nov-20,181778,14.18,BRITISH GAS,BRI040
EFDC,YB110,SUPERVISION/MANAGEMENT SPECIAL,ELECTRICITY,1120,11-Nov-20,181778,15.15,BRITISH GAS,BRI040
EFDC,YB110,SUPERVISION/MANAGEMENT SPECIAL,ELECTRICITY,1120,11-Nov-20,181778,17.48,BRITISH GAS,BRI040
EFDC,YB110,SUPERVISION/MANAGEMENT SPECIAL,ELECTRICITY,1120,11-Nov-20,181778,18.58,BRITISH GAS,BRI040
EFDC,YB110,SUPERVISION/MANAGEMENT SPECIAL,ELECTRICITY,1120,11-Nov-20,181778,15.73,BRITISH GAS,BRI040
EFDC,YB110,SUPERVISION/MANAGEMENT SPECIAL,ELECTRICITY,1120,11-Nov-20,181778,13.04,BRITISH GAS,BRI040
EFDC,YB110,SUPERVISION/MANAGEMENT SPECIAL,ELECTRICITY,1120,11-Nov-20,181778,17.65,BRITISH GAS,BRI040
EFDC,YB110,SUPERVISION/MANAGEMENT SPECIAL,ELECTRICITY,1120,11-Nov-20,181778,17.03,BRITISH GAS,BRI040
EFDC,YB110,SUPERVISION/MANAGEMENT SPECIAL,ELECTRICITY,1120,11-Nov-20,181778,17.75,BRITISH GAS,BRI040
EFDC,YB110,SUPERVISION/MANAGEMENT SPECIAL,ELECTRICITY,1120,11-Nov-20,181778,18.41,BRITISH GAS,BRI040
EFDC,YB110,SUPERVISION/MANAGEMENT SPECIAL,ELECTRICITY,1120,11-Nov-20,181778,23.71,BRITISH GAS,BRI040
EFDC,YB110,SUPERVISION/MANAGEMENT SPECIAL,ELECTRICITY,1120,11-Nov-20,181778,14.63,BRITISH GAS,BRI040
EFDC,YB110,SUPERVISION/MANAGEMENT SPECIAL,ELECTRICITY,1120,11-Nov-20,181778,17.82,BRITISH GAS,BRI040
EFDC,YB110,SUPERVISION/MANAGEMENT SPECIAL,ELECTRICITY,1120,11-Nov-20,181778,53.27,BRITISH GAS,BRI040
EFDC,YB110,SUPERVISION/MANAGEMENT SPECIAL,ELECTRICITY,1120,11-Nov-20,181778,33.38,BRITISH GAS,BRI040
EFDC,YB110,SUPERVISION/MANAGEMENT SPECIAL,ELECTRICITY,1120,11-Nov-20,181778,27.55,BRITISH GAS,BRI040
EFDC,YB110,SUPERVISION/MANAGEMENT SPECIAL,ELECTRICITY,1120,11-Nov-20,181778,24.98,BRITISH GAS,BRI040
EFDC,YB110,SUPERVISION/MANAGEMENT SPECIAL,ELECTRICITY,1120,11-Nov-20,181778,9.16,BRITISH GAS,BRI040
EFDC,YB110,SUPERVISION/MANAGEMENT SPECIAL,ELECTRICITY,1120,11-Nov-20,181778,80.27,BRITISH GAS,BRI040
EFDC,YB110,SUPERVISION/MANAGEMENT SPECIAL,ELECTRICITY,1120,11-Nov-20,181778,18.99,BRITISH GAS,BRI040
EFDC,YB110,SUPERVISION/MANAGEMENT SPECIAL,ELECTRICITY,1120,11-Nov-20,181778,13.69,BRITISH GAS,BRI040
EFDC,YB110,SUPERVISION/MANAGEMENT SPECIAL,ELECTRICITY,1120,11-Nov-20,181778,38.77,BRITISH GAS,BRI040
EFDC,YB110,SUPERVISION/MANAGEMENT SPECIAL,ELECTRICITY,1120,11-Nov-20,181778,18.44,BRITISH GAS,BRI040
EFDC,YB110,SUPERVISION/MANAGEMENT SPECIAL,ELECTRICITY,1120,11-Nov-20,181778,18.28,BRITISH GAS,BRI040
EFDC,YB140,SUPERVISION/MANAGEMENT SPECIAL,ELECTRICITY,1120,11-Nov-20,181778,13.63,BRITISH GAS,BRI040
EFDC,YB110,SUPERVISION/MANAGEMENT SPECIAL,ELECTRICITY,1120,11-Nov-20,181778,20.14,BRITISH GAS,BRI040
EFDC,YB110,SUPERVISION/MANAGEMENT SPECIAL,ELECTRICITY,1120,11-Nov-20,181778,15.65,BRITISH GAS,BRI040
EFDC,YB110,SUPERVISION/MANAGEMENT SPECIAL,ELECTRICITY,1120,11-Nov-20,181778,17.53,BRITISH GAS,BRI040
EFDC,YB110,SUPERVISION/MANAGEMENT SPECIAL,ELECTRICITY,1120,11-Nov-20,181778,70.93,BRITISH GAS,BRI040
EFDC,YB110,SUPERVISION/MANAGEMENT SPECIAL,ELECTRICITY,1120,11-Nov-20,181778,25.07,BRITISH GAS,BRI040
EFDC,YB110,SUPERVISION/MANAGEMENT SPECIAL,ELECTRICITY,1120,11-Nov-20,181778,18.13,BRITISH GAS,BRI040
EFDC,YB110,SUPERVISION/MANAGEMENT SPECIAL,ELECTRICITY,1120,11-Nov-20,181778,21.07,BRITISH GAS,BRI040
EFDC,YB110,SUPERVISION/MANAGEMENT SPECIAL,ELECTRICITY,1120,11-Nov-20,181778,21.13,BRITISH GAS,BRI040
EFDC,YB110,SUPERVISION/MANAGEMENT SPECIAL,ELECTRICITY,1120,11-Nov-20,181778,15.31,BRITISH GAS,BRI040
EFDC,YB110,SUPERVISION/MANAGEMENT SPECIAL,ELECTRICITY,1120,11-Nov-20,181778,34.59,BRITISH GAS,BRI040
EFDC,YB110,SUPERVISION/MANAGEMENT SPECIAL,ELECTRICITY,1120,11-Nov-20,181778,13.3,BRITISH GAS,BRI040
EFDC,YB140,SUPERVISION/MANAGEMENT SPECIAL,ELECTRICITY,1120,11-Nov-20,181778,25.75,BRITISH GAS,BRI040
EFDC,YB110,SUPERVISION/MANAGEMENT SPECIAL,ELECTRICITY,1120,11-Nov-20,181778,20.66,BRITISH GAS,BRI040
EFDC,YB140,SUPERVISION/MANAGEMENT SPECIAL,ELECTRICITY,1120,11-Nov-20,181778,11.86,BRITISH GAS,BRI040
EFDC,YB110,SUPERVISION/MANAGEMENT SPECIAL,ELECTRICITY,1120,11-Nov-20,181778,14.17,BRITISH GAS,BRI040
EFDC,YB140,SUPERVISION/MANAGEMENT SPECIAL,ELECTRICITY,1120,11-Nov-20,181778,22.73,BRITISH GAS,BRI040
EFDC,YB140,SUPERVISION/MANAGEMENT SPECIAL,ELECTRICITY,1120,11-Nov-20,181778,25.7,BRITISH GAS,BRI040
EFDC,YB140,SUPERVISION/MANAGEMENT SPECIAL,ELECTRICITY,1120,11-Nov-20,181778,22.15,BRITISH GAS,BRI040
EFDC,YB140,SUPERVISION/MANAGEMENT SPECIAL,ELECTRICITY,1120,11-Nov-20,181778,18.61,BRITISH GAS,BRI040
EFDC,YB140,SUPERVISION/MANAGEMENT SPECIAL,ELECTRICITY,1120,11-Nov-20,181778,22.81,BRITISH GAS,BRI040
EFDC,YB140,SUPERVISION/MANAGEMENT SPECIAL,ELECTRICITY,1120,11-Nov-20,181778,31.34,BRITISH GAS,BRI040
EFDC,YB140,SUPERVISION/MANAGEMENT SPECIAL,ELECTRICITY,1120,11-Nov-20,181778,25.1,BRITISH GAS,BRI040
EFDC,YB140,SUPERVISION/MANAGEMENT SPECIAL,ELECTRICITY,1120,11-Nov-20,181778,22.43,BRITISH GAS,BRI040
EFDC,YB140,SUPERVISION/MANAGEMENT SPECIAL,ELECTRICITY,1120,11-Nov-20,181778,25.56,BRITISH GAS,BRI040
EFDC,YB140,SUPERVISION/MANAGEMENT SPECIAL,ELECTRICITY,1120,11-Nov-20,181778,13.68,BRITISH GAS,BRI040
EFDC,YB140,SUPERVISION/MANAGEMENT SPECIAL,ELECTRICITY,1120,11-Nov-20,181778,23.41,BRITISH GAS,BRI040
EFDC,YB300,SUPERVISION/MANAGEMENT SPECIAL,ELECTRICITY,1120,11-Nov-20,181778,29.95,BRITISH GAS,BRI040
EFDC,YB200,SUPERVISION/MANAGEMENT SPECIAL,ELECTRICITY,1120,11-Nov-20,181778,15.43,BRITISH GAS,BRI040
EFDC,YB140,SUPERVISION/MANAGEMENT SPECIAL,ELECTRICITY,1120,11-Nov-20,181778,20.84,BRITISH GAS,BRI040
EFDC,YB110,SUPERVISION/MANAGEMENT SPECIAL,ELECTRICITY,1120,11-Nov-20,181778,45.63,BRITISH GAS,BRI040
EFDC,YB110,SUPERVISION/MANAGEMENT SPECIAL,ELECTRICITY,1120,11-Nov-20,181778,20.95,BRITISH GAS,BRI040
EFDC,YB110,SUPERVISION/MANAGEMENT SPECIAL,ELECTRICITY,1120,11-Nov-20,181778,18.72,BRITISH GAS,BRI040
EFDC,YB110,SUPERVISION/MANAGEMENT SPECIAL,ELECTRICITY,1120,11-Nov-20,181778,14.55,BRITISH GAS,BRI040
EFDC,YB110,SUPERVISION/MANAGEMENT SPECIAL,ELECTRICITY,1120,11-Nov-20,181778,13.8,BRITISH GAS,BRI040
EFDC,YB110,SUPERVISION/MANAGEMENT SPECIAL,ELECTRICITY,1120,11-Nov-20,181778,7.92,BRITISH GAS,BRI040
EFDC,YB110,SUPERVISION/MANAGEMENT SPECIAL,ELECTRICITY,1120,11-Nov-20,181778,17.43,BRITISH GAS,BRI040
EFDC,YB110,SUPERVISION/MANAGEMENT SPECIAL,ELECTRICITY,1120,11-Nov-20,181778,16.3,BRITISH GAS,BRI040
EFDC,YB110,SUPERVISION/MANAGEMENT SPECIAL,ELECTRICITY,1120,11-Nov-20,181778,12.71,BRITISH GAS,BRI040
EFDC,YB110,SUPERVISION/MANAGEMENT SPECIAL,ELECTRICITY,1120,11-Nov-20,181778,19.18,BRITISH GAS,BRI040
EFDC,YB110,SUPERVISION/MANAGEMENT SPECIAL,ELECTRICITY,1120,11-Nov-20,181778,36.07,BRITISH GAS,BRI040
EFDC,YB110,SUPERVISION/MANAGEMENT SPECIAL,ELECTRICITY,1120,11-Nov-20,181778,15.16,BRITISH GAS,BRI040
EFDC,YB110,SUPERVISION/MANAGEMENT SPECIAL,ELECTRICITY,1120,11-Nov-20,181778,14.3,BRITISH GAS,BRI040
EFDC,YB110,SUPERVISION/MANAGEMENT SPECIAL,ELECTRICITY,1120,11-Nov-20,181778,21.25,BRITISH GAS,BRI040
EFDC,YB110,SUPERVISION/MANAGEMENT SPECIAL,ELECTRICITY,1120,11-Nov-20,181778,23.7,BRITISH GAS,BRI040
EFDC,YB110,SUPERVISION/MANAGEMENT SPECIAL,ELECTRICITY,1120,11-Nov-20,181778,20.16,BRITISH GAS,BRI040
EFDC,YB110,SUPERVISION/MANAGEMENT SPECIAL,ELECTRICITY,1120,11-Nov-20,181778,19.38,BRITISH GAS,BRI040
EFDC,YB110,SUPERVISION/MANAGEMENT SPECIAL,ELECTRICITY,1120,11-Nov-20,181778,8.84,BRITISH GAS,BRI040
EFDC,YB110,SUPERVISION/MANAGEMENT SPECIAL,ELECTRICITY,1120,11-Nov-20,181778,11.72,BRITISH GAS,BRI040
EFDC,YB110,SUPERVISION/MANAGEMENT SPECIAL,ELECTRICITY,1120,11-Nov-20,181778,33.96,BRITISH GAS,BRI040
EFDC,YB110,SUPERVISION/MANAGEMENT SPECIAL,ELECTRICITY,1120,11-Nov-20,181778,12.52,BRITISH GAS,BRI040
EFDC,YB110,SUPERVISION/MANAGEMENT SPECIAL,ELECTRICITY,1120,11-Nov-20,181778,17.67,BRITISH GAS,BRI040
EFDC,YB110,SUPERVISION/MANAGEMENT SPECIAL,ELECTRICITY,1120,11-Nov-20,181778,14.94,BRITISH GAS,BRI040
EFDC,YB110,SUPERVISION/MANAGEMENT SPECIAL,ELECTRICITY,1120,11-Nov-20,181778,14.29,BRITISH GAS,BRI040
EFDC,YB110,SUPERVISION/MANAGEMENT SPECIAL,ELECTRICITY,1120,11-Nov-20,181778,18.68,BRITISH GAS,BRI040
EFDC,YB110,SUPERVISION/MANAGEMENT SPECIAL,ELECTRICITY,1120,11-Nov-20,181778,13.69,BRITISH GAS,BRI040
EFDC,YB110,SUPERVISION/MANAGEMENT SPECIAL,ELECTRICITY,1120,11-Nov-20,181778,39.93,BRITISH GAS,BRI040
EFDC,YB110,SUPERVISION/MANAGEMENT SPECIAL,ELECTRICITY,1120,11-Nov-20,181778,18.96,BRITISH GAS,BRI040
EFDC,YB110,SUPERVISION/MANAGEMENT SPECIAL,ELECTRICITY,1120,11-Nov-20,181778,16.82,BRITISH GAS,BRI040
EFDC,YB110,SUPERVISION/MANAGEMENT SPECIAL,ELECTRICITY,1120,11-Nov-20,181778,16.07,BRITISH GAS,BRI040
EFDC,YB110,SUPERVISION/MANAGEMENT SPECIAL,ELECTRICITY,1120,11-Nov-20,181778,14.24,BRITISH GAS,BRI040
EFDC,YB110,SUPERVISION/MANAGEMENT SPECIAL,ELECTRICITY,1120,11-Nov-20,181778,9.42,BRITISH GAS,BRI040
EFDC,23140,ACCOMMODATION,ELECTRICITY,1120,11-Nov-20,181778,287.91,BRITISH GAS,BRI040
EFDC,UO130,LAND & PROPERTY,ELECTRICITY,1120,11-Nov-20,181778,20.28,BRITISH GAS,BRI040
EFDC,RS302,NORTH WEALD CENTRE,ELECTRICITY,1120,11-Nov-20,181778,8.38,BRITISH GAS,BRI040
EFDC,YB110,SUPERVISION/MANAGEMENT SPECIAL,ELECTRICITY,1120,11-Nov-20,181778,11.75,BRITISH GAS,BRI040
EFDC,TI190,LAND & PROPERTY,ELECTRICITY,1120,11-Nov-20,181778,9.42,BRITISH GAS,BRI040
EFDC,YB110,SUPERVISION/MANAGEMENT SPECIAL,ELECTRICITY,1120,11-Nov-20,181778,16.81,BRITISH GAS,BRI040
EFDC,YB110,SUPERVISION/MANAGEMENT SPECIAL,ELECTRICITY,1120,11-Nov-20,181778,16.03,BRITISH GAS,BRI040
EFDC,UO130,LAND & PROPERTY,ELECTRICITY,1120,11-Nov-20,181778,23.8,BRITISH GAS,BRI040
EFDC,YB110,SUPERVISION/MANAGEMENT SPECIAL,ELECTRICITY,1120,11-Nov-20,181778,17.28,BRITISH GAS,BRI040
EFDC,UO130,LAND & PROPERTY,ELECTRICITY,1120,11-Nov-20,181778,28.57,BRITISH GAS,BRI040
EFDC,UO130,LAND & PROPERTY,ELECTRICITY,1120,11-Nov-20,181778,15.3,BRITISH GAS,BRI040
EFDC,23140,ACCOMMODATION,ELECTRICITY,1120,11-Nov-20,181778,72.66,BRITISH GAS,BRI040
EFDC,YB110,SUPERVISION/MANAGEMENT SPECIAL,ELECTRICITY,1120,11-Nov-20,181778,16.17,BRITISH GAS,BRI040
EFDC,23140,ACCOMMODATION,ELECTRICITY,1120,11-Nov-20,181778,72.13,BRITISH GAS,BRI040
EFDC,YB110,SUPERVISION/MANAGEMENT SPECIAL,ELECTRICITY,1120,11-Nov-20,181778,9.42,BRITISH GAS,BRI040
EFDC,YB110,SUPERVISION/MANAGEMENT SPECIAL,ELECTRICITY,1120,11-Nov-20,181778,10.63,BRITISH GAS,BRI040
EFDC,YB110,SUPERVISION/MANAGEMENT SPECIAL,ELECTRICITY,1120,11-Nov-20,181778,9.42,BRITISH GAS,BRI040
EFDC,YB110,SUPERVISION/MANAGEMENT SPECIAL,ELECTRICITY,1120,11-Nov-20,181778,9.42,BRITISH GAS,BRI040
EFDC,YB110,SUPERVISION/MANAGEMENT SPECIAL,ELECTRICITY,1120,11-Nov-20,181778,43.64,BRITISH GAS,BRI040
EFDC,YB110,SUPERVISION/MANAGEMENT SPECIAL,ELECTRICITY,1120,11-Nov-20,181778,57.19,BRITISH GAS,BRI040
EFDC,YB110,SUPERVISION/MANAGEMENT SPECIAL,ELECTRICITY,1120,11-Nov-20,181778,14.21,BRITISH GAS,BRI040
EFDC,YB110,SUPERVISION/MANAGEMENT SPECIAL,ELECTRICITY,1120,11-Nov-20,181778,12.53,BRITISH GAS,BRI040
EFDC,YB110,SUPERVISION/MANAGEMENT SPECIAL,ELECTRICITY,1120,11-Nov-20,181778,36.48,BRITISH GAS,BRI040
EFDC,YB110,SUPERVISION/MANAGEMENT SPECIAL,ELECTRICITY,1120,11-Nov-20,181778,40.22,BRITISH GAS,BRI040
EFDC,YB110,SUPERVISION/MANAGEMENT SPECIAL,ELECTRICITY,1120,11-Nov-20,181778,15.94,BRITISH GAS,BRI040
EFDC,YB110,SUPERVISION/MANAGEMENT SPECIAL,ELECTRICITY,1120,11-Nov-20,181778,11.4,BRITISH GAS,BRI040
EFDC,YB110,SUPERVISION/MANAGEMENT SPECIAL,ELECTRICITY,1120,11-Nov-20,181778,13.65,BRITISH GAS,BRI040
EFDC,UO130,LAND & PROPERTY,ELECTRICITY,1120,11-Nov-20,181778,4.05,BRITISH GAS,BRI040
EFDC,CH110,"MUSEUM, HERITAGE & CULTURE",ELECTRICITY,1120,11-Nov-20,181778,-352.31,BRITISH GAS,BRI040
EFDC,YB500,SUPERVISION/MANAGEMENT SPECIAL,ELECTRICITY,1120,11-Nov-20,181778,266.86,BRITISH GAS,BRI040
EFDC,YB500,SUPERVISION/MANAGEMENT SPECIAL,ELECTRICITY,1120,11-Nov-20,181778,7.91,BRITISH GAS,BRI040
EFDC,YB500,SUPERVISION/MANAGEMENT SPECIAL,ELECTRICITY,1120,11-Nov-20,181778,79.79,BRITISH GAS,BRI040
EFDC,YB500,SUPERVISION/MANAGEMENT SPECIAL,ELECTRICITY,1120,11-Nov-20,181778,16.37,BRITISH GAS,BRI040
EFDC,YB500,SUPERVISION/MANAGEMENT SPECIAL,ELECTRICITY,1120,11-Nov-20,181778,16.35,BRITISH GAS,BRI040
EFDC,YB500,SUPERVISION/MANAGEMENT SPECIAL,ELECTRICITY,1120,11-Nov-20,181778,426.13,BRITISH GAS,BRI040
EFDC,YB500,SUPERVISION/MANAGEMENT SPECIAL,ELECTRICITY,1120,11-Nov-20,181778,16.84,BRITISH GAS,BRI040
EFDC,RS301,NORTH WEALD CENTRE,ELECTRICITY,1120,11-Nov-20,181778,15.33,BRITISH GAS,BRI040
EFDC,YB110,SUPERVISION/MANAGEMENT SPECIAL,ELECTRICITY,1120,11-Nov-20,181778,57.6,BRITISH GAS,BRI040
EFDC,EH160,OTHER ACTIVITIES,ELECTRICITY,1120,11-Nov-20,181778,9.69,BRITISH GAS,BRI040
EFDC,FD100,LAND DRAINAGE/SEWERAGE,ELECTRICITY,1120,11-Nov-20,181778,9.57,BRITISH GAS,BRI040
EFDC,EH112,LAND DRAINAGE/SEWERAGE,ELECTRICITY,1120,11-Nov-20,181778,100.24,BRITISH GAS,BRI040
EFDC,23140,ACCOMMODATION,ELECTRICITY,1120,11-Nov-20,181778,189.76,BRITISH GAS,BRI040
EFDC,CH110,"MUSEUM, HERITAGE & CULTURE",ELECTRICITY,1120,11-Nov-20,181778,-333.33,BRITISH GAS,BRI040
EFDC,YB110,SUPERVISION/MANAGEMENT SPECIAL,ELECTRICITY,1120,11-Nov-20,181778,15.31,BRITISH GAS,BRI040
EFDC,CH110,"MUSEUM, HERITAGE & CULTURE",ELECTRICITY,1120,11-Nov-20,181778,156.87,BRITISH GAS,BRI040
EFDC,CH110,"MUSEUM, HERITAGE & CULTURE",ELECTRICITY,1120,11-Nov-20,181778,146.52,BRITISH GAS,BRI040
EFDC,CH110,"MUSEUM, HERITAGE & CULTURE",ELECTRICITY,1120,11-Nov-20,181778,333.88,BRITISH GAS,BRI040
EFDC,EH160,OTHER ACTIVITIES,ELECTRICITY,1120,11-Nov-20,181778,27.15,BRITISH GAS,BRI040
EFDC,EH160,OTHER ACTIVITIES,ELECTRICITY,1120,11-Nov-20,181778,15.15,BRITISH GAS,BRI040
EFDC,EH160,OTHER ACTIVITIES,ELECTRICITY,1120,11-Nov-20,181778,8.91,BRITISH GAS,BRI040
EFDC,EH160,OTHER ACTIVITIES,ELECTRICITY,1120,11-Nov-20,181778,8.66,BRITISH GAS,BRI040
EFDC,23140,ACCOMMODATION,ELECTRICITY,1120,11-Nov-20,181778,-347.27,BRITISH GAS,BRI040
EFDC,23130,ACCOMMODATION,ELECTRICITY,1120,11-Nov-20,181778,155.6,BRITISH GAS,BRI040
EFDC,YB110,SUPERVISION/MANAGEMENT SPECIAL,ELECTRICITY,1120,11-Nov-20,181778,18.88,BRITISH GAS,BRI040
EFDC,23140,ACCOMMODATION,ELECTRICITY,1120,11-Nov-20,181778,41.04,BRITISH GAS,BRI040
EFDC,23140,ACCOMMODATION,ELECTRICITY,1120,11-Nov-20,181778,-322.19,BRITISH GAS,BRI040
EFDC,23140,ACCOMMODATION,ELECTRICITY,1120,11-Nov-20,181778,-439.91,BRITISH GAS,BRI040
EFDC,YB110,SUPERVISION/MANAGEMENT SPECIAL,ELECTRICITY,1120,11-Nov-20,181778,8.13,BRITISH GAS,BRI040
EFDC,YB110,SUPERVISION/MANAGEMENT SPECIAL,ELECTRICITY,1120,11-Nov-20,181778,69.23,BRITISH GAS,BRI040
EFDC,YB110,SUPERVISION/MANAGEMENT SPECIAL,ELECTRICITY,1120,11-Nov-20,181778,11.37,BRITISH GAS,BRI040
EFDC,YB110,SUPERVISION/MANAGEMENT SPECIAL,ELECTRICITY,1120,11-Nov-20,181778,18.45,BRITISH GAS,BRI040
EFDC,YB110,SUPERVISION/MANAGEMENT SPECIAL,ELECTRICITY,1120,11-Nov-20,181778,19.37,BRITISH GAS,BRI040
EFDC,YB110,SUPERVISION/MANAGEMENT SPECIAL,ELECTRICITY,1120,11-Nov-20,181778,22.92,BRITISH GAS,BRI040
EFDC,YB110,SUPERVISION/MANAGEMENT SPECIAL,ELECTRICITY,1120,11-Nov-20,181778,25.36,BRITISH GAS,BRI040
EFDC,YB110,SUPERVISION/MANAGEMENT SPECIAL,ELECTRICITY,1120,11-Nov-20,181778,26.37,BRITISH GAS,BRI040
EFDC,YB110,SUPERVISION/MANAGEMENT SPECIAL,ELECTRICITY,1120,11-Nov-20,181778,24.47,BRITISH GAS,BRI040
EFDC,YB110,SUPERVISION/MANAGEMENT SPECIAL,ELECTRICITY,1120,11-Nov-20,181778,22.43,BRITISH GAS,BRI040
EFDC,YB110,SUPERVISION/MANAGEMENT SPECIAL,ELECTRICITY,1120,11-Nov-20,181778,20.42,BRITISH GAS,BRI040
EFDC,YB110,SUPERVISION/MANAGEMENT SPECIAL,ELECTRICITY,1120,11-Nov-20,181778,45.61,BRITISH GAS,BRI040
EFDC,YB110,SUPERVISION/MANAGEMENT SPECIAL,ELECTRICITY,1120,11-Nov-20,181778,22.4,BRITISH GAS,BRI040
EFDC,YB110,SUPERVISION/MANAGEMENT SPECIAL,ELECTRICITY,1120,11-Nov-20,181778,26.9,BRITISH GAS,BRI040
EFDC,YB110,SUPERVISION/MANAGEMENT SPECIAL,ELECTRICITY,1120,11-Nov-20,181778,14.24,BRITISH GAS,BRI040
EFDC,YB110,SUPERVISION/MANAGEMENT SPECIAL,ELECTRICITY,1120,11-Nov-20,181778,26.95,BRITISH GAS,BRI040
EFDC,YB110,SUPERVISION/MANAGEMENT SPECIAL,ELECTRICITY,1120,11-Nov-20,181778,9.6,BRITISH GAS,BRI040
EFDC,YB110,SUPERVISION/MANAGEMENT SPECIAL,ELECTRICITY,1120,11-Nov-20,181778,15.9,BRITISH GAS,BRI040
EFDC,YB110,SUPERVISION/MANAGEMENT SPECIAL,ELECTRICITY,1120,11-Nov-20,181778,17.55,BRITISH GAS,BRI040
EFDC,YB110,SUPERVISION/MANAGEMENT SPECIAL,ELECTRICITY,1120,11-Nov-20,181778,16.15,BRITISH GAS,BRI040
EFDC,YB110,SUPERVISION/MANAGEMENT SPECIAL,ELECTRICITY,1120,11-Nov-20,181778,19.03,BRITISH GAS,BRI040
EFDC,YB110,SUPERVISION/MANAGEMENT SPECIAL,ELECTRICITY,1120,11-Nov-20,181778,71.98,BRITISH GAS,BRI040
EFDC,YB110,SUPERVISION/MANAGEMENT SPECIAL,ELECTRICITY,1120,11-Nov-20,181778,21.43,BRITISH GAS,BRI040
EFDC,YB110,SUPERVISION/MANAGEMENT SPECIAL,ELECTRICITY,1120,11-Nov-20,181778,10.04,BRITISH GAS,BRI040
EFDC,YB110,SUPERVISION/MANAGEMENT SPECIAL,ELECTRICITY,1120,11-Nov-20,181778,14.13,BRITISH GAS,BRI040
EFDC,YB110,SUPERVISION/MANAGEMENT SPECIAL,ELECTRICITY,1120,11-Nov-20,181778,20.07,BRITISH GAS,BRI040
EFDC,YB110,SUPERVISION/MANAGEMENT SPECIAL,ELECTRICITY,1120,11-Nov-20,181778,10.41,BRITISH GAS,BRI040
EFDC,YB110,SUPERVISION/MANAGEMENT SPECIAL,ELECTRICITY,1120,11-Nov-20,181778,18.2,BRITISH GAS,BRI040
EFDC,YB110,SUPERVISION/MANAGEMENT SPECIAL,ELECTRICITY,1120,11-Nov-20,181778,17.46,BRITISH GAS,BRI040
EFDC,YB500,SUPERVISION/MANAGEMENT SPECIAL,ELECTRICITY,1120,11-Nov-20,181778,164.69,BRITISH GAS,BRI040
EFDC,YB110,SUPERVISION/MANAGEMENT SPECIAL,ELECTRICITY,1120,11-Nov-20,181778,18.07,BRITISH GAS,BRI040
EFDC,YB110,SUPERVISION/MANAGEMENT SPECIAL,ELECTRICITY,1120,11-Nov-20,181778,9.42,BRITISH GAS,BRI040
EFDC,YB110,SUPERVISION/MANAGEMENT SPECIAL,ELECTRICITY,1120,11-Nov-20,181778,46.93,BRITISH GAS,BRI040
EFDC,YB110,SUPERVISION/MANAGEMENT SPECIAL,ELECTRICITY,1120,11-Nov-20,181778,15.04,BRITISH GAS,BRI040
EFDC,YB110,SUPERVISION/MANAGEMENT SPECIAL,ELECTRICITY,1120,11-Nov-20,181778,17.77,BRITISH GAS,BRI040
EFDC,YB110,SUPERVISION/MANAGEMENT SPECIAL,ELECTRICITY,1120,11-Nov-20,181778,12.4,BRITISH GAS,BRI040
EFDC,YB110,SUPERVISION/MANAGEMENT SPECIAL,ELECTRICITY,1120,11-Nov-20,181778,14.9,BRITISH GAS,BRI040
EFDC,YB110,SUPERVISION/MANAGEMENT SPECIAL,ELECTRICITY,1120,11-Nov-20,181778,49.03,BRITISH GAS,BRI040
EFDC,YB110,SUPERVISION/MANAGEMENT SPECIAL,ELECTRICITY,1120,11-Nov-20,181778,50.6,BRITISH GAS,BRI040
EFDC,YB110,SUPERVISION/MANAGEMENT SPECIAL,ELECTRICITY,1120,11-Nov-20,181778,18.47,BRITISH GAS,BRI040
EFDC,YB110,SUPERVISION/MANAGEMENT SPECIAL,ELECTRICITY,1120,11-Nov-20,181778,14.9,BRITISH GAS,BRI040
EFDC,YB110,SUPERVISION/MANAGEMENT SPECIAL,ELECTRICITY,1120,11-Nov-20,181778,22.03,BRITISH GAS,BRI040
EFDC,YB110,SUPERVISION/MANAGEMENT SPECIAL,ELECTRICITY,1120,11-Nov-20,181778,12.21,BRITISH GAS,BRI040
EFDC,YB110,SUPERVISION/MANAGEMENT SPECIAL,ELECTRICITY,1120,11-Nov-20,181778,15.28,BRITISH GAS,BRI040
EFDC,YB110,SUPERVISION/MANAGEMENT SPECIAL,ELECTRICITY,1120,11-Nov-20,181778,221.91,BRITISH GAS,BRI040
EFDC,YB110,SUPERVISION/MANAGEMENT SPECIAL,ELECTRICITY,1120,11-Nov-20,181778,14.63,BRITISH GAS,BRI040
EFDC,YB110,SUPERVISION/MANAGEMENT SPECIAL,ELECTRICITY,1120,11-Nov-20,181778,15.9,BRITISH GAS,BRI040
EFDC,YB110,SUPERVISION/MANAGEMENT SPECIAL,ELECTRICITY,1120,11-Nov-20,181778,25.46,BRITISH GAS,BRI040
EFDC,YB110,SUPERVISION/MANAGEMENT SPECIAL,ELECTRICITY,1120,11-Nov-20,181778,56.5,BRITISH GAS,BRI040
EFDC,YB110,SUPERVISION/MANAGEMENT SPECIAL,ELECTRICITY,1120,11-Nov-20,181778,15.4,BRITISH GAS,BRI040
EFDC,YB110,SUPERVISION/MANAGEMENT SPECIAL,ELECTRICITY,1120,11-Nov-20,181778,11.53,BRITISH GAS,BRI040
EFDC,YB110,SUPERVISION/MANAGEMENT SPECIAL,ELECTRICITY,1120,11-Nov-20,181778,35.16,BRITISH GAS,BRI040
EFDC,YB110,SUPERVISION/MANAGEMENT SPECIAL,ELECTRICITY,1120,11-Nov-20,181778,13.79,BRITISH GAS,BRI040
EFDC,YB110,SUPERVISION/MANAGEMENT SPECIAL,ELECTRICITY,1120,11-Nov-20,181778,16.28,BRITISH GAS,BRI040
EFDC,YB110,SUPERVISION/MANAGEMENT SPECIAL,ELECTRICITY,1120,11-Nov-20,181778,35.38,BRITISH GAS,BRI040
EFDC,YB110,SUPERVISION/MANAGEMENT SPECIAL,ELECTRICITY,1120,11-Nov-20,181778,16.17,BRITISH GAS,BRI040
EFDC,YB110,SUPERVISION/MANAGEMENT SPECIAL,ELECTRICITY,1120,11-Nov-20,181778,8.15,BRITISH GAS,BRI040
EFDC,YB110,SUPERVISION/MANAGEMENT SPECIAL,ELECTRICITY,1120,11-Nov-20,181778,15.07,BRITISH GAS,BRI040
EFDC,YB110,SUPERVISION/MANAGEMENT SPECIAL,ELECTRICITY,1120,11-Nov-20,181778,41.02,BRITISH GAS,BRI040
EFDC,YB110,SUPERVISION/MANAGEMENT SPECIAL,ELECTRICITY,1120,11-Nov-20,181778,31.33,BRITISH GAS,BRI040
EFDC,YB110,SUPERVISION/MANAGEMENT SPECIAL,ELECTRICITY,1120,11-Nov-20,181778,16.48,BRITISH GAS,BRI040
EFDC,RS301,NORTH WEALD CENTRE,OTHER MAINTENANCE,1050,11-Nov-20,181012,890.21,MITIE SECURITY LTD,MIT004
EFDC,YB110,SUPERVISION/MANAGEMENT SPECIAL,ELECTRICITY,1120,11-Nov-20,181778,15.77,BRITISH GAS,BRI040
